TRANSACTION  NO,Service Area Categorisation,Service Division Categorisation,Responsible Unit,Unit Code,Expenses Type,Expenses Sub Type,Expense Code,Narrative,Amount,Invoice Date,Capital/Revenue,Supplier Name
1,Central Services,Corporate Mangmt not separated,Chief Exec's Office                     ,A01001,Supplies & Services           ,Grants and Subscriptions      ,DJ04,Subscriptions                           ,"15,000.00",26/06/2013,R,CROYDON COUNCIL               
2,Central Services,SupS Chief Execs,Local Involvement Network               ,A01039,Third Party Payments          ,Private Contractors           ,EH10,Contract Payments                       ,652,03/07/2013,R,VOICEABILITY                  
3,Central Services,SupS Chief Execs,Local Involvement Network               ,A01039,Third Party Payments          ,Private Contractors           ,EH10,Contract Payments                       ,"3,381.00",12/07/2013,R,VOICEABILITY                  
4,Cultural Env Reg&Plan Services,Comm Safety (Crime Reduction),Crime and Strategy Team                 ,A01100,Third Party Payments          ,Private Contractors           ,EH02,Miscellaneous Hired Services            ,"3,000.00",03/06/2013,R,STOP HATE UK                  
5,Adult Social Care,Substance Abuse (Addictions),DAAT Commissioning                      ,A01300,Third Party Payments          ,Private Contractors           ,EH02,Miscellaneous Hired Services            ,900,08/07/2013,R,GLENCOT LIMITED               
6,Adult Social Care,Substance Abuse (Addictions),DAAT Commissioning                      ,A01300,Third Party Payments          ,Private Contractors           ,EH02,Miscellaneous Hired Services            ,600,29/07/2013,R,GLENCOT LIMITED               
7,Adult Social Care,Substance Abuse (Addictions),DAAT Commissioning                      ,A01300,Third Party Payments          ,Private Contractors           ,EH02,Miscellaneous Hired Services            ,900,17/07/2013,R,GLENCOT LIMITED               
8,Adult Social Care,Substance Abuse (Addictions),DAAT Commissioning                      ,A01300,Third Party Payments          ,Private Contractors           ,EH02,Miscellaneous Hired Services            ,900,12/07/2013,R,GLENCOT LIMITED               
9,Adult Social Care,Substance Abuse (Addictions),DAAT Commissioning                      ,A01300,Third Party Payments          ,Private Contractors           ,EH02,Miscellaneous Hired Services            ,900,01/07/2013,R,GLENCOT LIMITED               
10,Adult Social Care,Substance Abuse (Addictions),Retention in Drug Treatmt Srvs          ,A01303,Third Party Payments          ,Private Contractors           ,EH02,Miscellaneous Hired Services            ,"10,000.00",06/08/2012,R,ST MARY�S UNIVERSITY COLLEGE  
11,Central Services,SupS Chief Execs,NON-STATUTORY MARKETING & COMM ,A02019,Supplies & Services           ,Services                      ,DF02,Misc Advertising/Publicity              ,786,17/05/2013,R,ROYAL BOR'GH KINGSTON U THAMES
12,Central Services,SupS Chief Execs,NON-STATUTORY MARKETING & COMM ,A02019,Supplies & Services           ,Services                      ,DF02,Misc Advertising/Publicity              ,600,13/07/2013,R,NEWSQUEST (LONDON)LTD         
13,Central Services,SupS Chief Execs,NON-STATUTORY MARKETING & COMM ,A02019,Supplies & Services           ,Services                      ,DF02,Misc Advertising/Publicity              ,537.5,26/06/2013,R,JCDECAUX UNITED KINGDOM       
14,Central Services,SupS Chief Execs,NON-STATUTORY MARKETING & COMM ,A02019,Supplies & Services           ,Services                      ,DF02,Misc Advertising/Publicity              ,537,26/06/2013,R,JCDECAUX UNITED KINGDOM       
15,Central Services,SupS Chief Execs,NON-STATUTORY MARKETING & COMM ,A02019,Supplies & Services           ,Services                      ,DF35,Graphic Design                          ,"3,285.00",27/06/2013,R,THE BIG IDEA
16,Central Services,SupS Chief Execs,NON-STATUTORY MARKETING & COMM ,A02019,Supplies & Services           ,Services                      ,DF35,Graphic Design                          ,"3,240.00",24/07/2013,R,THE BIG IDEA
17,Central Services,SupS Chief Execs,NON-STATUTORY MARKETING & COMM ,A02019,Supplies & Services           ,Grants and Subscriptions      ,DJ04,Subscriptions                           ,"2,025.09",09/07/2013,R,PANACEA SOFTWARE LTD          
18,Central Services,SupS Chief Execs,Democratic Services                     ,A02023,Employees                     ,Direct Employee Expenses      ,AA17,Agency Staff & Casual Paymts            ,"1,135.80",02/07/2013,R,REDACTED
19,Central Services,SupS Chief Execs,Democratic Services                     ,A02023,Employees                     ,Indirect Employee Expenses    ,AB02,Recruitment Adverts                     ,"1,153.80",16/07/2013,R,PENNA COMMUNICATIONS (NO 2 A/C
20,Central Services,SupS Chief Execs,Democratic Services                     ,A02023,Supplies & Services           ,Equip Furniture/Materials     ,DA01,Equipment - R & M                       ,766.67,04/07/2013,R,MAPPIN & WEBB                 
21,Central Services,SupS Chief Execs,Press and Public Relations.             ,A02026,Supplies & Services           ,Prntng Stnry Gen Off Exp      ,DE20,Council Magazine                        ,"3,892.00",24/06/2013,R,LONDON LETTERBOX MARKETING    
22,Central Services,SupS Chief Execs,Press and Public Relations.             ,A02026,Supplies & Services           ,Grants and Subscriptions      ,DJ04,Subscriptions                           ,550,23/07/2013,R,REDACTED
23,Central Services,SupS Comm and Member Services,PROGRAMME OFFICE                        ,A04068,Employees                     ,Direct Employee Expenses      ,AA17,AGENCY STAFF & CASUAL PAYMTS            ,"6,000.00",28/06/2013,R,REDACTED
24,Central Services,SupS Best Value,Merton Link                             ,A04070,Supplies & Services           ,Prntng Stnry Gen Off Exp      ,DE30,General Office Expense                  ,"1,216.80",18/06/2013,R,PHS GROUP PLC                 
25,Central Services,SupS Best Value,Merton Link                             ,A04070,Supplies & Services           ,Comms and Computing           ,DG15,Network Maintenance                     ,"1,093.95",01/07/2013,R,NORTHGATE  INFORMATION SOLUT. 
26,Central Services,Grants - Voluntary Groups,VOLUNTARY SECTOR COORDINATION   ,A04082,Supplies & Services           ,Grants and Subscriptions      ,DJ01,Grants                                  ,"23,000.00",22/07/2013,R,AGE UK MERTON LIMITED         
27,Central Services,Grants - Voluntary Groups,VOLUNTARY SECTOR COORDINATION   ,A04082,Supplies & Services           ,Grants and Subscriptions      ,DJ04,Subscriptions                           ,"54,987.75",01/07/2013,R,LONDON COUNCILS               
28,Central Services,SupS Comm and Member Services,COMMERICIAL SERVICES                    ,A04085,Employees                     ,Direct Employee Expenses      ,AA17,Agency Staff & Casual Paymts            ,"3,390.00",03/07/2013,R,HAYS RECRUITING EXPERTS       
29,Central Services,SupS Comm and Member Services,COMMERICIAL SERVICES                    ,A04085,Employees                     ,Direct Employee Expenses      ,AA17,Agency Staff & Casual Paymts            ,"3,390.00",14/06/2013,R,HAYS RECRUITING EXPERTS       
30,Central Services,SupS Comm and Member Services,COMMERICIAL SERVICES                    ,A04085,Employees                     ,Direct Employee Expenses      ,AA17,Agency Staff & Casual Paymts            ,"3,390.00",10/07/2013,R,HAYS RECRUITING EXPERTS       
31,Central Services,Registn Birth/Death/Marriage,Reg of B. Deaths & Ms                   ,B06143,Supplies & Services           ,Equip Furniture/Materials     ,DA09,Equip-Purchases                         ,"3,560.00",15/02/2013,R,BLINKY MEDIA LTD              
32,Central Services,Registn Birth/Death/Marriage,Reg of B. Deaths & Ms                   ,B06143,Supplies & Services           ,Comms and Computing           ,DG07,Computer Software                       ,"-1,822.43",01/03/2013,R,ZIPPORAH LTD                  
33,Central Services,Registn Birth/Death/Marriage,Reg of B. Deaths & Ms                   ,B06143,Supplies & Services           ,Comms and Computing           ,DG07,Computer Software                       ,"2,000.00",20/06/2013,R,ZIPPORAH LTD                  
34,Central Services,SupS Health & Safety,Learning and Development                ,B06146,Employees                     ,Indirect Employee Expenses    ,AB57,EXTERNAL TRAINING COSTS                 ,"1,350.00",08/05/2013,R,CROFT MANAGEMENT CENTRE       
35,Central Services,SupS Health & Safety,Learning and Development                ,B06146,Employees                     ,Indirect Employee Expenses    ,AB57,EXTERNAL TRAINING COSTS                 ,620,25/07/2013,R,AUDITWARE SYSTEMS LTD         
36,Central Services,SupS Health & Safety,Learning and Development                ,B06146,Employees                     ,Indirect Employee Expenses    ,AB57,EXTERNAL TRAINING COSTS                 ,780,25/06/2013,R,TOTAL COURSES                 
37,Central Services,SupS Health & Safety,Learning and Development                ,B06146,Employees                     ,Indirect Employee Expenses    ,AB57,EXTERNAL TRAINING COSTS                 ,"6,412.50",25/04/2013,R,CROFT MANAGEMENT CENTRE       
38,Central Services,SupS Health & Safety,Learning and Development                ,B06146,Employees                     ,Indirect Employee Expenses    ,AB57,EXTERNAL TRAINING COSTS                 ,"1,005.00",25/07/2013,R,LONDON SCHOOL OF FIRST AID    
39,Central Services,SupS Health & Safety,Learning and Development                ,B06146,Employees                     ,Indirect Employee Expenses    ,AB57,EXTERNAL TRAINING COSTS                 ,575,28/06/2013,R,LONDON SCHOOL OF FIRST AID    
40,Central Services,SupS Health & Safety,Learning and Development                ,B06146,Employees                     ,Indirect Employee Expenses    ,AB57,EXTERNAL TRAINING COSTS                 ,650,28/06/2013,R,LONDON SCHOOL OF FIRST AID    
41,Central Services,SupS Health & Safety,Learning and Development                ,B06146,Employees                     ,Indirect Employee Expenses    ,AB57,EXTERNAL TRAINING COSTS                 ,"5,480.00",27/03/2013,R,KRUGER ASSOCIATES             
42,Central Services,SupS Health & Safety,Learning and Development                ,B06146,Employees                     ,Indirect Employee Expenses    ,AB57,EXTERNAL TRAINING COSTS                 ,660,17/06/2013,R,PLANET TRAINING               
43,Central Services,SupS Health & Safety,Learning and Development                ,B06146,Employees                     ,Indirect Employee Expenses    ,AB57,EXTERNAL TRAINING COSTS                 ,"4,600.00",18/07/2013,R,CROFT MANAGEMENT CENTRE       
44,Central Services,SupS Health & Safety,Learning and Development                ,B06146,Supplies & Services           ,Expenses                      ,DH60,Members Training AP Creditors           ,"1,200.00",24/06/2013,R,REDACTED
45,CS -Oth Operating Inc & Expend,T/A Corporate Services,CHAS Scheme                             ,B06150,Supplies & Services           ,Services                      ,DF11,Counsel's Fees                          ,"3,627.00",31/05/2013,R,WEIGHTMANS LLP                
50,CS -Oth Operating Inc & Expend,T/A Corporate Services,CHAS Scheme                             ,B06150,Supplies & Services           ,Services                      ,DF88,Assessor Fees                           ,"1,945.00",31/05/2013,R,REDACTED
64,CS -Oth Operating Inc & Expend,T/A Corporate Services,CHAS Scheme                             ,B06150,Supplies & Services           ,Services                      ,DF88,Assessor Fees                           ,555,01/06/2013,R,REDACTED
74,CS -Oth Operating Inc & Expend,T/A Corporate Services,CHAS Scheme                             ,B06150,Supplies & Services           ,Services                      ,DF88,Assessor Fees                           ,"2,060.00",31/05/2013,R,REDACTED
80,CS -Oth Operating Inc & Expend,T/A Corporate Services,CHAS Scheme                             ,B06150,Supplies & Services           ,Services                      ,DF88,Assessor Fees                           ,"3,405.00",26/03/2013,R,REDACTED
131,,,Acquisitions Budget                     ,CA003MA,Acquisition of Land and Existing Buildings,,A1,Purchase                                ,"2,000.00",24/07/2013,C,BARNARD MARCUS                
132,,,Disabled Facilities Grant DCLG          ,CE004RA,Other Capital Expenditure,,E1,Grants                                  ,"5,400.00",03/07/2013,C,VISTA SCAPES                  
133,,,Disabled Facilities Grant DCLG          ,CE004RA,Other Capital Expenditure,,E1,Grants                                  ,"1,096.54",01/08/2013,C,STAYING FIRST                 
134,,,Disabled Facilities Grant DCLG          ,CE004RA,Other Capital Expenditure,,E1,Grants                                  ,"3,198.20",02/07/2013,C,PREMIER ADAPTATIONS LTD       
135,,,Disabled Facilities Grant DCLG          ,CE004RA,Other Capital Expenditure,,E1,Grants                                  ,"18,976.00",01/07/2013,C,FREEWAY LIFT SERVICES LTD     
136,,,Disabled Facilities Grant DCLG          ,CE004RA,Other Capital Expenditure,,E1,Grants                                  ,"1,071.00",01/08/2013,C,DREW PARTNERSHIP LTD.         
137,,,Disabled Facilities Grant DCLG          ,CE004RA,Other Capital Expenditure,,E1,Grants                                  ,"8,120.96",24/07/2013,C,F G KEEN LIMITED              
138,,,Disabled Facilities Grant DCLG          ,CE004RA,Other Capital Expenditure,,E1,Grants                                  ,644.5,02/07/2013,C,SUTTON STAYING PUT            
139,,,Disabled Facilities Grant DCLG          ,CE004RA,Other Capital Expenditure,,E1,Grants                                  ,"2,478.83",01/07/2013,C,DAKIN CONSTRUCTION LTD        
140,,,Disabled Facilities Grant DCLG          ,CE004RA,Other Capital Expenditure,,E1,Grants                                  ,"2,213.20",01/07/2013,C,CBS ADAPTATION                
141,,,Disabled Facilities Grant DCLG          ,CE004RA,Other Capital Expenditure,,E1,Grants                                  ,"2,183.26",01/07/2013,C,STAYING FIRST                 
142,,,Disabled Facilities Grant DCLG          ,CE004RA,Other Capital Expenditure,,E1,Grants                                  ,"3,386.00",02/07/2013,C,PREMIER ADAPTATIONS LTD       
143,,,Disabled Facilities Grant DCLG          ,CE004RA,Other Capital Expenditure,,E1,Grants                                  ,"1,720.75",17/07/2013,C,HARDING DESIGN LIMITED        
144,,,Disabled Facilities Grant DCLG          ,CE004RA,Other Capital Expenditure,,E1,Grants                                  ,"11,069.00",24/07/2013,C,ASCENDIT LIFTS LTD            
145,,,Disabled Facilities Grant DCLG          ,CE004RA,Other Capital Expenditure,,E1,Grants                                  ,"11,680.00",22/07/2013,C,VISTA SCAPES                  
146,,,Disabled Facilities Grant DCLG          ,CE004RA,Other Capital Expenditure,,E1,Grants                                  ,"15,000.00",01/08/2013,C,NONDRIP                       
147,,,Disabled Facilities Grant DCLG          ,CE004RA,Other Capital Expenditure,,E1,Grants                                  ,"1,576.00",03/07/2013,C,CBS ADAPTATION                
148,,,Disabled Facilities Grant DCLG          ,CE004RA,Other Capital Expenditure,,E1,Grants                                  ,"2,412.35",11/07/2013,C,STAYING FIRST                 
149,,,Disabled Facilities Grant DCLG          ,CE004RA,Other Capital Expenditure,,E1,Grants                                  ,"5,840.00",10/07/2013,C,AQUANEED LIMITED              
150,,,Disabled Facilities Grant DCLG          ,CE004RA,Other Capital Expenditure,,E1,Grants                                  ,"2,033.46",17/07/2013,C,R E SHELLEY                   
151,,,Disabled Facilities Grant DCLG          ,CE004RA,Other Capital Expenditure,,E1,Grants                                  ,"1,465.84",30/07/2013,C,CBS ADAPTATION                
152,,,Disabled Facilities Grant DCLG          ,CE004RA,Other Capital Expenditure,,E1,Grants                                  ,"8,700.00",24/07/2013,C,REDACTED
153,,,Disabled Facilities Grant DCLG          ,CE004RA,Other Capital Expenditure,,E1,Grants                                  ,"8,779.17",01/07/2013,C,TBS ADAPTATIONS LTD           
154,,,Disabled Facilities Grant DCLG          ,CE004RA,Other Capital Expenditure,,E1,Grants                                  ,"8,183.00",01/08/2013,C,DREW PARTNERSHIP LTD.         
155,,,Disabled Facilities Grant DCLG          ,CE004RA,Other Capital Expenditure,,E1,Grants                                  ,"1,524.58",24/07/2013,C,CBS ADAPTATION                
156,,,Disabled Facilities Grant DCLG          ,CE004RA,Other Capital Expenditure,,E1,Grants                                  ,"4,272.64",24/07/2013,C,F G KEEN LIMITED              
157,,,Disabled Facilities Grant DCLG          ,CE004RA,Other Capital Expenditure,,E1,Grants                                  ,"1,844.00",10/07/2013,C,TLC STAIRLIFTS                
158,,,Disabled Facilities Grant DCLG          ,CE004RA,Other Capital Expenditure,,E1,Grants                                  ,"4,006.92",10/07/2013,C,F G KEEN LIMITED              
159,,,Disabled Facilities Grant DCLG          ,CE004RA,Other Capital Expenditure,,E1,Grants                                  ,"11,630.46",16/07/2013,C,STANNAH LIFTS SERVICE LTD     
160,,,Disabled Facilities Grant DCLG          ,CE004RA,Other Capital Expenditure,,E1,Grants                                  ,"12,383.60",02/07/2013,C,WEIR BUILDING SERVICES        
161,,,Disabled Facilities Grant DCLG          ,CE004RA,Other Capital Expenditure,,E1,Grants                                  ,"2,045.34",17/07/2013,C,R E SHELLEY                   
162,,,Disabled Facilities Grant DCLG          ,CE004RA,Other Capital Expenditure,,E1,Grants                                  ,"2,209.32",16/07/2013,C,CBS ADAPTATION                
163,,,Disabled Facilities Grant DCLG          ,CE004RA,Other Capital Expenditure,,E1,Grants                                  ,"10,274.70",03/07/2013,C,TBS ADAPTATIONS LTD           
164,,,Disabled Facilities Grant DCLG          ,CE004RA,Other Capital Expenditure,,E1,Grants                                  ,"1,431.96",20/07/2013,C,CBS ADAPTATION                
165,,,Disabled Facilities Grant DCLG          ,CE004RA,Other Capital Expenditure,,E1,Grants                                  ,"4,914.00",25/07/2013,C,STANNAH LIFTS SERVICE LTD     
166,,,Disabled Facilities Grant DCLG          ,CE004RA,Other Capital Expenditure,,E1,Grants                                  ,"3,251.92",02/07/2013,C,CBS ADAPTATION                
167,,,Colliers Wd- Regeneration Fund          ,CE006FB,New Construction Conversion and Renovation,,B3,Other Expenses D&S Structure            ,"2,900.00",28/06/2013,C,STUDIO WEAVE LTD              
168,,,Colliers Wd- Regeneration Fund          ,CE006FB,New Construction Conversion and Renovation,,B3,Other Expenses D&S Structure            ,"2,500.00",28/06/2013,C,STUDIO WEAVE LTD              
169,,,Colliers Wd- Regeneration Fund          ,CE006FB,New Construction Conversion and Renovation,,B3,Other Expenses D&S Structure            ,"5,022.80",06/06/2013,C,STUDIO WEAVE LTD              
170,,,Colliers Wd- Regeneration Fund          ,CE006FB,New Construction Conversion and Renovation,,B3,Other Expenses D&S Structure            ,"2,900.00",28/06/2013,C,STUDIO WEAVE LTD              
171,,,Colliers Wd- Regeneration Fund          ,CE006FB,New Construction Conversion and Renovation,,B3,Other Expenses D&S Structure            ,"4,588.65",28/06/2013,C,STUDIO WEAVE LTD              
172,,,Mitcham - Outer London Fund             ,CE006FC,New Construction Conversion and Renovation,,B4,Contractor - Site works                 ,"9,523.20",24/07/2013,C,JD DESIGN                     
173,,,Mitcham - Outer London Fund             ,CE006FC,New Construction Conversion and Renovation,,B4,Contractor - Site works                 ,"4,000.00",16/07/2013,C,FOURTH WALL CREATIONS         
174,,,WCA investment                          ,CE007BA,New Construction Conversion and Renovation,,B4,Contractor - Site works                 ,816,03/07/2013,C,SUPREME GUARDING UK LIMITED   
175,,,WCA investment                          ,CE007BA,Vehicles Plant Equipment and Machinery,,D5,Software                                ,735,13/05/2013,C,PRIORITY RISK LTD             
176,,,Parks Investment                        ,CE013SA,New Construction Conversion and Renovation,,B4,Contractor - Site works                 ,"1,895.00",22/07/2013,C,THE CRESCENT FENCING CO.      
177,,,Parks Investment                        ,CE013SA,New Construction Conversion and Renovation,,B4,Contractor - Site works                 ,"7,500.00",19/06/2013,C,PRO-TEQ SURFACING (UK) LTD    
178,,,Parks Investment                        ,CE013SA,New Construction Conversion and Renovation,,B4,Contractor - Site works                 ,"6,468.00",05/07/2013,C,RTC SAFETY SURFACE LTD        
179,,,Parks Investment                        ,CE013SA,New Construction Conversion and Renovation,,B4,Contractor - Site works                 ,"9,661.00",28/06/2013,C,REDACTED
180,,,Parks Investment                        ,CE013SA,New Construction Conversion and Renovation,,B4,Contractor - Site works                 ,"2,505.00",15/07/2013,C,TAYLOR BUILDING COMPANY LTD   
181,,,Parks Investment                        ,CE013SA,New Construction Conversion and Renovation,,B4,Contractor - Site works                 ,"3,390.00",05/07/2013,C,RTC SAFETY SURFACE LTD        
182,,,Parks Investment                        ,CE013SA,New Construction Conversion and Renovation,,B4,Contractor - Site works                 ,"1,638.00",17/07/2013,C,TAYLOR BUILDING COMPANY LTD   
183,,,Parks Investment                        ,CE013SA,New Construction Conversion and Renovation,,B4,Contractor - Site works                 ,"23,400.00",10/07/2013,C,REDACTED
184,,,Parks Investment                        ,CE013SA,New Construction Conversion and Renovation,,B4,Contractor - Site works                 ,"3,697.00",11/07/2013,C,PARK LEISURE LTD              
185,,,Parks Investment                        ,CE013SA,New Construction Conversion and Renovation,,B4,Contractor - Site works                 ,"5,704.00",03/07/2013,C,RTC SAFETY SURFACE LTD        
186,,,Parks Investment                        ,CE013SA,New Construction Conversion and Renovation,,B4,Contractor - Site works                 ,"8,421.00",11/07/2013,C,PARK LEISURE LTD              
187,,,Parks Investment                        ,CE013SA,New Construction Conversion and Renovation,,B4,Contractor - Site works                 ,"1,800.00",24/06/2013,C,JUST METAL UK LTD             
188,,,B595 Colliers Wd Rec-play area          ,CE022CC,New Construction Conversion and Renovation,,B4,Contractor - Site works                 ,"3,532.00",05/07/2013,C,RTC SAFETY SURFACE LTD        
189,,,Surface Water Drainage                  ,CE024FA,New Construction Conversion and Renovation,,B4,Contractor - Site works                 ,"5,000.00",12/07/2013,C,FM CONWAY LTD                 
190,,,Highways bridges & structures           ,CE025FA,New Construction Conversion and Renovation,,B2,Site Surveys D&S Structure              ,950,09/07/2013,C,THE SAFETY FORUM LTD          
191,,,Borough Roads Maintenance               ,CE026FA,New Construction Conversion and Renovation,,B4,Contractor - Site works                 ,"2,476.41",11/07/2013,C,FM CONWAY LTD                 
192,,,Repairs to Footways                     ,CE029FA,New Construction Conversion and Renovation,,B4,Contractor - Site works                 ,"30,000.00",12/07/2013,C,FM CONWAY LTD                 
193,,,Repairs to Footways                     ,CE029FA,New Construction Conversion and Renovation,,B4,Contractor - Site works                 ,"30,000.00",12/07/2013,C,FM CONWAY LTD                 
194,,,Repairs to Footways                     ,CE029FA,New Construction Conversion and Renovation,,B4,Contractor - Site works                 ,"20,000.00",12/07/2013,C,FM CONWAY LTD                 
195,,,Leisure Centre Plant & Machine          ,CE038MA,New Construction Conversion and Renovation,,B4,Contractor - Site works                 ,700.75,30/06/2013,C,EDE'S (U.K.) LTD              
196,,,Leisure Centre Plant & Machine          ,CE038MA,New Construction Conversion and Renovation,,B4,Contractor - Site works                 ,"3,177.00",11/07/2013,C,SSD LIMITED                   
197,,,Garth Rd Workshop                       ,CE041AA,New Construction Conversion and Renovation,,B4,Contractor - Site works                 ,"53,890.55",01/07/2013,C,FARNRISE CONSTRUCTION LTD     
198,,,Climate Change Initiatives              ,CE052MA,New Construction Conversion and Renovation,,B4,Contractor - Site works                 ,"6,259.67",31/07/2012,C,REDACTED
199,,,Street scene enhancements               ,CE066FE,New Construction Conversion and Renovation,,B4,Contractor - Site works                 ,"5,650.00",16/06/2013,C,REDACTED
200,,,Street scene enhancements               ,CE066FE,New Construction Conversion and Renovation,,B4,Contractor - Site works                 ,"2,800.00",22/07/2013,C,MORTON FAIRVIEW ELEC SERVICES 
201,,,Street scene enhancements               ,CE066FE,New Construction Conversion and Renovation,,B4,Contractor - Site works                 ,"6,135.00",28/06/2013,C,PRECIA MOLEN                  
202,,,Street scene enhancements               ,CE066FE,New Construction Conversion and Renovation,,B4,Contractor - Site works                 ,"1,650.00",17/03/2013,C,REDACTED
203,,,Street scene enhancements               ,CE066FE,New Construction Conversion and Renovation,,B4,Contractor - Site works                 ,"8,025.00",28/06/2013,C,PRECIA MOLEN                  
204,,,Street scene enhancements               ,CE066FE,New Construction Conversion and Renovation,,B4,Contractor - Site works                 ,"3,220.00",27/06/2013,C,COFELY LIMITED                
205,,,Street scene enhancements               ,CE066FE,New Construction Conversion and Renovation,,B4,Contractor - Site works                 ,550,16/06/2013,C,REDACTED
206,,,Street Lighting Replacement Pr          ,CE068FA,New Construction Conversion and Renovation,,B4,Contractor - Site works                 ,984.96,17/07/2013,C,MAY GURNEY LTD T/A CARTLEDGE  
207,,,Street Lighting Replacement Pr          ,CE068FA,New Construction Conversion and Renovation,,B4,Contractor - Site works                 ,"1,048.12",18/06/2013,C,MAY GURNEY LTD T/A CARTLEDGE  
208,,,Street Lighting Replacement Pr          ,CE068FA,New Construction Conversion and Renovation,,B4,Contractor - Site works                 ,"2,249.24",28/06/2013,C,MAY GURNEY LTD T/A CARTLEDGE  
209,,,Street Lighting Replacement Pr          ,CE068FA,New Construction Conversion and Renovation,,B6,Other Costs - Site works                ,642,12/07/2013,C,UK POWER NETWORKS (OPERATIONS)
210,,,Street Lighting Replacement Pr          ,CE068FA,New Construction Conversion and Renovation,,B6,Other Costs - Site works                ,642,12/07/2013,C,UK POWER NETWORKS (OPERATIONS)
211,,,Wimbledon Area Traffic Study            ,CE077FA,New Construction Conversion and Renovation,,B2,Site Surveys D&S Structure              ,"4,750.00",25/07/2013,C,REDACTED
212,,,B544 Wimbledon Station Access           ,CE085FL,New Construction Conversion and Renovation,,B5,Suppliers - Site works                  ,"3,196.10",05/07/2013,C,HEALTHMATIC LIMITED           
213,,,Alley Gating Scheme - Fly Tip           ,CE087FA,Other Capital Expenditure,,E1,Grants                                  ,893.12,31/07/2013,C,BEVERLEY GATING ASSOCIATION   
214,,,Alley Gating Scheme - Fly Tip           ,CE087FA,Other Capital Expenditure,,E1,Grants                                  ,"8,448.75",23/07/2013,C,MONARCH PARADE ALLEY GATES    
215,,,Alley Gating Scheme - Fly Tip           ,CE087FA,Other Capital Expenditure,,E1,Grants                                  ,904.95,23/07/2013,C,AYLWARD ALLEY GATES           
216,,,Strategic corridor Mitcham              ,CE104FB,New Construction Conversion and Renovation,,B2,Site Surveys D&S Structure              ,"2,980.00",19/07/2013,C,MHC TRAFFIC                   
217,,,Strategic corridor Mitcham              ,CE104FB,New Construction Conversion and Renovation,,B6,Other Costs - Site works                ,"20,000.00",09/07/2013,C,TRANSPORT FOR LONDON          
218,,,Kingston/Hartfield Rd StratCor          ,CE104FC,Vehicles Plant Equipment and Machinery,,D5,Software                                ,"6,766.86",11/07/2013,C,PETER BRETT ASSOCIATES        
219,,,Accesibility Programme                  ,CE104FD,New Construction Conversion and Renovation,,B2,Site Surveys D&S Structure              ,650,30/06/2013,C,REDACTED
220,,,Cycle Improvements                      ,CE104RM,New Construction Conversion and Renovation,,B2,Site Surveys D&S Structure              ,"8,000.00",04/07/2013,C,REDACTED
221,,,London Rd Mitcham to Pitcairn           ,CE105FL,New Construction Conversion and Renovation,,B4,Contractor - Site works                 ,"1,208.70",12/07/2013,C,FM CONWAY LTD                 
222,,,Wim TC Accessibility & Streets          ,CE106FA,New Construction Conversion and Renovation,,B4,Contractor - Site works                 ,"30,000.00",11/07/2013,C,FM CONWAY LTD                 
223,,,Empty Homes Grant                       ,CE122RA,Other Capital Expenditure,,E1,Grants                                  ,"8,300.00",05/07/2013,C,REDACTED
224,,,Biking Borough Programme                ,CE128RA,Other Capital Expenditure,,E4,TFL Other                               ,"7,500.00",23/05/2013,C,REDACTED
225,,,Improved parking- shop parades          ,CE132FA,New Construction Conversion and Renovation,,B4,Contractor - Site works                 ,"10,000.00",11/07/2013,C,FM CONWAY LTD                 
226,,,Civic Centre refurbishment              ,CF001AB,Vehicles Plant Equipment and Machinery,,D4,Specialist furniture                    ,"1,688.40",12/07/2013,C,UNIQUE OFFICE SOLUTIONS LTD   
227,,,Civic Centre Windows                    ,CF001AK,New Construction Conversion and Renovation,,B4,Contractor - Site works                 ,"1,000.00",21/06/2013,C,DATA TECHNIQUES               
228,,,Civic Centre Windows                    ,CF001AK,New Construction Conversion and Renovation,,B4,Contractor - Site works                 ,"183,208.09",28/06/2013,C,HAZLEMERE WINDOW CO LIMITED   
229,,,Civic Centre Windows                    ,CF001AK,New Construction Conversion and Renovation,,B4,Contractor - Site works                 ,634.13,21/06/2013,C,DATA TECHNIQUES               
230,,,Repair and Maintenance                  ,CF004SA,New Construction Conversion and Renovation,,B4,Contractor - Site works                 ,583.25,28/06/2013,C,ACCESS ASSURED                
231,,,Repair and Maintenance                  ,CF004SA,New Construction Conversion and Renovation,,B4,Contractor - Site works                 ,"5,047.91",29/07/2013,C,SALTASH ENTERPRISES LTD       
232,,,Repair and Maintenance                  ,CF004SA,New Construction Conversion and Renovation,,B4,Contractor - Site works                 ,749,04/07/2013,C,ACCESS ASSURED                
233,,,Repair and Maintenance                  ,CF004SA,New Construction Conversion and Renovation,,B4,Contractor - Site works                 ,749,04/07/2013,C,ACCESS ASSURED                
234,,,Repair and Maintenance                  ,CF004SA,New Construction Conversion and Renovation,,B4,Contractor - Site works                 ,"1,048.60",28/06/2013,C,ACCESS ASSURED                
235,,,St Mary's expansion                     ,CS008RA,New Construction Conversion and Renovation,,B1,Consultants Fees D&S Structure          ,"13,943.00",03/07/2013,C,NPS PROPERTY CONSULTANTS LTD  
236,,,St Mary's expansion                     ,CS008RA,New Construction Conversion and Renovation,,B2,Site Surveys D&S Structure              ,800,28/06/2013,C,ALPHA ACOUSTICS               
237,,,All Saints/ South Wim YCC exp           ,CS008SB,New Construction Conversion and Renovation,,B2,Site Surveys D&S Structure              ,"18,662.50",17/07/2013,C,THAMES WATER UTILITIES LIMITED
238,,,All Saints/ South Wim YCC exp           ,CS008SB,New Construction Conversion and Renovation,,B6,Other Costs - Site works                ,"1,330.00",26/06/2013,C,REDACTED
239,,,Cranmer expansion                       ,CS010AA,New Construction Conversion and Renovation,,B4,Contractor - Site works                 ,"42,602.00",05/07/2013,C,WILLMOTT DIXON CONSTRUCT'N LTD
240,,,Hollymount Permanent Expansion          ,CS011AA,New Construction Conversion and Renovation,,B4,Contractor - Site works                 ,"15,241.00",02/07/2013,C,R DURTNELL & SONS LTD         
241,,,Garden PCP                              ,CS013AA,Vehicles Plant Equipment and Machinery,,D3,Equipment                               ,"2,987.00",01/05/2013,C,MM-ICT LIMITED                
242,,,Gorringe Park expansion                 ,CS018AB,New Construction Conversion and Renovation,,B1,Consultants Fees D&S Structure          ,"15,805.00",11/06/2013,C,HAVERSTOCK ASSOCIATES LLP     
243,,,Gorringe Park expansion                 ,CS018AB,New Construction Conversion and Renovation,,B1,Consultants Fees D&S Structure          ,735,17/06/2013,C,PRIORITY RISK LTD             
244,,,Gorringe Park expansion                 ,CS018AB,New Construction Conversion and Renovation,,B4,Contractor - Site works                 ,"81,000.00",04/07/2013,C,GEE CONSTRUCTION LTD          
245,,,Hillcross School Expansion              ,CS020AC,New Construction Conversion and Renovation,,B1,Consultants Fees D&S Structure          ,"22,344.30",24/07/2013,C,CURL LA TOURELLE ARCHITECTS   
246,,,Hillcross School Expansion              ,CS020AC,New Construction Conversion and Renovation,,B1,Consultants Fees D&S Structure          ,"22,344.30",10/07/2013,C,CURL LA TOURELLE ARCHITECTS   
247,,,Hillcross School Expansion              ,CS020AC,New Construction Conversion and Renovation,,B6,Other Costs - Site works                ,"2,189.00",05/07/2013,C,SUTTON AND EAST SURREY WATER  
248,,,Merton Abbey Temp Accomodation          ,CS022AC,New Construction Conversion and Renovation,,B2,Site Surveys D&S Structure              ,"3,973.00",28/06/2013,C,MLM MULTIDISCIPLINARY CONSULT.
249,,,Merton Abbey Temp Accomodation          ,CS022AC,New Construction Conversion and Renovation,,B2,Site Surveys D&S Structure              ,"1,045.52",29/06/2013,C,KEEGANS LIMITED               
250,,,Merton Abbey Temp Accomodation          ,CS022AC,Other Capital Expenditure,,E3,Miscellaneous Capital Expendit          ,"1,300.00",12/07/2013,C,THAMES WATER UTILITIES LIMITED
251,,,Pelham School Expansion                 ,CS023AC,New Construction Conversion and Renovation,,B1,Consultants Fees D&S Structure          ,"47,185.00",17/06/2013,C,HAVERSTOCK ASSOCIATES LLP     
252,,,Cricket Grn Exp-Chapel Orchard          ,CS026AC,New Construction Conversion and Renovation,,B1,Consultants Fees D&S Structure          ,"4,053.96",24/06/2013,C,EC HARRIS LLP                 
253,,,St Ann's Primary Phase                  ,CS032AA,New Construction Conversion and Renovation,,B1,Consultants Fees D&S Structure          ,"2,157.22",25/07/2013,C,EC HARRIS LLP                 
254,,,Poplar Permanent Expansion              ,CS034AB,New Construction Conversion and Renovation,,B1,Consultants Fees D&S Structure          ,625,24/06/2013,C,EIGHT ASSOCIATES              
255,,,Poplar Permanent Expansion              ,CS034AB,New Construction Conversion and Renovation,,B1,Consultants Fees D&S Structure          ,"2,530.00",26/07/2013,C,PELLINGS LLP                  
256,,,Poplar Permanent Expansion              ,CS034AB,New Construction Conversion and Renovation,,B2,Site Surveys D&S Structure              ,"1,897.77",29/06/2013,C,KEEGANS LIMITED               
257,,,Holy Trinity Expansion                  ,CS044RA,New Construction Conversion and Renovation,,B1,Consultants Fees D&S Structure          ,"6,338.96",20/06/2013,C,CURL LA TOURELLE ARCHITECTS   
258,,,Holy Trinity Expansion                  ,CS044RA,New Construction Conversion and Renovation,,B1,Consultants Fees D&S Structure          ,"5,123.45",20/06/2013,C,CURL LA TOURELLE ARCHITECTS   
259,,,Holy Trinity Expansion                  ,CS044RA,New Construction Conversion and Renovation,,B4,Contractor - Site works                 ,"31,366.59",01/07/2013,C,R DURTNELL & SONS LTD         
260,,,Singlegate expansion                    ,CS049AA,New Construction Conversion and Renovation,,B1,Consultants Fees D&S Structure          ,"32,960.00",24/07/2013,C,ATKINS LIMITED                
261,,,Singlegate expansion                    ,CS049AA,New Construction Conversion and Renovation,,B4,Contractor - Site works                 ,"1,042.79",29/05/2013,C,COFELY LIMITED                
262,,,Wimbledon Park expansion                ,CS050AA,New Construction Conversion and Renovation,,B1,Consultants Fees D&S Structure          ,"1,062.00",30/06/2013,C,SYNERGY CPC LLP               
263,,,Wimbledon Park expansion                ,CS050AA,New Construction Conversion and Renovation,,B4,Contractor - Site works                 ,"207,201.76",28/06/2013,C,GEE CONSTRUCTION LTD          
264,,,Merton Pk- Entrance adaptation          ,CS052AB,New Construction Conversion and Renovation,,B4,Contractor - Site works                 ,"6,787.15",10/07/2013,C,R DURTNELL & SONS LTD         
265,,,Contingency                             ,CS080SC,New Construction Conversion and Renovation,,B1,Consultants Fees D&S Structure          ,"1,257.72",23/04/2013,C,ATKINS LIMITED                
266,,,Breaks-disabled children grant          ,CS085RA,New Construction Conversion and Renovation,,B4,Contractor - Site works                 ,688.41,27/03/2013,C,COFELY LIMITED                
267,,,Breaks-disabled children grant          ,CS085RA,New Construction Conversion and Renovation,,B4,Contractor - Site works                 ,"2,000.00",27/03/2013,C,COFELY LIMITED                
268,,,Breaks-disabled children grant          ,CS085RA,Vehicles Plant Equipment and Machinery,,D4,Specialist furniture                    ,"4,505.00",07/05/2013,C,FREE PLAY                     
269,,,Secondary School expansion              ,CS085SA,New Construction Conversion and Renovation,,B1,Consultants Fees D&S Structure          ,"14,550.00",24/06/2013,C,ATKINS LIMITED                
270,,,Lonesome - Main Heating                 ,CS091AD,New Construction Conversion and Renovation,,B1,Consultants Fees D&S Structure          ,735,17/06/2013,C,PRIORITY RISK LTD             
271,,,The Sherwood-Boiler&Perim Fnc           ,CS091AF,New Construction Conversion and Renovation,,B1,Consultants Fees D&S Structure          ,735,17/06/2013,C,PRIORITY RISK LTD             
272,,,Wimb Chase-Dining Hall Roof             ,CS091AH,New Construction Conversion and Renovation,,B1,Consultants Fees D&S Structure          ,735,17/06/2013,C,PRIORITY RISK LTD             
273,,,Disaster recovery                       ,CT003EA,Vehicles Plant Equipment and Machinery,,D5,Software                                ,"1,027.56",16/07/2013,C,ORGANISED COMPUTER SYSTEMS LTD
274,,,IT Equipment                            ,CT006EA,Vehicles Plant Equipment and Machinery,,D3,Equipment                               ,"1,184.00",08/05/2013,C,SPECIALIST COMPUTER CENT. PLC 
275,,,IT Equipment                            ,CT006EA,Vehicles Plant Equipment and Machinery,,D3,Equipment                               ,"7,200.00",08/07/2013,C,VIGLEN LIMITED                
276,,,IT Equipment                            ,CT006EA,Vehicles Plant Equipment and Machinery,,D3,Equipment                               ,"1,463.00",22/07/2013,C,COMPUTERLAND                  
277,,,IT Equipment                            ,CT006EA,Vehicles Plant Equipment and Machinery,,D3,Equipment                               ,"28,000.00",22/07/2013,C,COMPUTERLAND                  
278,,,IT Equipment                            ,CT006EA,Vehicles Plant Equipment and Machinery,,D5,Software                                ,"2,590.00",16/07/2013,C,SOFTCAT LTD                   
279,,,CTTE DECISION MAKING SYSTEM           ,CT019NA,Vehicles Plant Equipment and Machinery,,D5,Software                                ,"2,000.00",14/06/2013,C,MODERN MINDSET                
280,Central Services,Council tax collection,Local Taxation Services                 ,E02100,Supplies & Services           ,Services                      ,DF09,Miscellaneous Fees                      ,"1,000.00",01/08/2013,R,WHITMORE LAW LLP              
281,Central Services,Council tax collection,Local Taxation Services                 ,E02100,Supplies & Services           ,Services                      ,DF09,Miscellaneous Fees                      ,"4,526.68",01/08/2013,R,WHITMORE LAW LLP              
282,Central Services,Council tax collection,Local Taxation Services                 ,E02100,Supplies & Services           ,Services                      ,DF11,Counsel's Fees                          ,920,24/07/2013,R,WELBECK LAW LLP               
283,Central Services,Council tax collection,Local Taxation Services                 ,E02100,Supplies & Services           ,Services                      ,DF11,Counsel's Fees                          ,700,25/06/2013,R,WELBECK LAW LLP               
284,Central Services,Council tax collection,Local Taxation Services                 ,E02100,Supplies & Services           ,Services                      ,DF11,Counsel's Fees                          ,"1,171.50",11/07/2013,R,WELBECK LAW LLP               
285,Central Services,Council tax collection,Local Taxation Services                 ,E02100,Supplies & Services           ,Services                      ,DF11,Counsel's Fees                          ,606,21/06/2013,R,WELBECK LAW LLP               
286,Central Services,Council tax collection,Local Taxation Services                 ,E02100,Supplies & Services           ,Services                      ,DF11,Counsel's Fees                          ,"1,125.00",07/07/2013,R,WORLD OF 1DA                  
287,Central Services,Council tax collection,Local Taxation Services                 ,E02100,Supplies & Services           ,Services                      ,DF11,Counsel's Fees                          ,700,21/06/2013,R,WELBECK LAW LLP               
288,Central Services,Council tax collection,Local Taxation Services                 ,E02100,Supplies & Services           ,Comms and Computing           ,DG09,Computer Purchases - Misc               ,500,20/06/2013,R,CIVICA UK LIMITED             
289,Central Services,Council tax collection,Local Taxation Services                 ,E02100,Supplies & Services           ,Comms and Computing           ,DG09,Computer Purchases - Misc               ,725,25/06/2013,R,MAG:NET SOLUTIONS             
290,Central Services,Council tax collection,Local Taxation Services                 ,E02100,Third Party Payments          ,Private Contractors           ,EH01,Miscellaneous Agency Services           ,"1,176.90",02/06/2013,R,COMMERCIAL COLLECTION SERVICES
291,Central Services,Council tax collection,Local Taxation Services                 ,E02100,Third Party Payments          ,Private Contractors           ,EH01,Miscellaneous Agency Services           ,"1,076.87",01/04/2013,R,COMMERCIAL COLLECTION SERVICES
292,Central Services,Council tax collection,Local Taxation Bailiffs                 ,E02101,Supplies & Services           ,Comms and Computing           ,DG07,Computer Software                       ,"1,300.00",04/07/2013,R,CLEARTONE TELECOMS LTD        
293,Central Services,Council tax collection,Local Taxation Bailiffs                 ,E02101,Supplies & Services           ,Comms and Computing           ,DG07,Computer Software                       ,750,04/07/2013,R,CLEARTONE TELECOMS LTD        
294,Central Services,Council tax collection,Local Taxation Bailiffs                 ,E02101,Supplies & Services           ,Comms and Computing           ,DG07,Computer Software                       ,"1,995.00",04/07/2013,R,CLEARTONE TELECOMS LTD        
295,Central Services,Council tax collection,Local Taxation Bailiffs                 ,E02101,Supplies & Services           ,Comms and Computing           ,DG07,Computer Software                       ,"4,865.00",04/07/2013,R,CLEARTONE TELECOMS LTD        
296,Housing Services,HB Administration,Benefits Administration                 ,E02120,Supplies & Services           ,Comms and Computing           ,DG09,Computer Purchases - Misc               ,"3,600.00",27/11/2012,R,CIVICA UK LIMITED             
297,Housing Services,HB Administration,Benefits Administration                 ,E02120,Supplies & Services           ,Comms and Computing           ,DG09,Computer Purchases - Misc               ,"3,500.00",12/07/2013,R,CIVICA UK LIMITED             
298,Housing Services,HB Administration,Benefits Administration                 ,E02120,Supplies & Services           ,Comms and Computing           ,DG09,Computer Purchases - Misc               ,"1,125.00",25/07/2013,R,CIVICA UK LIMITED             
299,Housing Services,HB Administration,Benefits Administration                 ,E02120,Supplies & Services           ,Comms and Computing           ,DG09,Computer Purchases - Misc               ,"5,400.00",27/11/2012,R,CIVICA UK LIMITED             
300,Housing Services,HB Administration,Benefits Administration                 ,E02120,Supplies & Services           ,Comms and Computing           ,DG09,Computer Purchases - Misc               ,"5,865.00",25/07/2013,R,CIVICA UK LIMITED             
301,Housing Services,HB Administration,Benefits Administration                 ,E02120,Supplies & Services           ,Comms and Computing           ,DG09,Computer Purchases - Misc               ,"6,607.06",22/07/2013,R,CIVICA UK LIMITED             
302,Housing Services,HB Administration,Benefits Administration                 ,E02120,Supplies & Services           ,Comms and Computing           ,DG09,Computer Purchases - Misc               ,"3,000.00",12/07/2013,R,CIVICA UK LIMITED             
303,Housing Services,HB Administration,Benefits Administration                 ,E02120,Supplies & Services           ,Comms and Computing           ,DG09,Computer Purchases - Misc               ,600,12/07/2013,R,CIVICA UK LIMITED             
304,Housing Services,HB Administration,Benefits Administration                 ,E02120,Supplies & Services           ,Comms and Computing           ,DG09,Computer Purchases - Misc               ,"7,000.00",12/07/2013,R,CIVICA UK LIMITED             
305,Central Services,SupS Payroll,Payroll                                 ,E02140,Third Party Payments          ,Private Contractors           ,EH10,Contract Payments                       ,"12,738.57",24/06/2013,R,LONDON BOROUGH OF SUTTON      
306,Central Services,SupS Payroll,Payroll                                 ,E02140,Third Party Payments          ,Private Contractors           ,EH10,Contract Payments                       ,"13,833.77",24/06/2013,R,LONDON BOROUGH OF SUTTON      
307,Central Services,SupS Pensions,Pensions                                ,E02160,Supplies & Services           ,Comms and Computing           ,DG02,Software Licences                       ,"4,586.95",12/07/2013,R,HEYWOOD                       
308,Central Services,SupS Pensions,Pensions                                ,E02160,Supplies & Services           ,Comms and Computing           ,DG02,Software Licences                       ,"18,756.10",30/04/2013,R,HEYWOOD                       
309,Central Services,SupS Facilities,Security Services                       ,E02221,Employees                     ,Direct Employee Expenses      ,AA17,Agency Staff & Casual Paymts            ,"2,737.80",01/07/2013,R,SIGHT & SOUND                 
310,Central Services,SupS Facilities,Security Services                       ,E02221,Employees                     ,Direct Employee Expenses      ,AA17,Agency Staff & Casual Paymts            ,"1,006.20",01/07/2013,R,SIGHT & SOUND                 
311,Central Services,SupS Facilities,Civic Centre                            ,E02222,Premises Related Expenditure  ,RepairsAlterations&MtceOfBldgs,BA29,BUILD MAINT MGT FEES                    ,957.6,26/07/2013,R,UNIQUE OFFICE SOLUTIONS LTD   
312,Central Services,SupS Facilities,Civic Centre                            ,E02222,Premises Related Expenditure  ,Cleaning and Domestic Supplies,BH01,Cleaning Materials                      ,504,23/07/2013,R,GREENHAM TRADING LTD          
313,Central Services,SupS Facilities,Civic Centre                            ,E02222,Premises Related Expenditure  ,Cleaning and Domestic Supplies,BH01,Cleaning Materials                      ,504,04/07/2013,R,GREENHAM TRADING LTD          
314,Central Services,SupS Facilities,Civic Centre                            ,E02222,Premises Related Expenditure  ,Cleaning and Domestic Supplies,BH03,Cleaning Services                       ,"1,215.98",01/07/2013,R,BIRKIN CLEANING SERVICES LTD  
315,Central Services,SupS Facilities,Civic Centre                            ,E02222,Premises Related Expenditure  ,Cleaning and Domestic Supplies,BH03,Cleaning Services                       ,"1,642.40",01/07/2013,R,BIRKIN CLEANING SERVICES LTD  
316,Central Services,SupS Facilities,Civic Centre                            ,E02222,Premises Related Expenditure  ,Cleaning and Domestic Supplies,BH03,Cleaning Services                       ,819.47,01/07/2013,R,BIRKIN CLEANING SERVICES LTD  
317,Central Services,SupS Facilities,Civic Centre                            ,E02222,Premises Related Expenditure  ,Cleaning and Domestic Supplies,BH03,Cleaning Services                       ,"1,395.29",01/07/2013,R,BIRKIN CLEANING SERVICES LTD  
318,Central Services,SupS Facilities,Civic Centre                            ,E02222,Premises Related Expenditure  ,Cleaning and Domestic Supplies,BH03,Cleaning Services                       ,"1,511.31",01/07/2013,R,BIRKIN CLEANING SERVICES LTD  
319,Central Services,SupS Facilities,Civic Centre                            ,E02222,Premises Related Expenditure  ,Cleaning and Domestic Supplies,BH03,Cleaning Services                       ,"6,473.18",01/07/2013,R,BIRKIN CLEANING SERVICES LTD  
320,Central Services,SupS Facilities,Civic Centre                            ,E02222,Premises Related Expenditure  ,Cleaning and Domestic Supplies,BH03,Cleaning Services                       ,"3,035.93",01/07/2013,R,BIRKIN CLEANING SERVICES LTD  
321,Central Services,SupS Facilities,Civic Centre                            ,E02222,Premises Related Expenditure  ,Cleaning and Domestic Supplies,BH03,Cleaning Services                       ,"1,199.41",01/07/2013,R,BIRKIN CLEANING SERVICES LTD  
322,Central Services,SupS Facilities,Civic Centre                            ,E02222,Premises Related Expenditure  ,Cleaning and Domestic Supplies,BH03,Cleaning Services                       ,"1,464.69",01/07/2013,R,BIRKIN CLEANING SERVICES LTD  
323,Central Services,SupS Facilities,Civic Centre                            ,E02222,Supplies & Services           ,Equip Furniture/Materials     ,DA01,Equipment - R & M                       ,"1,030.00",11/07/2013,R,SSD LIMITED                   
324,Central Services,SupS Facilities,Civic Centre                            ,E02222,Supplies & Services           ,Equip Furniture/Materials     ,DA01,Equipment - R & M                       ,"3,403.58",25/06/2013,R,THE SAVILLE GROUP LIMITED     
325,Central Services,SupS Facilities,Civic Centre                            ,E02222,Supplies & Services           ,Equip Furniture/Materials     ,DA01,Equipment - R & M                       ,"1,081.00",11/07/2013,R,SSD LIMITED                   
326,Central Services,SupS Facilities,Civic Centre                            ,E02222,Supplies & Services           ,Equip Furniture/Materials     ,DA01,Equipment - R & M                       ,"6,958.00",11/07/2013,R,SSD LIMITED                   
327,Central Services,SupS Facilities,Civic Centre                            ,E02222,Supplies & Services           ,Equip Furniture/Materials     ,DA01,Equipment - R & M                       ,"1,575.00",11/07/2013,R,SSD LIMITED                   
328,Central Services,SupS Facilities,Civic Centre                            ,E02222,Supplies & Services           ,Equip Furniture/Materials     ,DA02,Op. Leasing Equipment                   ,"9,722.00",27/07/2013,R,GREENWORKS                    
329,Central Services,SupS Facilities,Facilities                              ,E02231,Employees                     ,Indirect Employee Expenses    ,AB02,Recruitment Adverts                     ,"1,049.00",28/06/2013,R,PENNA COMMUNICATIONS (NO 2 A/C
330,Central Services,SupS Facilities,Facilities                              ,E02231,Premises Related Expenditure  ,RepairsAlterations&MtceOfBldgs,BA84,Asbestos                                ,"2,409.00",24/05/2013,R,LUCION ENVIRONMENTAL LTD      
331,Central Services,SupS Facilities,Facilities                              ,E02231,Premises Related Expenditure  ,RepairsAlterations&MtceOfBldgs,BA90,Water Hygiene                           ,574,31/05/2013,R,HYDRO-X WATER TREATMENT LTD   
332,Central Services,SupS Facilities,Facilities                              ,E02231,Supplies & Services           ,Services                      ,DF09,Miscellaneous Fees                      ,"1,099.19",31/05/2013,R,STARK SOFTWARE INTERNATIONAL  
333,Central Services,SupS Facilities,Corporate Services Buildings            ,E02240,Premises Related Expenditure  ,RepairsAlterations&MtceOfBldgs,BA05,DDM - Electrical                        ,600,11/07/2013,R,SSD LIMITED                   
334,Central Services,SupS Facilities,Corporate Services Buildings            ,E02240,Premises Related Expenditure  ,RepairsAlterations&MtceOfBldgs,BA05,DDM - Electrical                        ,"1,241.52",24/06/2013,R,COFELY LIMITED                
335,Central Services,SupS Facilities,Corporate Services Buildings            ,E02240,Premises Related Expenditure  ,RepairsAlterations&MtceOfBldgs,BA05,DDM - Electrical                        ,"1,241.53",24/06/2013,R,COFELY LIMITED                
336,Central Services,SupS Facilities,Corporate Services Buildings            ,E02240,Premises Related Expenditure  ,RepairsAlterations&MtceOfBldgs,BA06,Repairs & Maintenance General           ,525,14/05/2013,R,RITEC DECORATORS LIMITED      
337,Central Services,SupS Facilities,Corporate Services Buildings            ,E02240,Premises Related Expenditure  ,Energy Costs                  ,BB02,Electricity                             ,"17,510.24",04/07/2013,R,SCOTTISHPOWER                 
338,Central Services,SupS Facilities,Corporate Services Buildings            ,E02240,Premises Related Expenditure  ,Energy Costs                  ,BB02,Electricity                             ,"11,908.69",07/06/2013,R,SCOTTISHPOWER                 
339,Central Services,SupS Facilities,Corporate Services Buildings            ,E02240,Premises Related Expenditure  ,Energy Costs                  ,BB02,Electricity                             ,898.91,01/07/2013,R,EDF ENERGY 1 LIMITED          
340,Central Services,SupS Facilities,Corporate Services Buildings            ,E02240,Premises Related Expenditure  ,Energy Costs                  ,BB03,Gas (incl. Butane)                      ,"5,464.85",17/07/2013,R,GAZPROM MARKETING&TRADING LTD 
341,Central Services,SupS Facilities,Corporate Services Buildings            ,E02240,Premises Related Expenditure  ,Energy Costs                  ,BB03,Gas (incl. Butane)                      ,"6,620.50",17/07/2013,R,GAZPROM MARKETING&TRADING LTD 
342,Central Services,SupS Facilities,Corporate Services Buildings            ,E02240,Premises Related Expenditure  ,Energy Costs                  ,BB03,Gas (incl. Butane)                      ,"6,959.27",25/05/2013,R,KENT COUNTY COUNCIL           
343,Central Services,SupS Facilities,Corporate Services Buildings            ,E02240,Premises Related Expenditure  ,Energy Costs                  ,BB03,Gas (incl. Butane)                      ,"11,723.56",17/07/2013,R,GAZPROM MARKETING&TRADING LTD 
344,Central Services,SupS Facilities,Corporate Services Buildings            ,E02240,Premises Related Expenditure  ,Energy Costs                  ,BB03,Gas (incl. Butane)                      ,"9,157.53",25/05/2013,R,KENT COUNTY COUNCIL           
345,Central Services,SupS Facilities,Corporate Services Buildings            ,E02240,Premises Related Expenditure  ,Energy Costs                  ,BB03,Gas (incl. Butane)                      ,517.68,14/05/2013,R,GAZPROM MARKETING&TRADING LTD 
346,Central Services,SupS Facilities,Corporate Services Buildings            ,E02240,Premises Related Expenditure  ,Water Services                ,BE01,Use of Water (Metered)                  ,"1,303.37",28/06/2013,R,SUTTON AND EAST SURREY WATER  
347,Central Services,SupS Facilities,Corporate Services Buildings            ,E02240,Premises Related Expenditure  ,Water Services                ,BE01,Use of Water (Metered)                  ,"1,349.66",28/06/2013,R,SUTTON AND EAST SURREY WATER  
348,Childrens & Education Services,Strategic Management,CSF Buildings                           ,E02256,Premises Related Expenditure  ,RepairsAlterations&MtceOfBldgs,BA01,DDM - General Building                  ,500,28/06/2013,R,SALTASH ENTERPRISES LTD       
349,Cultural Env Reg&Plan Services,Parks & Open Spaces,E & R Buildings                         ,E02344,Premises Related Expenditure  ,RepairsAlterations&MtceOfBldgs,BA01,DDM - General Building                  ,648.22,27/06/2013,R,PJ HARVEY & CO LTD            
350,Adult Social Care,PS u65 Day Care,C & H Buildings                         ,E02345,Premises Related Expenditure  ,RepairsAlterations&MtceOfBldgs,BA01,DDM - General Building                  ,723.66,28/06/2013,R,SALTASH ENTERPRISES LTD       
351,Adult Social Care,PS u65 Day Care,C & H Buildings                         ,E02345,Premises Related Expenditure  ,RepairsAlterations&MtceOfBldgs,BA01,DDM - General Building                  ,520.32,20/06/2013,R,COFELY LIMITED                
352,Cultural Env Reg&Plan Services,Parks & Open Spaces,Leisure Buildings                       ,E02350,Premises Related Expenditure  ,RepairsAlterations&MtceOfBldgs,BA01,DDM - General Building                  ,903.5,05/07/2013,R,SALTASH ENTERPRISES LTD       
353,Cultural Env Reg&Plan Services,Parks & Open Spaces,Leisure Buildings                       ,E02350,Premises Related Expenditure  ,RepairsAlterations&MtceOfBldgs,BA03,DDM - Mechanical                        ,"1,000.59",24/06/2013,R,COFELY LIMITED                
354,Cultural Env Reg&Plan Services,Parks & Open Spaces,Leisure Buildings                       ,E02350,Premises Related Expenditure  ,RepairsAlterations&MtceOfBldgs,BA03,DDM - Mechanical                        ,730.13,28/06/2013,R,CHUBB FIRE LIMITED            
355,Cultural Env Reg&Plan Services,Parks & Open Spaces,Leisure Buildings                       ,E02350,Premises Related Expenditure  ,RepairsAlterations&MtceOfBldgs,BA03,DDM - Mechanical                        ,622.81,09/07/2013,R,CHUBB FIRE LIMITED            
356,Central Services,SupS DOF,BUSINESS PARTNERS                       ,E04059,Employees                     ,Direct Employee Expenses      ,AA17,Agency Staff & Casual Paymts            ,"4,875.00",04/07/2013,R,REDACTED
357,Central Services,SupS DOF,AD RESOURCES                            ,E04061,Employees                     ,Direct Employee Expenses      ,AA17,Agency Staff & Casual Paymts            ,"15,000.00",05/07/2013,R,REDACTED
358,Central Services,SupS DOF,AD RESOURCES                            ,E04061,Employees                     ,Direct Employee Expenses      ,AA17,Agency Staff & Casual Paymts            ,"15,750.00",05/07/2013,R,REDACTED
359,Central Services,SupS DOF,AD RESOURCES                            ,E04061,Supplies & Services           ,Services                      ,DF03,CONSULTANTS                             ,-580,11/07/2013,R,UNISERVE CONSULTING LIMITED   
360,Central Services,SupS DOF,AD RESOURCES                            ,E04061,Supplies & Services           ,Services                      ,DF03,CONSULTANTS                             ,"5,980.00",02/07/2013,R,PUBLIC SECTOR CONSULTANTS     
361,Central Services,SupS Strategic Finance,Business Planning                       ,E06221,Supplies & Services           ,Comms and Computing           ,DG50,Other IT Expenditure                    ,"4,000.00",14/06/2013,R,COVALENT SOFTWARE             
362,Central Services,SupS Strategic Finance,Treasury & Insurance                    ,E06222,Employees                     ,Direct Employee Expenses      ,AA17,Agency Staff & Casual Paymts            ,"13,630.00",17/05/2013,R,RANDSTAD FIN & PROF LTD.      
363,Central Services,GENERATED ACCOUNT,Parking Cash Collect'n Contrct          ,E06225,Third Party Payments          ,Private Contractors           ,EH02,Miscellaneous Hired Services            ,"1,015.40",28/06/2013,R,BANKING AUTOMATION LTD        
364,Central Services,GENERATED ACCOUNT,Parking Cash Collect'n Contrct          ,E06225,Third Party Payments          ,Private Contractors           ,EH02,Miscellaneous Hired Services            ,"10,058.90",28/06/2013,R,BANKING AUTOMATION LTD        
365,Central Services,GENERATED ACCOUNT,Establishments' Cash Collect'n          ,E06226,Third Party Payments          ,Private Contractors           ,EH02,Miscellaneous Hired Services            ,522.56,28/06/2013,R,LOOMIS UK LTD                 
366,Central Services,GENERATED ACCOUNT,Establishments' Cash Collect'n          ,E06226,Third Party Payments          ,Private Contractors           ,EH02,Miscellaneous Hired Services            ,642.85,31/05/2013,R,LOOMIS UK LTD                 
367,Central Services,SupS DOF,Service Accountancy                     ,E06227,Employees                     ,Direct Employee Expenses      ,AA17,Agency Staff & Casual Paymts            ,"4,600.00",17/05/2013,R,RANDSTAD FIN & PROF LTD.      
368,Central Services,SupS DOF,Service Accountancy                     ,E06227,Employees                     ,Direct Employee Expenses      ,AA17,Agency Staff & Casual Paymts            ,"1,840.00",01/07/2013,R,RANDSTAD FIN & PROF LTD.      
369,Central Services,SupS Legal,AD CORPORATE GOVERNANCE               ,E10279,Supplies & Services           ,Services                      ,DF03,Consultants                             ,"3,272.50",05/06/2013,R,REDACTED
370,Central Services,SupS Legal,Legal Services                          ,E10282,Supplies & Services           ,Services                      ,DF28,Court Fees                              ,"4,450.00",05/07/2013,R,REDACTED
371,Central Services,SupS Legal,Legal Services                          ,E10282,Supplies & Services           ,Services                      ,DF28,Court Fees                              ,535,16/07/2013,R,REDACTED
372,Central Services,SupS Legal,Legal Services                          ,E10282,Supplies & Services           ,Services                      ,DF28,Court Fees                              ,"3,320.00",15/07/2013,R,REDACTED
373,Central Services,SupS Legal,Legal Services                          ,E10282,Supplies & Services           ,Services                      ,DF28,Court Fees                              ,"11,095.00",04/07/2013,R,REDACTED
374,Central Services,SupS Legal,Shared Legal Service                    ,E10288,Supplies & Services           ,Services                      ,DF09,Miscellaneous Fees                      ,907.65,30/06/2013,R,WINCANTON RECORDS MANAGEMENT  
375,Central Services,SupS Legal,Shared Legal Service                    ,E10288,Supplies & Services           ,Services                      ,DF11,Counsel's Fees                          ,"1,390.00",02/07/2013,R,REDACTED
376,Central Services,SupS Legal,Shared Legal Service                    ,E10288,Supplies & Services           ,Services                      ,DF11,Counsel's Fees                          ,"1,500.00",08/07/2013,R,REDACTED
377,Central Services,SupS Legal,Shared Legal Service                    ,E10288,Supplies & Services           ,Services                      ,DF95,Services from Provider                  ,694.2,19/02/2013,R,KENT COUNTY COUNCIL           
378,Central Services,SupS Legal,Shared Legal Service                    ,E10288,Supplies & Services           ,Grants and Subscriptions      ,DJ04,Subscriptions                           ,500,22/07/2013,R,LGG                           
379,Central Services,SupS Legal,Richmond Legal                          ,E10289,Supplies & Services           ,Services                      ,DF11,Counsel's Fees                          ,"8,250.00",12/06/2013,R,REDACTED
380,Central Services,SupS Legal,Richmond Legal                          ,E10289,Supplies & Services           ,Services                      ,DF11,Counsel's Fees                          ,"1,600.00",24/06/2013,R,REDACTED
381,Central Services,SupS Legal,Richmond Legal                          ,E10289,Supplies & Services           ,Services                      ,DF11,Counsel's Fees                          ,690,29/01/2013,R,REDACTED
382,Central Services,SupS Legal,Richmond Legal                          ,E10289,Supplies & Services           ,Services                      ,DF11,Counsel's Fees                          ,"1,500.00",18/05/2013,R,REDACTED
383,Central Services,SupS Legal,Richmond Legal                          ,E10289,Supplies & Services           ,Services                      ,DF95,Services from Provider                  ,"4,499.75",13/05/2013,R,REDACTED
384,Central Services,SupS Legal,Richmond Legal                          ,E10289,Supplies & Services           ,Expenses                      ,DH16,Compensation Payments                   ,"24,063.98",29/05/2013,R,REDACTED
385,Central Services,SupS Legal,4 Borough Legal Service                 ,E10290,Supplies & Services           ,Services                      ,DF03,Consultants                             ,"9,500.00",21/06/2013,R,LEXIS NEXIS                   
386,Central Services,SupS Legal,4 Borough Legal Service                 ,E10290,Supplies & Services           ,Services                      ,DF03,Consultants                             ,"2,850.00",20/06/2013,R,LEXIS NEXIS                   
387,Central Services,SupS IT,AD Business Improvement                 ,E14358,Employees                     ,Indirect Employee Expenses    ,AB57,External Training Costs                 ,"4,629.00",15/07/2013,R,PITNEY BOWES SOFTWARE LTD     
388,Central Services,SupS IT,BI IT Projects                          ,E14360,Employees                     ,Direct Employee Expenses      ,AA17,Agency Staff & Casual Paymts            ,"1,625.05",01/07/2013,R,REDACTED
389,Central Services,SupS IT,AD I&T                                  ,E14363,Employees                     ,Direct Employee Expenses      ,AA17,Agency Staff & Casual Paymts            ,"11,100.00",30/06/2013,R,GATENBY SANDERSON             
390,Central Services,SupS IT,Systems & Projects                      ,E14366,Supplies & Services           ,Comms and Computing           ,DG02,Software Licences                       ,"19,000.00",24/07/2013,R,FIRMSTEP                      
391,Central Services,SupS IT,Systems & Projects                      ,E14366,Supplies & Services           ,Comms and Computing           ,DG63,Software Licences - Data                ,"1,136.42",18/06/2013,R,CACI LIMITED                  
392,Central Services,SupS IT,Systems & Projects                      ,E14366,Supplies & Services           ,Comms and Computing           ,DG63,Software Licences - Data                ,"1,307.16",18/06/2013,R,CACI LIMITED                  
393,Central Services,SupS IT,Systems & Projects                      ,E14366,Supplies & Services           ,Comms and Computing           ,DG63,Software Licences - Data                ,"3,592.18",18/06/2013,R,CACI LIMITED                  
394,Central Services,SupS IT,Systems & Projects                      ,E14366,Supplies & Services           ,Comms and Computing           ,DG63,Software Licences - Data                ,"1,855.80",11/06/2013,R,CIVICA UK LIMITED             
395,Central Services,SupS IT,Systems & Projects                      ,E14366,Supplies & Services           ,Comms and Computing           ,DG63,Software Licences - Data                ,"1,424.00",12/06/2013,R,PITNEY BOWES SOFTWARE LTD     
396,Central Services,SupS IT,Systems & Projects                      ,E14366,Supplies & Services           ,Comms and Computing           ,DG63,Software Licences - Data                ,533.28,18/06/2013,R,CACI LIMITED                  
397,Central Services,SupS IT,Systems & Projects                      ,E14366,Supplies & Services           ,Comms and Computing           ,DG63,Software Licences - Data                ,681.85,18/06/2013,R,CACI LIMITED                  
398,Central Services,SupS IT,Systems & Projects                      ,E14366,Supplies & Services           ,Comms and Computing           ,DG63,Software Licences - Data                ,"1,097.61",18/06/2013,R,CACI LIMITED                  
399,Central Services,SupS IT,Systems & Projects                      ,E14366,Supplies & Services           ,Comms and Computing           ,DG63,Software Licences - Data                ,"2,133.14",18/06/2013,R,CACI LIMITED                  
400,Central Services,SupS IT,Systems & Projects                      ,E14366,Supplies & Services           ,Comms and Computing           ,DG63,Software Licences - Data                ,831.52,18/06/2013,R,CACI LIMITED                  
401,Central Services,SupS IT,Systems & Projects                      ,E14366,Supplies & Services           ,Comms and Computing           ,DG63,Software Licences - Data                ,"1,496.74",18/06/2013,R,CACI LIMITED                  
402,Central Services,SupS IT,Systems & Projects                      ,E14366,Supplies & Services           ,Comms and Computing           ,DG63,Software Licences - Data                ,"9,977.61",18/06/2013,R,CACI LIMITED                  
403,Central Services,SupS IT,Systems & Projects                      ,E14366,Supplies & Services           ,Comms and Computing           ,DG63,Software Licences - Data                ,518.87,18/06/2013,R,CACI LIMITED                  
404,Central Services,SupS IT,Systems & Projects                      ,E14366,Supplies & Services           ,Comms and Computing           ,DG63,Software Licences - Data                ,831.52,18/06/2013,R,CACI LIMITED                  
405,Central Services,SupS IT,Operations & Telecomms                  ,E14367,Supplies & Services           ,Equip Furniture/Materials     ,DA01,Equipment - R & M                       ,875,09/07/2013,R,SHENTON GROUP                 
406,Central Services,SupS IT,Operations & Telecomms                  ,E14367,Supplies & Services           ,Comms and Computing           ,DG15,Network Maintenance                     ,"46,744.75",02/07/2013,R,LONDON GRID FOR LEARNING TRUST
407,Central Services,SupS IT,Operations & Telecomms                  ,E14367,Supplies & Services           ,Comms and Computing           ,DG15,Network Maintenance                     ,"98,218.00",28/06/2013,R,SYNETRIX LIMITED              
408,Central Services,SupS IT,Operations & Telecomms                  ,E14367,Supplies & Services           ,Comms and Computing           ,DG53,EDI Comms                               ,550,08/07/2013,R,ON365.CO.UK                   
409,Central Services,SupS IT,Operations & Telecomms                  ,E14367,Supplies & Services           ,Comms and Computing           ,DG53,EDI Comms                               ,"6,048.00",08/07/2013,R,ON365.CO.UK                   
410,Central Services,SupS IT,Operations & Telecomms                  ,E14367,Supplies & Services           ,Comms and Computing           ,DG54,Corporate Telephones                    ,"1,066.68",29/06/2013,R,O2 (UK) LIMITED               
411,Central Services,SupS IT,Operations & Telecomms                  ,E14367,Supplies & Services           ,Comms and Computing           ,DG54,Corporate Telephones                    ,"10,711.03",04/07/2013,R,T MOBILE (UK)                 
412,Central Services,SupS IT,Operations & Telecomms                  ,E14367,Supplies & Services           ,Comms and Computing           ,DG54,Corporate Telephones                    ,"1,224.19",13/06/2013,R,BRITISH TELECOMMUNICATIONS PLC
413,Central Services,SupS IT,Operations & Telecomms                  ,E14367,Supplies & Services           ,Comms and Computing           ,DG54,Corporate Telephones                    ,"2,684.47",02/07/2013,R,COLT TELECOMMUNICATIONS       
414,Central Services,SupS IT,Operations & Telecomms                  ,E14367,Supplies & Services           ,Comms and Computing           ,DG57,Licences Microsoft Select               ,"2,653.92",28/06/2013,R,CIVICA SERVICES LTD           
415,Central Services,SupS IT,Facilities Magt Cptal Works             ,E14370,Premises Related Expenditure  ,RepairsAlterations&MtceOfBldgs,BA03,DDM - Mechanical                        ,"8,631.00",21/06/2013,R,COFELY LIMITED                
416,Central Services,SupS IT,Facilities Magt Cptal Works             ,E14370,Premises Related Expenditure  ,RepairsAlterations&MtceOfBldgs,BA29,Build Maint Mgt Fees                    ,971.5,30/06/2013,R,EDE'S (U.K.) LTD              
417,Central Services,SupS IT,Facilities Magt Cptal Works             ,E14370,Premises Related Expenditure  ,RepairsAlterations&MtceOfBldgs,BA29,Build Maint Mgt Fees                    ,"1,021.50",30/06/2013,R,EDE'S (U.K.) LTD              
418,Central Services,SupS IT,Facilities Magt Cptal Works             ,E14370,Premises Related Expenditure  ,RepairsAlterations&MtceOfBldgs,BA29,Build Maint Mgt Fees                    ,"2,416.11",29/07/2013,R,SALTASH ENTERPRISES LTD       
419,Central Services,SupS IT,Facilities Magt Cptal Works             ,E14370,Premises Related Expenditure  ,RepairsAlterations&MtceOfBldgs,BA29,Build Maint Mgt Fees                    ,"3,351.43",29/07/2013,R,SALTASH ENTERPRISES LTD       
420,Central Services,SupS IT,Customer Contact Programme              ,E14371,Supplies & Services           ,Services                      ,DF03,Consultants                             ,"10,700.00",01/07/2013,R,V4 SERVICES LIMITED           
421,Central Services,SupS IT,I&T -Revenuisation Projects             ,E14377,Supplies & Services           ,Services                      ,DF03,Consultants                             ,540,25/07/2013,R,COMPUTER FORENSICS            
422,Central Services,SupS IT,I&T -Revenuisation Projects             ,E14377,Supplies & Services           ,Comms and Computing           ,DG15,Network Maintenance                     ,"2,180.00",15/07/2013,R,COMPUTERLAND                  
423,Cultural Env Reg&Plan Services,Mgt & Support (Env),Senior Mgt. - E.S.C.                    ,G00100,Employees                     ,Direct Employee Expenses      ,AA96,SALARY SACRIFICE (TEACHERS)             ,747.18,26/06/2013,R,F.W.EVANS CYCLES (UK) LTD.    
424,Cultural Env Reg&Plan Services,BC Regs & Other not split,HoS - PP&D                              ,G00111,Supplies & Services           ,Services                      ,DF11,Counsel's Fees                          ,"1,400.00",30/05/2013,R,REDACTED
425,Cultural Env Reg&Plan Services,BC Regs & Other not split,HoS - PP&D                              ,G00111,Supplies & Services           ,Services                      ,DF11,Counsel's Fees                          ,900,21/06/2013,R,REDACTED
426,Highways & Transport Services,Hwys/Rds (struct) not split,C'way & F'way Mtce                      ,G00121,Supplies & Services           ,Comms and Computing           ,DG63,Software Licences - Data                ,712,12/06/2013,R,PITNEY BOWES SOFTWARE LTD     
427,Highways & Transport Services,Hwys/Rds (struct) not split,Surf Water Drainage                     ,G00123,Third Party Payments          ,Private Contractors           ,EH56,Carriageway/Fway Maint                  ,"1,226.00",11/07/2013,R,FM CONWAY LTD                 
428,Highways & Transport Services,Repair prin/oth rds not split,Walk Sheets                             ,G00127,Third Party Payments          ,Private Contractors           ,EH56,Carriageway/Fway Maint                  ,848.1,12/07/2013,R,FM CONWAY LTD                 
429,Highways & Transport Services,Repair prin/oth rds not split,Walk Sheets                             ,G00127,Third Party Payments          ,Private Contractors           ,EH56,Carriageway/Fway Maint                  ,"3,506.52",11/07/2013,R,FM CONWAY LTD                 
430,Highways & Transport Services,Repair prin/oth rds not split,Walk Sheets                             ,G00127,Third Party Payments          ,Private Contractors           ,EH56,Carriageway/Fway Maint                  ,"15,000.00",11/07/2013,R,FM CONWAY LTD                 
431,Highways & Transport Services,Repair prin/oth rds not split,Walk Sheets                             ,G00127,Third Party Payments          ,Private Contractors           ,EH56,Carriageway/Fway Maint                  ,"6,897.47",11/07/2013,R,FM CONWAY LTD                 
432,Highways & Transport Services,Repair prin/oth rds not split,Walk Sheets                             ,G00127,Third Party Payments          ,Private Contractors           ,EH56,Carriageway/Fway Maint                  ,"1,204.69",11/07/2013,R,FM CONWAY LTD                 
433,Highways & Transport Services,Repair prin/oth rds not split,Walk Sheets                             ,G00127,Third Party Payments          ,Private Contractors           ,EH56,Carriageway/Fway Maint                  ,"15,000.00",11/07/2013,R,FM CONWAY LTD                 
434,Highways & Transport Services,Repair prin/oth rds not split,Walk Sheets                             ,G00127,Third Party Payments          ,Private Contractors           ,EH56,Carriageway/Fway Maint                  ,690,10/07/2013,R,FM CONWAY LTD                 
435,Highways & Transport Services,Hwys/Rds (struct) not split,"Br., H'ways & Struct                    ",G00128,Third Party Payments          ,Private Contractors           ,EH56,Carriageway/Fway Maint                  ,"2,100.00",30/06/2013,R,HENDERSON THOMAS ASSOC LTD    
436,Highways & Transport Services,Saf mtc prin/oth rds not split,Traffic Signs.                          ,G00160,Third Party Payments          ,Private Contractors           ,EH01,Miscellaneous Agency Services           ,870.68,28/06/2013,R,MAY GURNEY LTD T/A CARTLEDGE  
437,Highways & Transport Services,Saf mtc prin/oth rds not split,Traffic Signs.                          ,G00160,Third Party Payments          ,Private Contractors           ,EH01,Miscellaneous Agency Services           ,"1,698.00",28/06/2013,R,MAY GURNEY LTD T/A CARTLEDGE  
438,Highways & Transport Services,Saf mtc prin/oth rds not split,Traffic Signs.                          ,G00160,Third Party Payments          ,Private Contractors           ,EH01,Miscellaneous Agency Services           ,757.27,31/05/2013,R,MAY GURNEY LTD T/A CARTLEDGE  
439,Highways & Transport Services,Saf mtc prin/oth rds not split,Traffic Signs.                          ,G00160,Third Party Payments          ,Private Contractors           ,EH01,Miscellaneous Agency Services           ,701.83,15/07/2013,R,MAY GURNEY LTD T/A CARTLEDGE  
440,Highways & Transport Services,Saf mtc prin/oth rds not split,Traffic Signs.                          ,G00160,Third Party Payments          ,Private Contractors           ,EH01,Miscellaneous Agency Services           ,"1,056.94",11/07/2013,R,FM CONWAY LTD                 
441,Highways & Transport Services,Saf mtc prin/oth rds not split,Traffic Signals .                       ,G00170,Third Party Payments          ,Other Agencies                ,EJ57,Traffic Signals Control Unit            ,"82,529.59",04/07/2013,R,TRANSPORT FOR LONDON          
442,Highways & Transport Services,Transport Plg/Policy/Strategy,CPZ implementation & Consultat          ,G00211,Supplies & Services           ,Services                      ,DF02,Misc Advertising/Publicity              ,581.94,08/06/2013,R,NEWSQUEST (LONDON)LTD         
443,Highways & Transport Services,Transport Plg/Policy/Strategy,CPZ implementation & Consultat          ,G00211,Third Party Payments          ,Private Contractors           ,EH01,Miscellaneous Contrct Services          ,"3,079.77",12/07/2013,R,FM CONWAY LTD                 
444,Highways & Transport Services,Traffic Management,Tr Man & Accid Sch                      ,G00220,Supplies & Services           ,Comms and Computing           ,DG07,Computer Software                       ,900,28/06/2013,R,DOLPHIN COMPUTER ACCESS       
445,Highways & Transport Services,Street Lighting.,Street Lighting .                       ,G00260,Third Party Payments          ,Private Contractors           ,EH01,Miscellaneous Agency Services           ,"4,500.00",07/06/2013,R,MAY GURNEY LTD T/A CARTLEDGE  
446,Highways & Transport Services,Street Lighting.,Street Lighting .                       ,G00260,Third Party Payments          ,Private Contractors           ,EH01,Miscellaneous Agency Services           ,"1,372.15",28/06/2013,R,MAY GURNEY LTD T/A CARTLEDGE  
447,Highways & Transport Services,Street Lighting.,Street Lighting .                       ,G00260,Third Party Payments          ,Private Contractors           ,EH01,Miscellaneous Agency Services           ,"1,044.66",17/07/2013,R,MAY GURNEY LTD T/A CARTLEDGE  
448,Highways & Transport Services,Street Lighting.,Street Lighting .                       ,G00260,Third Party Payments          ,Private Contractors           ,EH01,Miscellaneous Agency Services           ,"7,000.00",07/06/2013,R,MAY GURNEY LTD T/A CARTLEDGE  
449,Highways & Transport Services,Street Lighting.,Street Lighting .                       ,G00260,Third Party Payments          ,Private Contractors           ,EH01,Miscellaneous Agency Services           ,867.77,18/06/2013,R,MAY GURNEY LTD T/A CARTLEDGE  
450,Highways & Transport Services,Street Lighting.,Street Lighting .                       ,G00260,Third Party Payments          ,Private Contractors           ,EH01,Miscellaneous Agency Services           ,"1,269.75",18/06/2013,R,MAY GURNEY LTD T/A CARTLEDGE  
451,Highways & Transport Services,Street Lighting.,Street Lighting .                       ,G00260,Third Party Payments          ,Private Contractors           ,EH01,Miscellaneous Agency Services           ,"1,630.82",07/06/2013,R,MAY GURNEY LTD T/A CARTLEDGE  
452,Highways & Transport Services,Street Lighting.,Street Lighting .                       ,G00260,Third Party Payments          ,Private Contractors           ,EH01,Miscellaneous Agency Services           ,"3,529.03",17/07/2013,R,MAY GURNEY LTD T/A CARTLEDGE  
453,Highways & Transport Services,Street Lighting.,Street Lighting .                       ,G00260,Third Party Payments          ,Private Contractors           ,EH01,Miscellaneous Agency Services           ,"13,947.98",27/06/2013,R,MAY GURNEY LTD T/A CARTLEDGE  
454,Highways & Transport Services,Street Lighting.,Street Lighting .                       ,G00260,Third Party Payments          ,Private Contractors           ,EH01,Miscellaneous Agency Services           ,"3,544.58",28/06/2013,R,MAY GURNEY LTD T/A CARTLEDGE  
455,Highways & Transport Services,Parking Enforcement not split,Civil Enforcement Officers              ,G00330,Supplies & Services           ,Equip Furniture/Materials     ,DA09,Equip-Purchases                         ,850,26/06/2013,R,IMPERIAL CIVIL ENFORC.SOLUT.  
456,Highways & Transport Services,Parking Enforcement not split,Operational Running Costs               ,G00331,Supplies & Services           ,Equip Furniture/Materials     ,DA09,Equip-Purchases                         ,"18,327.00",26/06/2013,R,PARKEON LTD                   
457,Highways & Transport Services,Parking Enforcement not split,Operational Running Costs               ,G00331,Supplies & Services           ,Prntng Stnry Gen Off Exp      ,DE01,External Printing                       ,"1,069.50",19/06/2013,R,ORION SECURITY PRINT LIMITED  
458,Highways & Transport Services,Parking Enforcement not split,Operational Running Costs               ,G00331,Third Party Payments          ,Other Agencies                ,EJ58,Parking Cttee for London                ,"18,845.18",16/07/2013,R,LONDON COUNCILS               
459,Highways & Transport Services,Hwys/Rds (struct) not split,Footpath Crossings.                     ,G00390,Third Party Payments          ,Private Contractors           ,EH56,Carriageway/Fway Maint                  ,"3,392.82",11/07/2013,R,FM CONWAY LTD                 
460,Highways & Transport Services,Hwys/Rds (struct) not split,Footpath Crossings.                     ,G00390,Third Party Payments          ,Private Contractors           ,EH56,Carriageway/Fway Maint                  ,"4,636.26",11/07/2013,R,FM CONWAY LTD                 
461,Cultural Env Reg&Plan Services,Street Clean - Not highways,Street Cleansing (Inc. Gully)           ,G00492,Premises Related Expenditure  ,Rents                         ,BC01,Miscellaneous Rents                     ,955.24,16/07/2013,R,MERTON PRIORY HOMES (RENT)    
462,Cultural Env Reg&Plan Services,Street Clean - Not highways,Street Cleansing (Inc. Gully)           ,G00492,Supplies & Services           ,Equip Furniture/Materials     ,DA01,Equipment - R & M                       ,711.1,30/06/2013,R,N A BROWN LTD                 
463,Cultural Env Reg&Plan Services,Street Clean - Not highways,Street Cleansing (Inc. Gully)           ,G00492,Supplies & Services           ,Equip Furniture/Materials     ,DA08,Tools-Purchase                          ,"1,606.89",23/07/2013,R,BELL BRUSH                    
464,Cultural Env Reg&Plan Services,Street Clean - Not highways,Street Cleansing (Inc. Gully)           ,G00492,Supplies & Services           ,Equip Furniture/Materials     ,DA08,Tools-Purchase                          ,815.95,27/06/2013,R,BELL BRUSH                    
465,Cultural Env Reg&Plan Services,Street Clean - Not highways,Street Cleansing (Inc. Gully)           ,G00492,Supplies & Services           ,Equip Furniture/Materials     ,DA31,Waste Sacks & Bags                      ,926.1,24/07/2013,R,POLARIS PLASTICS LTD          
466,Cultural Env Reg&Plan Services,Street Clean - Not highways,Street Cleansing (Inc. Gully)           ,G00492,Supplies & Services           ,Equip Furniture/Materials     ,DA31,Waste Sacks & Bags                      ,"1,852.20",25/06/2013,R,POLARIS PLASTICS LTD          
467,Cultural Env Reg&Plan Services,Street Clean - Not highways,Street Cleansing (Inc. Gully)           ,G00492,Supplies & Services           ,Clothing Unfrms Laundry       ,DC02,Clothing & Uniforms                     ,666.42,14/06/2013,R,SAFETY MANAGEMENT             
468,Cultural Env Reg&Plan Services,Street Clean - Not highways,Street Cleansing (Inc. Gully)           ,G00492,Supplies & Services           ,Clothing Unfrms Laundry       ,DC02,Clothing & Uniforms                     ,"1,152.00",08/07/2013,R,SAFETY MANAGEMENT             
469,Cultural Env Reg&Plan Services,Street Clean - Not highways,Street Cleansing (Inc. Gully)           ,G00492,Supplies & Services           ,Clothing Unfrms Laundry       ,DC02,Clothing & Uniforms                     ,729.67,14/06/2013,R,SAFETY MANAGEMENT             
470,Cultural Env Reg&Plan Services,Street Clean - Not highways,Graffiti                                ,G00495,Supplies & Services           ,Equip Furniture/Materials     ,DA04,Materials                               ,667.56,28/06/2013,R,GRAFFITIHOTLINE               
471,Cultural Env Reg&Plan Services,Waste Disposal (not separated),Waste Disposal .                        ,G00550,Third Party Payments          ,Private Contractors           ,EH01,Dog Bin Disposal - Biffa                ,598.16,14/06/2013,R,BIFFA WASTE SERVICES LTD      
472,Cultural Env Reg&Plan Services,Waste Disposal (not separated),Waste Disposal .                        ,G00550,Third Party Payments          ,Private Contractors           ,EH01,Dog Bin Disposal - Biffa                ,621.26,05/07/2013,R,BIFFA WASTE SERVICES LTD      
473,Cultural Env Reg&Plan Services,Waste Disposal (not separated),Waste Disposal .                        ,G00550,Third Party Payments          ,Private Contractors           ,EH66,Clinical Waste Disposal                 ,755.71,30/06/2013,R,S.GRUNDON (WASTE) LTD.        
474,Cultural Env Reg&Plan Services,Waste Disposal (not separated),Waste Disposal .                        ,G00550,Third Party Payments          ,Private Contractors           ,EH96,GULLY DISPOSAL                          ,"1,571.02",30/06/2013,R,CORY ENVIRONMENTAL LIMITED    
475,Cultural Env Reg&Plan Services,Civic Amenity Sites,Garth Road Site                         ,G00580,Premises Related Expenditure  ,Energy Costs                  ,BB02,Electricity                             ,522.7,09/07/2013,R,EDF ENERGY 1 LIMITED          
476,Cultural Env Reg&Plan Services,Civic Amenity Sites,Garth Road Site                         ,G00580,Third Party Payments          ,Private Contractors           ,EH63,TRANSPORT FEE - LANDFILL                ,"12,319.01",29/07/2013,R,KINGSTON CORPORATION          
477,Cultural Env Reg&Plan Services,Civic Amenity Sites,Garth Road Site                         ,G00580,Third Party Payments          ,Private Contractors           ,EH63,TRANSPORT FEE - LANDFILL                ,"8,472.19",29/07/2013,R,KINGSTON CORPORATION          
478,Highways & Transport Services,Hwys/Rds (struct) not split,Grass Cut/Tr Mtce                       ,G00600,Premises Related Expenditure  ,Ground Maintenance Costs      ,BL03,Maintenance of Grounds                  ,"1,148.87",25/03/2013,R,VEOLIA ES (UK) LIMITED        
479,Highways & Transport Services,Hwys/Rds (struct) not split,Grass Cut/Tr Mtce                       ,G00600,Premises Related Expenditure  ,Ground Maintenance Costs      ,BL03,Maintenance of Grounds                  ,602.76,22/02/2013,R,VEOLIA ES (UK) LIMITED        
480,Cultural Env Reg&Plan Services,Public Health,Dog Control.                            ,G00620,Third Party Payments          ,Private Contractors           ,EH02,Miscellaneous Hired Services            ,"3,315.57",11/07/2013,R,NOAH'S ARK ENVIRONMENTAL SERV.
481,Cultural Env Reg&Plan Services,Recycling (Collection),Recycling Activities                    ,G00640,Supplies & Services           ,Equip Furniture/Materials     ,DA31,Waste Sacks & Bags                      ,"18,538.60",16/07/2013,R,SPHERE PROFFESSIONAL          
482,Cultural Env Reg&Plan Services,Recycling (Collection),Recycling Activities                    ,G00640,Supplies & Services           ,Equip Furniture/Materials     ,DA31,Waste Sacks & Bags                      ,"1,472.94",11/07/2013,R,SPHERE PROFFESSIONAL          
483,Cultural Env Reg&Plan Services,Recycling (Collection),Recycling Activities                    ,G00640,Supplies & Services           ,Equip Furniture/Materials     ,DA32,Wheeled Bins                            ,"2,254.00",28/06/2013,R,SPIDER UK LTD                 
484,Cultural Env Reg&Plan Services,Recycling (Collection),Recycling Activities                    ,G00640,Supplies & Services           ,Expenses                      ,DH14,Prizes and Awards                       ,"2,150.00",06/06/2013,R,EMAP PUBLISHING               
485,Cultural Env Reg&Plan Services,Recycling (Collection),Recycling Activities                    ,G00640,Third Party Payments          ,Private Contractors           ,EH61,Green Waste Disposal                    ,"20,718.20",30/06/2013,R,VIRIDOR WASTE KENT LTD        
486,Cultural Env Reg&Plan Services,Recycling (Collection),Recycling Collection                    ,G00645,Supplies & Services           ,Equip Furniture/Materials     ,DA32,Wheeled Bins                            ,"1,282.50",10/07/2013,R,UK CONTAINER MAINTENANCE LTD  
487,Cultural Env Reg&Plan Services,Recycling (Collection),Recycling Collection                    ,G00645,Supplies & Services           ,Clothing Unfrms Laundry       ,DC02,Clothing & Uniforms                     ,666.42,14/06/2013,R,SAFETY MANAGEMENT             
488,Cultural Env Reg&Plan Services,Recycling (Collection),Recycling Collection                    ,G00645,Supplies & Services           ,Clothing Unfrms Laundry       ,DC02,Clothing & Uniforms                     ,"1,152.00",08/07/2013,R,SAFETY MANAGEMENT             
489,Cultural Env Reg&Plan Services,Recycling (Collection),Recycling Collection                    ,G00645,Supplies & Services           ,Clothing Unfrms Laundry       ,DC02,Clothing & Uniforms                     ,"1,059.67",14/06/2013,R,SAFETY MANAGEMENT             
490,Cultural Env Reg&Plan Services,Recycling (Collection),Garden Waste Service                    ,G00647,Supplies & Services           ,Equip Furniture/Materials     ,DA31,Waste Sacks & Bags                      ,"3,672.00",09/07/2013,R,ALPHA WASTE SUPPLIES          
491,Cultural Env Reg&Plan Services,Recycling (Collection),Garden Waste Service                    ,G00647,Supplies & Services           ,Equip Furniture/Materials     ,DA31,Waste Sacks & Bags                      ,734.4,01/07/2013,R,ALPHA WASTE SUPPLIES          
492,Cultural Env Reg&Plan Services,Recycling (Collection),Garden Waste Service                    ,G00647,Supplies & Services           ,Equip Furniture/Materials     ,DA32,Wheeled Bins (GARDEN BINS)              ,"6,606.00",08/07/2013,R,RIDLEY RECYCLING LTD          
493,Cultural Env Reg&Plan Services,Household Waste Collection,Refuse Collection (Operations)          ,G00661,Supplies & Services           ,Equip Furniture/Materials     ,DA08,Tools-Purchase                          ,815.95,27/06/2013,R,BELL BRUSH                    
494,Cultural Env Reg&Plan Services,Household Waste Collection,Refuse Collection (Operations)          ,G00661,Supplies & Services           ,Equip Furniture/Materials     ,DA32,Wheeled Bins                            ,"1,120.00",25/06/2013,R,UK WASTE CONTAINERS           
495,Cultural Env Reg&Plan Services,Household Waste Collection,Refuse Collection (Operations)          ,G00661,Supplies & Services           ,Clothing Unfrms Laundry       ,DC02,Clothing & Uniforms                     ,666.41,14/06/2013,R,SAFETY MANAGEMENT             
496,Cultural Env Reg&Plan Services,Household Waste Collection,Refuse Collection (Operations)          ,G00661,Supplies & Services           ,Clothing Unfrms Laundry       ,DC02,Clothing & Uniforms                     ,"1,242.75",08/07/2013,R,SAFETY MANAGEMENT             
497,Cultural Env Reg&Plan Services,Household Waste Collection,Refuse Collection (Operations)          ,G00661,Supplies & Services           ,Clothing Unfrms Laundry       ,DC02,Clothing & Uniforms                     ,"1,059.21",14/06/2013,R,SAFETY MANAGEMENT             
498,Cultural Env Reg&Plan Services,Trade Waste Collection,Commercial Waste                        ,G00663,Supplies & Services           ,Equip Furniture/Materials     ,DA31,Waste Sacks & Bags                      ,"1,342.51",25/07/2013,R,GELPACK EXCELSIOR             
499,Cultural Env Reg&Plan Services,Trade Waste Collection,Commercial Waste                        ,G00663,Supplies & Services           ,Services                      ,DF03,Consultants                             ,"4,426.39",30/05/2013,R,EUNOMIA RESEARCH & CONSULTING 
500,Cultural Env Reg&Plan Services,Trade Waste Collection,Commercial Waste Collection             ,G00665,Supplies & Services           ,Equip Furniture/Materials     ,DA32,Wheeled Bins                            ,724.5,25/06/2013,R,UK CONTAINER MAINTENANCE LTD  
501,Cultural Env Reg&Plan Services,Street Clean - Not highways,Waste Enforcement                       ,G00680,Supplies & Services           ,Services                      ,DF30,Activities Programme                    ,"2,470.00",24/06/2013,R,DANGEROUS THEATRE COMPANY     
502,Cultural Env Reg&Plan Services,Street Clean - Not highways,Waste Enforcement                       ,G00680,Supplies & Services           ,Services                      ,DF30,Activities Programme                    ,590,28/05/2013,R,DANGEROUS THEATRE COMPANY     
503,Cultural Env Reg&Plan Services,Street Clean - Not highways,Waste Enforcement                       ,G00680,Supplies & Services           ,Services                      ,DF30,Activities Programme                    ,"1,200.00",15/07/2013,R,DANGEROUS THEATRE COMPANY     
504,Cultural Env Reg&Plan Services,Street Clean - Not highways,Waste Enforcement                       ,G00680,Third Party Payments          ,Private Contractors           ,EH56,Carriageway/Fway Maint                  ,662,11/07/2013,R,REDACTED
505,Cultural Env Reg&Plan Services,Public Health,Merton Winter Warmer Programme          ,G00696,Supplies & Services           ,Equip Furniture/Materials     ,DA09,Equip-Purchases                         ,"5,456.00",26/06/2013,R,TUNSTALL TELECOM LIMITED      
506,Cultural Env Reg&Plan Services,Pest Control,Pest Control                            ,G00724,Supplies & Services           ,Equip Furniture/Materials     ,DA04,Materials                               ,"2,094.58",13/06/2013,R,KILLGERM CHEMICALS LIMITED    
507,Cultural Env Reg&Plan Services,Housing Standards,AIR QUALITY GRANT (DEFRA) MB            ,G00732,Third Party Payments          ,Private Contractors           ,EH02,Miscellaneous Hired Services            ,"7,528.00",31/05/2013,R,AECOM LIMITED                 
508,Central Services,Grants - Voluntary Groups,Vestry Hall                             ,G19290,Employees                     ,Direct Employee Expenses      ,AA17,Agency Staff & Casual Paymts            ,"4,611.35",10/07/2013,R,REDACTED
509,Central Services,Grants - Voluntary Groups,Vestry Hall                             ,G19290,Premises Related Expenditure  ,Energy Costs                  ,BB03,Gas (incl. Butane)                      ,792.84,05/07/2013,R,GAZPROM MARKETING&TRADING LTD 
510,Central Services,Grants - Voluntary Groups,Vestry Hall                             ,G19290,Premises Related Expenditure  ,Water Services                ,BE01,Use of Water (Metered)                  ,954.15,26/06/2013,R,THAMES WATER UTILITIES LTD    
511,Central Services,Grants - Voluntary Groups,Vestry Hall                             ,G19290,Premises Related Expenditure  ,Cleaning and Domestic Supplies,BH03,Cleaning Services                       ,"1,357.76",01/07/2013,R,BIRKIN CLEANING SERVICES LTD  
512,Cultural Env Reg&Plan Services,BC Regs & Other not split,Building Control                        ,H01100,Supplies & Services           ,Prntng Stnry Gen Off Exp      ,DE05,Micro-filming                           ,"2,273.20",12/07/2013,R,DOCUMENT SCANNING SOLUTIONS LT
513,Cultural Env Reg&Plan Services,BC Regs & Other not split,Building Control                        ,H01100,Supplies & Services           ,Comms and Computing           ,DG61,Computer Servs Special                  ,"1,375.00",19/07/2013,R,NORTHGATE INFORMATION SOLUTION
514,Cultural Env Reg&Plan Services,DC Advice Apps & Reg not split,Development Control                     ,H01130,Customer and client receipts  ,Fees                          ,RB03,Miscellaneous Fees S                    ,990,01/08/2013,R,LIFESTYLE PROJECTS LTD        
515,Cultural Env Reg&Plan Services,Planning Policy not split,Spatial Policy                          ,H01173,Supplies & Services           ,Comms and Computing           ,DG63,Software Licences - Data                ,"1,780.00",12/06/2013,R,PITNEY BOWES SOFTWARE LTD     
516,Cultural Env Reg&Plan Services,Planning Policy not split,HPDG - FUTUREMERTON                     ,H01183,Supplies & Services           ,Services                      ,DF03,Consultants                             ,"1,500.00",23/06/2013,R,SWBA                          
517,Cultural Env Reg&Plan Services,Economic Dev (Not separated),BUSINESS SUPPORT                        ,H01210,Supplies & Services           ,Services                      ,DF03,Consultants                             ,686.85,30/06/2013,R,RETAIL REVIVAL                
518,Cultural Env Reg&Plan Services,Economic Dev (Not separated),BUSINESS SUPPORT                        ,H01210,Supplies & Services           ,Services                      ,DF03,Consultants                             ,"5,902.00",30/06/2013,R,RETAIL REVIVAL                
519,Cultural Env Reg&Plan Services,Economic Dev (Not separated),BUSINESS SUPPORT                        ,H01210,Third Party Payments          ,Private Contractors           ,EH02,Miscellaneous Hired Services            ,"20,000.00",25/06/2013,R,LANDOLT AND BROWN LTD         
520,Cultural Env Reg&Plan Services,Economic Dev (Not separated),MITCHAM OLF                             ,H01218,Supplies & Services           ,Services                      ,DF03,Consultants                             ,"4,288.98",28/06/2013,R,STUDIO WEAVE LTD              
521,Cultural Env Reg&Plan Services,Economic Dev (Not separated),MITCHAM OLF                             ,H01218,Supplies & Services           ,Services                      ,DF03,Consultants                             ,"4,500.00",20/06/2013,R,MERTON VOLUNTARY SERV COUNCIL 
522,CS -Oth Operating Inc & Expend,T/A Vehicle Maintenance etc,Transport-Contract Hire                 ,J01374,Transport Related Expenditure ,Direct Transport Costs        ,CA01,Petrol Derv & Oil                       ,"38,589.71",05/07/2013,R,EMO OILS LTD                  
523,CS -Oth Operating Inc & Expend,T/A Vehicle Maintenance etc,Transport-Contract Hire                 ,J01374,Transport Related Expenditure ,Direct Transport Costs        ,CA02,Tyres                                   ,590,27/06/2013,R,MORDEN TYRE SERVICES LTD      
524,CS -Oth Operating Inc & Expend,T/A Vehicle Maintenance etc,Transport-Contract Hire                 ,J01374,Transport Related Expenditure ,Direct Transport Costs        ,CA02,Tyres                                   ,925,26/07/2013,R,MORDEN TYRE SERVICES LTD      
525,CS -Oth Operating Inc & Expend,T/A Vehicle Maintenance etc,Transport-Contract Hire                 ,J01374,Transport Related Expenditure ,Direct Transport Costs        ,CA02,Tyres                                   ,940,25/07/2013,R,MORDEN TYRE SERVICES LTD      
526,CS -Oth Operating Inc & Expend,T/A Vehicle Maintenance etc,Transport-Contract Hire                 ,J01374,Transport Related Expenditure ,Direct Transport Costs        ,CA02,Tyres                                   ,"1,285.00",12/07/2013,R,MORDEN TYRE SERVICES LTD      
527,CS -Oth Operating Inc & Expend,T/A Vehicle Maintenance etc,Transport-Contract Hire                 ,J01374,Transport Related Expenditure ,Direct Transport Costs        ,CA02,Tyres                                   ,780,09/07/2013,R,MORDEN TYRE SERVICES LTD      
528,CS -Oth Operating Inc & Expend,T/A Vehicle Maintenance etc,Transport-Contract Hire                 ,J01374,Transport Related Expenditure ,Direct Transport Costs        ,CA02,Tyres                                   ,580,24/07/2013,R,MORDEN TYRE SERVICES LTD      
529,CS -Oth Operating Inc & Expend,T/A Vehicle Maintenance etc,Transport-Contract Hire                 ,J01374,Transport Related Expenditure ,Direct Transport Costs        ,CA02,Tyres                                   ,"1,320.00",26/06/2013,R,MORDEN TYRE SERVICES LTD      
530,CS -Oth Operating Inc & Expend,T/A Vehicle Maintenance etc,Transport-Contract Hire                 ,J01374,Transport Related Expenditure ,Direct Transport Costs        ,CA02,Tyres                                   ,"1,590.00",27/06/2013,R,MORDEN TYRE SERVICES LTD      
531,CS -Oth Operating Inc & Expend,T/A Vehicle Maintenance etc,Transport-Contract Hire                 ,J01374,Transport Related Expenditure ,Direct Transport Costs        ,CA02,Tyres                                   ,500,24/07/2013,R,MORDEN TYRE SERVICES LTD      
532,CS -Oth Operating Inc & Expend,T/A Vehicle Maintenance etc,Transport-Contract Hire                 ,J01374,Transport Related Expenditure ,Direct Transport Costs        ,CA03,Vehicle Licences                        ,"3,410.00",10/07/2013,R,POST OFFICE LTD               
533,CS -Oth Operating Inc & Expend,T/A Vehicle Maintenance etc,Transport-Contract Hire                 ,J01374,Transport Related Expenditure ,Direct Transport Costs        ,CA55,Specialist Maint. (Off Site)            ,"1,562.79",11/07/2013,R,FLEETSPEED COACHWORKS LTD.    
534,CS -Oth Operating Inc & Expend,T/A Vehicle Maintenance etc,Transport-Contract Hire                 ,J01374,Transport Related Expenditure ,Direct Transport Costs        ,CA55,Specialist Maint. (Off Site)            ,"3,113.86",04/07/2013,R,MITCHELL POWER SYSTEMS        
535,CS -Oth Operating Inc & Expend,T/A Vehicle Maintenance etc,Transport-Contract Hire                 ,J01374,Transport Related Expenditure ,Direct Transport Costs        ,CA55,Specialist Maint. (Off Site)            ,"1,456.93",11/07/2013,R,FLEETSPEED COACHWORKS LTD.    
536,CS -Oth Operating Inc & Expend,T/A Vehicle Maintenance etc,Transport-Contract Hire                 ,J01374,Transport Related Expenditure ,Direct Transport Costs        ,CA56,Specialist Maint. (On Site)             ,525,12/07/2013,R,R.J.H.WELDING                 
537,CS -Oth Operating Inc & Expend,T/A Vehicle Maintenance etc,Transport-Contract Hire                 ,J01374,Transport Related Expenditure ,Direct Transport Costs        ,CA56,Specialist Maint. (On Site)             ,525,12/07/2013,R,R.J.H.WELDING                 
538,CS -Oth Operating Inc & Expend,T/A Vehicle Maintenance etc,Transport-Contract Hire                 ,J01374,Transport Related Expenditure ,Direct Transport Costs        ,CA56,Specialist Maint. (On Site)             ,563.1,12/07/2013,R,R.J.H.WELDING                 
539,CS -Oth Operating Inc & Expend,T/A Vehicle Maintenance etc,Transport-Contract Hire                 ,J01374,Transport Related Expenditure ,Direct Transport Costs        ,CA56,Specialist Maint. (On Site)             ,"1,181.25",12/07/2013,R,R.J.H.WELDING                 
540,CS -Oth Operating Inc & Expend,T/A Vehicle Maintenance etc,Transport-Contract Hire                 ,J01374,Transport Related Expenditure ,Direct Transport Costs        ,CA56,Specialist Maint. (On Site)             ,"1,370.61",27/06/2013,R,JOHNSTON SWEEPERS LIMITED     
541,CS -Oth Operating Inc & Expend,T/A Vehicle Maintenance etc,Transport-Contract Hire                 ,J01374,Transport Related Expenditure ,Direct Transport Costs        ,CA72,Vehicle Parts                           ,914.89,22/07/2013,R,COMMERCIAL & PLANT LTD        
542,CS -Oth Operating Inc & Expend,T/A Vehicle Maintenance etc,Transport-Contract Hire                 ,J01374,Transport Related Expenditure ,Direct Transport Costs        ,CA72,Vehicle Parts                           ,512.31,11/07/2013,R,JOHNSTON SWEEPERS LIMITED     
543,CS -Oth Operating Inc & Expend,T/A Vehicle Maintenance etc,Transport-Contract Hire                 ,J01374,Transport Related Expenditure ,Direct Transport Costs        ,CA72,Vehicle Parts                           ,815.77,24/07/2013,R,GEESINK NORBA                 
544,CS -Oth Operating Inc & Expend,T/A Vehicle Maintenance etc,Transport-Contract Hire                 ,J01374,Transport Related Expenditure ,Direct Transport Costs        ,CA72,Vehicle Parts                           ,"1,206.34",21/06/2013,R,GRAYS TRUCK CENTRE LIMITED    
545,CS -Oth Operating Inc & Expend,T/A Vehicle Maintenance etc,Transport-Contract Hire                 ,J01374,Transport Related Expenditure ,Direct Transport Costs        ,CA72,Vehicle Parts                           ,960.85,24/06/2013,R,COMMERCIAL & PLANT LTD        
546,CS -Oth Operating Inc & Expend,T/A Vehicle Maintenance etc,Transport-Contract Hire                 ,J01374,Transport Related Expenditure ,Direct Transport Costs        ,CA72,Vehicle Parts                           ,503.82,08/07/2013,R,COMMERCIAL & PLANT LTD        
547,CS -Oth Operating Inc & Expend,T/A Vehicle Maintenance etc,Transport-Contract Hire                 ,J01374,Transport Related Expenditure ,Direct Transport Costs        ,CA72,Vehicle Parts                           ,574.78,29/06/2013,R,HTC CROYDON                   
548,CS -Oth Operating Inc & Expend,T/A Vehicle Maintenance etc,Transport-Contract Hire                 ,J01374,Transport Related Expenditure ,Direct Transport Costs        ,CA72,Vehicle Parts                           ,715,17/07/2013,R,TENNANTS                      
549,CS -Oth Operating Inc & Expend,T/A Vehicle Maintenance etc,Transport-Contract Hire                 ,J01374,Transport Related Expenditure ,Direct Transport Costs        ,CA72,Vehicle Parts                           ,512.34,09/07/2013,R,JOHNSTON SWEEPERS LIMITED     
550,CS -Oth Operating Inc & Expend,T/A Vehicle Maintenance etc,Transport-Contract Hire                 ,J01374,Transport Related Expenditure ,Direct Transport Costs        ,CA72,Vehicle Parts                           ,"1,536.90",13/06/2013,R,OPTIMUM OILS LTD              
551,CS -Oth Operating Inc & Expend,T/A Vehicle Maintenance etc,Transport-Contract Hire                 ,J01374,Transport Related Expenditure ,Direct Transport Costs        ,CA72,Vehicle Parts                           ,526.08,20/06/2013,R,DENNIS EAGLE LIMITED          
552,CS -Oth Operating Inc & Expend,T/A Vehicle Maintenance etc,Transport-Contract Hire                 ,J01374,Transport Related Expenditure ,Contract Hire and Op Leasing  ,CC53,Plant Hire for MRCS                     ,675,11/07/2013,R,DRM MUNICIPAL SERVICES LIMITED
553,CS -Oth Operating Inc & Expend,T/A Vehicle Maintenance etc,Transport-Contract Hire                 ,J01374,Transport Related Expenditure ,Contract Hire and Op Leasing  ,CC53,Plant Hire for MRCS                     ,995,11/07/2013,R,DRM MUNICIPAL SERVICES LIMITED
554,CS -Oth Operating Inc & Expend,T/A Vehicle Maintenance etc,Transport-Contract Hire                 ,J01374,Transport Related Expenditure ,Contract Hire and Op Leasing  ,CC53,Plant Hire for MRCS                     ,"1,140.00",11/07/2013,R,GVS HIRE LTD                  
555,CS -Oth Operating Inc & Expend,T/A Vehicle Maintenance etc,Transport-Contract Hire                 ,J01374,Transport Related Expenditure ,Contract Hire and Op Leasing  ,CC56,Plant Hire for Leisure                  ,"1,755.00",30/06/2013,R,REDACTED
556,CS -Oth Operating Inc & Expend,T/A Vehicle Maintenance etc,Transport-Contract Hire                 ,J01374,Transport Related Expenditure ,Contract Hire and Op Leasing  ,CC57,Pland Hire for Housing                  ,660,30/06/2013,R,REDACTED
557,CS -Oth Operating Inc & Expend,T/A Vehicle Maintenance etc,Transport-Contract Hire                 ,J01374,Transport Related Expenditure ,Contract Hire and Op Leasing  ,CC57,Pland Hire for Housing                  ,940,30/06/2013,R,REDACTED
558,CS -Oth Operating Inc & Expend,T/A Vehicle Maintenance etc,Transport-Contract Hire                 ,J01374,Transport Related Expenditure ,Contract Hire and Op Leasing  ,CC59,HIRING TRANSPORT OPERATIONS             ,703.36,18/06/2013,R,COMMERCIAL SERV'S TRADING LTD 
559,CS -Oth Operating Inc & Expend,T/A Vehicle Maintenance etc,Transport-Contract Hire                 ,J01374,Transport Related Expenditure ,Contract Hire and Op Leasing  ,CC59,HIRING TRANSPORT OPERATIONS             ,"2,238.32",30/06/2013,R,REDACTED
560,CS -Oth Operating Inc & Expend,T/A Vehicle Maintenance etc,Transport-Contract Hire                 ,J01374,Transport Related Expenditure ,Contract Hire and Op Leasing  ,CC59,HIRING TRANSPORT OPERATIONS             ,"1,320.00",28/06/2013,R,BURNT TREE VEHICLE RENTAL     
561,CS -Oth Operating Inc & Expend,T/A Vehicle Maintenance etc,Transport-Contract Hire                 ,J01374,Transport Related Expenditure ,Contract Hire and Op Leasing  ,CC59,HIRING TRANSPORT OPERATIONS             ,"1,320.00",28/06/2013,R,BURNT TREE VEHICLE RENTAL     
562,CS -Oth Operating Inc & Expend,T/A Vehicle Maintenance etc,Transport-Contract Hire                 ,J01374,Transport Related Expenditure ,Contract Hire and Op Leasing  ,CC59,HIRING TRANSPORT OPERATIONS             ,"1,320.00",28/06/2013,R,BURNT TREE VEHICLE RENTAL     
563,CS -Oth Operating Inc & Expend,T/A Vehicle Maintenance etc,Transport-Contract Hire                 ,J01374,Transport Related Expenditure ,Contract Hire and Op Leasing  ,CC64,HIRING TRANSPORT SEN CABS               ,"1,240.00",30/06/2013,R,A STAR TRANSPORT LIMITED      
564,CS -Oth Operating Inc & Expend,T/A Vehicle Maintenance etc,Transport-Contract Hire                 ,J01374,Transport Related Expenditure ,Contract Hire and Op Leasing  ,CC64,HIRING TRANSPORT SEN CABS               ,"1,786.00",30/06/2013,R,CAPITAL CARS                  
565,CS -Oth Operating Inc & Expend,T/A Vehicle Maintenance etc,Transport-Contract Hire                 ,J01374,Transport Related Expenditure ,Contract Hire and Op Leasing  ,CC64,HIRING TRANSPORT SEN CABS               ,700,30/06/2013,R,SHERWOOD TRANSPORT GROUP      
566,CS -Oth Operating Inc & Expend,T/A Vehicle Maintenance etc,Transport-Contract Hire                 ,J01374,Transport Related Expenditure ,Contract Hire and Op Leasing  ,CC64,HIRING TRANSPORT SEN CABS               ,660,30/06/2013,R,CHEAM STATION CARS            
567,CS -Oth Operating Inc & Expend,T/A Vehicle Maintenance etc,Transport-Contract Hire                 ,J01374,Transport Related Expenditure ,Contract Hire and Op Leasing  ,CC64,HIRING TRANSPORT SEN CABS               ,"2,398.00",30/06/2013,R,KINGSTON ACCESSIBILITY TRAN LT
568,CS -Oth Operating Inc & Expend,T/A Vehicle Maintenance etc,Transport-Contract Hire                 ,J01374,Transport Related Expenditure ,Contract Hire and Op Leasing  ,CC64,HIRING TRANSPORT SEN CABS               ,972,31/07/2013,R,KINGSTON ACCESSIBILITY TRAN LT
569,CS -Oth Operating Inc & Expend,T/A Vehicle Maintenance etc,Transport-Contract Hire                 ,J01374,Transport Related Expenditure ,Contract Hire and Op Leasing  ,CC64,HIRING TRANSPORT SEN CABS               ,842.4,30/06/2013,R,KINGSTON ACCESSIBILITY TRAN LT
570,CS -Oth Operating Inc & Expend,T/A Vehicle Maintenance etc,Transport-Contract Hire                 ,J01374,Transport Related Expenditure ,Contract Hire and Op Leasing  ,CC64,HIRING TRANSPORT SEN CABS               ,640,30/06/2013,R,BARCLAYS ASSET & SALES FINANCE
571,CS -Oth Operating Inc & Expend,T/A Vehicle Maintenance etc,Transport-Contract Hire                 ,J01374,Transport Related Expenditure ,Contract Hire and Op Leasing  ,CC64,HIRING TRANSPORT SEN CABS               ,"1,400.00",30/06/2013,R,BARCLAYS ASSET & SALES FINANCE
572,CS -Oth Operating Inc & Expend,T/A Vehicle Maintenance etc,Transport-Contract Hire                 ,J01374,Transport Related Expenditure ,Contract Hire and Op Leasing  ,CC64,HIRING TRANSPORT SEN CABS               ,748.5,31/07/2013,R,KINGSTON ACCESSIBILITY TRAN LT
573,CS -Oth Operating Inc & Expend,T/A Vehicle Maintenance etc,Transport-Contract Hire                 ,J01374,Transport Related Expenditure ,Contract Hire and Op Leasing  ,CC64,HIRING TRANSPORT SEN CABS               ,"3,000.00",29/06/2013,R,WALLINGTON CARS & COURIERS LTD
574,CS -Oth Operating Inc & Expend,T/A Vehicle Maintenance etc,Transport-Contract Hire                 ,J01374,Transport Related Expenditure ,Contract Hire and Op Leasing  ,CC64,HIRING TRANSPORT SEN CABS               ,880,30/06/2013,R,SHERWOOD TRANSPORT GROUP      
575,CS -Oth Operating Inc & Expend,T/A Vehicle Maintenance etc,Transport-Contract Hire                 ,J01374,Transport Related Expenditure ,Contract Hire and Op Leasing  ,CC64,HIRING TRANSPORT SEN CABS               ,880,01/07/2013,R,AERIAL CAR SERVICES LTD       
576,CS -Oth Operating Inc & Expend,T/A Vehicle Maintenance etc,Transport-Contract Hire                 ,J01374,Transport Related Expenditure ,Contract Hire and Op Leasing  ,CC64,HIRING TRANSPORT SEN CABS               ,"1,078.00",30/06/2013,R,SHERWOOD TRANSPORT GROUP      
577,CS -Oth Operating Inc & Expend,T/A Vehicle Maintenance etc,Transport-Contract Hire                 ,J01374,Transport Related Expenditure ,Contract Hire and Op Leasing  ,CC64,HIRING TRANSPORT SEN CABS               ,"1,049.76",31/07/2013,R,KINGSTON ACCESSIBILITY TRAN LT
578,CS -Oth Operating Inc & Expend,T/A Vehicle Maintenance etc,Transport-Contract Hire                 ,J01374,Transport Related Expenditure ,Contract Hire and Op Leasing  ,CC64,HIRING TRANSPORT SEN CABS               ,"1,935.00",31/07/2013,R,KINGSTON ACCESSIBILITY TRAN LT
579,CS -Oth Operating Inc & Expend,T/A Vehicle Maintenance etc,Transport-Contract Hire                 ,J01374,Transport Related Expenditure ,Contract Hire and Op Leasing  ,CC64,HIRING TRANSPORT SEN CABS               ,"1,200.00",30/06/2013,R,CHEAM STATION CARS            
580,CS -Oth Operating Inc & Expend,T/A Vehicle Maintenance etc,Transport-Contract Hire                 ,J01374,Transport Related Expenditure ,Contract Hire and Op Leasing  ,CC64,HIRING TRANSPORT SEN CABS               ,800,30/06/2013,R,GALPINS SERVICE               
581,CS -Oth Operating Inc & Expend,T/A Vehicle Maintenance etc,Transport-Contract Hire                 ,J01374,Transport Related Expenditure ,Contract Hire and Op Leasing  ,CC64,HIRING TRANSPORT SEN CABS               ,800,31/07/2013,R,KINGSTON ACCESSIBILITY TRAN LT
582,CS -Oth Operating Inc & Expend,T/A Vehicle Maintenance etc,Transport-Contract Hire                 ,J01374,Transport Related Expenditure ,Contract Hire and Op Leasing  ,CC64,HIRING TRANSPORT SEN CABS               ,"1,480.00",30/06/2013,R,BARCLAYS ASSET & SALES FINANCE
583,CS -Oth Operating Inc & Expend,T/A Vehicle Maintenance etc,Transport-Contract Hire                 ,J01374,Transport Related Expenditure ,Contract Hire and Op Leasing  ,CC64,HIRING TRANSPORT SEN CABS               ,684,28/06/2013,R,SILVERBURN FINANCE (UK) LTD   
584,CS -Oth Operating Inc & Expend,T/A Vehicle Maintenance etc,Transport-Contract Hire                 ,J01374,Transport Related Expenditure ,Contract Hire and Op Leasing  ,CC64,HIRING TRANSPORT SEN CABS               ,"1,690.20",31/07/2013,R,KINGSTON ACCESSIBILITY TRAN LT
585,CS -Oth Operating Inc & Expend,T/A Vehicle Maintenance etc,Transport-Contract Hire                 ,J01374,Transport Related Expenditure ,Contract Hire and Op Leasing  ,CC64,HIRING TRANSPORT SEN CABS               ,"1,430.00",28/06/2013,R,SILVERBURN FINANCE (UK) LTD   
586,CS -Oth Operating Inc & Expend,T/A Vehicle Maintenance etc,Transport-Contract Hire                 ,J01374,Transport Related Expenditure ,Contract Hire and Op Leasing  ,CC64,HIRING TRANSPORT SEN CABS               ,"1,120.00",28/06/2013,R,SILVERBURN FINANCE (UK) LTD   
587,CS -Oth Operating Inc & Expend,T/A Vehicle Maintenance etc,Transport-Contract Hire                 ,J01374,Transport Related Expenditure ,Contract Hire and Op Leasing  ,CC64,HIRING TRANSPORT SEN CABS               ,"1,130.50",30/06/2013,R,SHERWOOD TRANSPORT GROUP      
588,CS -Oth Operating Inc & Expend,T/A Vehicle Maintenance etc,Transport-Contract Hire                 ,J01374,Transport Related Expenditure ,Contract Hire and Op Leasing  ,CC64,HIRING TRANSPORT SEN CABS               ,"1,958.00",30/06/2013,R,KINGSTON ACCESSIBILITY TRAN LT
589,CS -Oth Operating Inc & Expend,T/A Vehicle Maintenance etc,Transport-Contract Hire                 ,J01374,Transport Related Expenditure ,Contract Hire and Op Leasing  ,CC64,HIRING TRANSPORT SEN CABS               ,"2,535.00",30/06/2013,R,BARCLAYS ASSET & SALES FINANCE
590,CS -Oth Operating Inc & Expend,T/A Vehicle Maintenance etc,Transport-Contract Hire                 ,J01374,Transport Related Expenditure ,Contract Hire and Op Leasing  ,CC64,HIRING TRANSPORT SEN CABS               ,"1,920.00",30/06/2013,R,KINGSTON ACCESSIBILITY TRAN LT
591,CS -Oth Operating Inc & Expend,T/A Vehicle Maintenance etc,Transport-Contract Hire                 ,J01374,Transport Related Expenditure ,Contract Hire and Op Leasing  ,CC64,HIRING TRANSPORT SEN CABS               ,"1,836.00",30/06/2013,R,BARCLAYS ASSET & SALES FINANCE
592,CS -Oth Operating Inc & Expend,T/A Vehicle Maintenance etc,Transport-Contract Hire                 ,J01374,Transport Related Expenditure ,Contract Hire and Op Leasing  ,CC64,HIRING TRANSPORT SEN CABS               ,"1,878.00",30/06/2013,R,KINGSTON ACCESSIBILITY TRAN LT
593,CS -Oth Operating Inc & Expend,T/A Vehicle Maintenance etc,Transport-Contract Hire                 ,J01374,Transport Related Expenditure ,Contract Hire and Op Leasing  ,CC64,HIRING TRANSPORT SEN CABS               ,"2,158.00",30/06/2013,R,KINGSTON ACCESSIBILITY TRAN LT
594,CS -Oth Operating Inc & Expend,T/A Vehicle Maintenance etc,Transport-Contract Hire                 ,J01374,Transport Related Expenditure ,Contract Hire and Op Leasing  ,CC64,HIRING TRANSPORT SEN CABS               ,"1,960.00",30/06/2013,R,KINGSTON ACCESSIBILITY TRAN LT
595,CS -Oth Operating Inc & Expend,T/A Vehicle Maintenance etc,Transport-Contract Hire                 ,J01374,Transport Related Expenditure ,Contract Hire and Op Leasing  ,CC64,HIRING TRANSPORT SEN CABS               ,"2,676.48",28/05/2013,R,SILVERBURN FINANCE (UK) LTD   
596,CS -Oth Operating Inc & Expend,T/A Vehicle Maintenance etc,Transport-Contract Hire                 ,J01374,Transport Related Expenditure ,Contract Hire and Op Leasing  ,CC64,HIRING TRANSPORT SEN CABS               ,"1,936.00",30/06/2013,R,SHERWOOD TRANSPORT GROUP      
597,CS -Oth Operating Inc & Expend,T/A Vehicle Maintenance etc,Transport-Contract Hire                 ,J01374,Transport Related Expenditure ,Contract Hire and Op Leasing  ,CC64,HIRING TRANSPORT SEN CABS               ,"3,400.00",28/06/2013,R,SILVERBURN FINANCE (UK) LTD   
598,CS -Oth Operating Inc & Expend,T/A Vehicle Maintenance etc,Transport-Contract Hire                 ,J01374,Transport Related Expenditure ,Contract Hire and Op Leasing  ,CC64,HIRING TRANSPORT SEN CABS               ,"3,021.00",30/06/2013,R,SHERWOOD TRANSPORT GROUP      
599,CS -Oth Operating Inc & Expend,T/A Vehicle Maintenance etc,Transport-Contract Hire                 ,J01374,Transport Related Expenditure ,Contract Hire and Op Leasing  ,CC64,HIRING TRANSPORT SEN CABS               ,"3,148.80",28/06/2013,R,SILVERBURN FINANCE (UK) LTD   
600,CS -Oth Operating Inc & Expend,T/A Vehicle Maintenance etc,Transport-Contract Hire                 ,J01374,Transport Related Expenditure ,Contract Hire and Op Leasing  ,CC64,HIRING TRANSPORT SEN CABS               ,800,15/07/2013,R,REDACTED
601,CS -Oth Operating Inc & Expend,T/A Vehicle Maintenance etc,Transport-Contract Hire                 ,J01374,Transport Related Expenditure ,Contract Hire and Op Leasing  ,CC64,HIRING TRANSPORT SEN CABS               ,900,31/07/2013,R,KINGSTON ACCESSIBILITY TRAN LT
602,CS -Oth Operating Inc & Expend,T/A Vehicle Maintenance etc,Transport-Contract Hire                 ,J01374,Transport Related Expenditure ,Contract Hire and Op Leasing  ,CC64,HIRING TRANSPORT SEN CABS               ,"1,590.00",30/06/2013,R,CAPITAL CARS                  
603,CS -Oth Operating Inc & Expend,T/A Vehicle Maintenance etc,Transport-Contract Hire                 ,J01374,Transport Related Expenditure ,Contract Hire and Op Leasing  ,CC64,HIRING TRANSPORT SEN CABS               ,"1,190.00",28/06/2013,R,BRUNSWICK CARS LTD            
604,CS -Oth Operating Inc & Expend,T/A Vehicle Maintenance etc,Transport-Contract Hire                 ,J01374,Transport Related Expenditure ,Contract Hire and Op Leasing  ,CC64,HIRING TRANSPORT SEN CABS               ,840,30/06/2013,R,NVCAR HIRE LTD                
605,CS -Oth Operating Inc & Expend,T/A Vehicle Maintenance etc,Transport-Contract Hire                 ,J01374,Transport Related Expenditure ,Contract Hire and Op Leasing  ,CC64,HIRING TRANSPORT SEN CABS               ,"1,110.00",28/06/2013,R,SILVERBURN FINANCE (UK) LTD   
606,CS -Oth Operating Inc & Expend,T/A Vehicle Maintenance etc,Transport-Contract Hire                 ,J01374,Transport Related Expenditure ,Contract Hire and Op Leasing  ,CC64,HIRING TRANSPORT SEN CABS               ,"1,440.00",28/06/2013,R,SILVERBURN FINANCE (UK) LTD   
607,CS -Oth Operating Inc & Expend,T/A Vehicle Maintenance etc,Transport-Contract Hire                 ,J01374,Transport Related Expenditure ,Contract Hire and Op Leasing  ,CC64,HIRING TRANSPORT SEN CABS               ,"1,726.40",31/07/2013,R,KINGSTON ACCESSIBILITY TRAN LT
608,CS -Oth Operating Inc & Expend,T/A Vehicle Maintenance etc,Transport-Contract Hire                 ,J01374,Transport Related Expenditure ,Contract Hire and Op Leasing  ,CC64,HIRING TRANSPORT SEN CABS               ,998,30/06/2013,R,KINGSTON ACCESSIBILITY TRAN LT
609,CS -Oth Operating Inc & Expend,T/A Vehicle Maintenance etc,Transport-Contract Hire                 ,J01374,Transport Related Expenditure ,Contract Hire and Op Leasing  ,CC64,HIRING TRANSPORT SEN CABS               ,"3,280.00",30/06/2013,R,BARCLAYS ASSET & SALES FINANCE
610,CS -Oth Operating Inc & Expend,T/A Vehicle Maintenance etc,Transport-Contract Hire                 ,J01374,Transport Related Expenditure ,Contract Hire and Op Leasing  ,CC64,HIRING TRANSPORT SEN CABS               ,"3,220.00",31/07/2013,R,KINGSTON ACCESSIBILITY TRAN LT
611,CS -Oth Operating Inc & Expend,T/A Vehicle Maintenance etc,Transport-Contract Hire                 ,J01374,Transport Related Expenditure ,Contract Hire and Op Leasing  ,CC64,HIRING TRANSPORT SEN CABS               ,"1,566.40",31/07/2013,R,KINGSTON ACCESSIBILITY TRAN LT
612,CS -Oth Operating Inc & Expend,T/A Vehicle Maintenance etc,Transport-Contract Hire                 ,J01374,Transport Related Expenditure ,Contract Hire and Op Leasing  ,CC64,HIRING TRANSPORT SEN CABS               ,720,28/06/2013,R,SILVERBURN FINANCE (UK) LTD   
613,CS -Oth Operating Inc & Expend,T/A Vehicle Maintenance etc,Transport-Contract Hire                 ,J01374,Transport Related Expenditure ,Contract Hire and Op Leasing  ,CC64,HIRING TRANSPORT SEN CABS               ,"1,960.00",30/06/2013,R,BARCLAYS ASSET & SALES FINANCE
614,CS -Oth Operating Inc & Expend,T/A Vehicle Maintenance etc,Transport-Contract Hire                 ,J01374,Transport Related Expenditure ,Contract Hire and Op Leasing  ,CC64,HIRING TRANSPORT SEN CABS               ,672,30/06/2013,R,BARCLAYS ASSET & SALES FINANCE
615,CS -Oth Operating Inc & Expend,T/A Vehicle Maintenance etc,Transport-Contract Hire                 ,J01374,Transport Related Expenditure ,Contract Hire and Op Leasing  ,CC64,HIRING TRANSPORT SEN CABS               ,"1,048.00",30/06/2013,R,NVCAR HIRE LTD                
616,CS -Oth Operating Inc & Expend,T/A Vehicle Maintenance etc,Transport-Contract Hire                 ,J01374,Transport Related Expenditure ,Contract Hire and Op Leasing  ,CC64,HIRING TRANSPORT SEN CABS               ,"1,824.00",28/06/2013,R,SILVERBURN FINANCE (UK) LTD   
617,CS -Oth Operating Inc & Expend,T/A Vehicle Maintenance etc,Transport-Contract Hire                 ,J01374,Transport Related Expenditure ,Contract Hire and Op Leasing  ,CC64,HIRING TRANSPORT SEN CABS               ,"2,293.50",30/06/2013,R,KINGSTON ACCESSIBILITY TRAN LT
618,CS -Oth Operating Inc & Expend,T/A Vehicle Maintenance etc,Transport-Contract Hire                 ,J01374,Transport Related Expenditure ,Contract Hire and Op Leasing  ,CC64,HIRING TRANSPORT SEN CABS               ,"2,669.60",30/06/2013,R,KINGSTON ACCESSIBILITY TRAN LT
619,CS -Oth Operating Inc & Expend,T/A Vehicle Maintenance etc,Transport-Contract Hire                 ,J01374,Transport Related Expenditure ,Contract Hire and Op Leasing  ,CC64,HIRING TRANSPORT SEN CABS               ,"1,200.00",30/06/2013,R,GALPINS SERVICE               
620,CS -Oth Operating Inc & Expend,T/A Vehicle Maintenance etc,Transport-Contract Hire                 ,J01374,Transport Related Expenditure ,Contract Hire and Op Leasing  ,CC64,HIRING TRANSPORT SEN CABS               ,"1,534.72",31/07/2013,R,KINGSTON ACCESSIBILITY TRAN LT
621,CS -Oth Operating Inc & Expend,T/A Vehicle Maintenance etc,Transport-Contract Hire                 ,J01374,Transport Related Expenditure ,Contract Hire and Op Leasing  ,CC64,HIRING TRANSPORT SEN CABS               ,"1,240.00",31/07/2013,R,KINGSTON ACCESSIBILITY TRAN LT
622,CS -Oth Operating Inc & Expend,T/A Vehicle Maintenance etc,Transport-Contract Hire                 ,J01374,Transport Related Expenditure ,Contract Hire and Op Leasing  ,CC64,HIRING TRANSPORT SEN CABS               ,"2,183.00",30/06/2013,R,SHERWOOD TRANSPORT GROUP      
623,CS -Oth Operating Inc & Expend,T/A Vehicle Maintenance etc,Transport-Contract Hire                 ,J01374,Transport Related Expenditure ,Contract Hire and Op Leasing  ,CC64,HIRING TRANSPORT SEN CABS               ,712.5,25/06/2013,R,SHERWOOD TRANSPORT GROUP      
624,CS -Oth Operating Inc & Expend,T/A Vehicle Maintenance etc,Transport-Contract Hire                 ,J01374,Transport Related Expenditure ,Contract Hire and Op Leasing  ,CC64,HIRING TRANSPORT SEN CABS               ,"1,599.20",30/06/2013,R,KINGSTON ACCESSIBILITY TRAN LT
625,CS -Oth Operating Inc & Expend,T/A Vehicle Maintenance etc,Transport-Contract Hire                 ,J01374,Transport Related Expenditure ,Contract Hire and Op Leasing  ,CC64,HIRING TRANSPORT SEN CABS               ,760,30/06/2013,R,GALPINS SERVICE               
626,CS -Oth Operating Inc & Expend,T/A Vehicle Maintenance etc,Transport-Contract Hire                 ,J01374,Transport Related Expenditure ,Contract Hire and Op Leasing  ,CC64,HIRING TRANSPORT SEN CABS               ,"4,180.00",30/06/2013,R,BARCLAYS ASSET & SALES FINANCE
627,CS -Oth Operating Inc & Expend,T/A Vehicle Maintenance etc,Transport-Contract Hire                 ,J01374,Transport Related Expenditure ,Contract Hire and Op Leasing  ,CC64,HIRING TRANSPORT SEN CABS               ,"1,440.00",30/06/2013,R,NVCAR HIRE LTD                
628,CS -Oth Operating Inc & Expend,T/A Vehicle Maintenance etc,Transport-Contract Hire                 ,J01374,Transport Related Expenditure ,Contract Hire and Op Leasing  ,CC64,HIRING TRANSPORT SEN CABS               ,756,30/06/2013,R,BARCLAYS ASSET & SALES FINANCE
629,CS -Oth Operating Inc & Expend,T/A Vehicle Maintenance etc,Transport-Contract Hire                 ,J01374,Transport Related Expenditure ,Contract Hire and Op Leasing  ,CC64,HIRING TRANSPORT SEN CABS               ,"1,559.60",30/06/2013,R,KINGSTON ACCESSIBILITY TRAN LT
630,CS -Oth Operating Inc & Expend,T/A Vehicle Maintenance etc,Transport-Contract Hire                 ,J01374,Transport Related Expenditure ,Contract Hire and Op Leasing  ,CC64,HIRING TRANSPORT SEN CABS               ,"1,640.00",30/06/2013,R,CAPITAL CARS                  
631,CS -Oth Operating Inc & Expend,T/A Vehicle Maintenance etc,Transport-Contract Hire                 ,J01374,Transport Related Expenditure ,Contract Hire and Op Leasing  ,CC64,HIRING TRANSPORT SEN CABS               ,"1,050.00",30/06/2013,R,SHERWOOD TRANSPORT GROUP      
632,CS -Oth Operating Inc & Expend,T/A Vehicle Maintenance etc,Transport-Contract Hire                 ,J01374,Transport Related Expenditure ,Contract Hire and Op Leasing  ,CC64,HIRING TRANSPORT SEN CABS               ,672,30/06/2013,R,A STAR TRANSPORT LIMITED      
633,CS -Oth Operating Inc & Expend,T/A Vehicle Maintenance etc,Transport-Contract Hire                 ,J01374,Transport Related Expenditure ,Contract Hire and Op Leasing  ,CC64,HIRING TRANSPORT SEN CABS               ,"2,480.00",30/06/2013,R,KINGSTON ACCESSIBILITY TRAN LT
634,CS -Oth Operating Inc & Expend,T/A Vehicle Maintenance etc,Transport-Contract Hire                 ,J01374,Transport Related Expenditure ,Contract Hire and Op Leasing  ,CC64,HIRING TRANSPORT SEN CABS               ,"1,520.00",30/06/2013,R,CAPITAL CARS                  
635,CS -Oth Operating Inc & Expend,T/A Vehicle Maintenance etc,Transport-Contract Hire                 ,J01374,Transport Related Expenditure ,Contract Hire and Op Leasing  ,CC64,HIRING TRANSPORT SEN CABS               ,"1,595.60",30/06/2013,R,KINGSTON ACCESSIBILITY TRAN LT
636,CS -Oth Operating Inc & Expend,T/A Vehicle Maintenance etc,Transport-Contract Hire                 ,J01374,Transport Related Expenditure ,Contract Hire and Op Leasing  ,CC64,HIRING TRANSPORT SEN CABS               ,816,30/06/2013,R,NVCAR HIRE LTD                
637,CS -Oth Operating Inc & Expend,T/A Vehicle Maintenance etc,Transport-Contract Hire                 ,J01374,Transport Related Expenditure ,Contract Hire and Op Leasing  ,CC64,HIRING TRANSPORT SEN CABS               ,878.33,30/06/2013,R,GALPINS SERVICE               
638,CS -Oth Operating Inc & Expend,T/A Vehicle Maintenance etc,Transport-Contract Hire                 ,J01374,Transport Related Expenditure ,Contract Hire and Op Leasing  ,CC64,HIRING TRANSPORT SEN CABS               ,"1,287.00",30/06/2013,R,CAPITAL CARS                  
639,CS -Oth Operating Inc & Expend,T/A Vehicle Maintenance etc,Transport-Contract Hire                 ,J01374,Transport Related Expenditure ,Contract Hire and Op Leasing  ,CC64,HIRING TRANSPORT SEN CABS               ,"1,890.00",30/06/2013,R,CAPITAL CARS                  
640,CS -Oth Operating Inc & Expend,T/A Vehicle Maintenance etc,Transport-Contract Hire                 ,J01374,Transport Related Expenditure ,Contract Hire and Op Leasing  ,CC64,HIRING TRANSPORT SEN CABS               ,"1,520.00",30/06/2013,R,NVCAR HIRE LTD                
641,CS -Oth Operating Inc & Expend,T/A Vehicle Maintenance etc,Transport-Contract Hire                 ,J01374,Transport Related Expenditure ,Contract Hire and Op Leasing  ,CC64,HIRING TRANSPORT SEN CABS               ,"2,660.00",30/06/2013,R,CAPITAL CARS                  
642,CS -Oth Operating Inc & Expend,T/A Vehicle Maintenance etc,Transport-Contract Hire                 ,J01374,Transport Related Expenditure ,Contract Hire and Op Leasing  ,CC64,HIRING TRANSPORT SEN CABS               ,"1,728.00",31/07/2013,R,KINGSTON ACCESSIBILITY TRAN LT
643,CS -Oth Operating Inc & Expend,T/A Vehicle Maintenance etc,Transport-Contract Hire                 ,J01374,Transport Related Expenditure ,Contract Hire and Op Leasing  ,CC64,HIRING TRANSPORT SEN CABS               ,"2,800.00",30/06/2013,R,KINGSTON ACCESSIBILITY TRAN LT
644,CS -Oth Operating Inc & Expend,T/A Vehicle Maintenance etc,Transport-Contract Hire                 ,J01374,Transport Related Expenditure ,Contract Hire and Op Leasing  ,CC64,HIRING TRANSPORT SEN CABS               ,"2,603.00",30/06/2013,R,NVCAR HIRE LTD                
645,CS -Oth Operating Inc & Expend,T/A Vehicle Maintenance etc,Transport-Contract Hire                 ,J01374,Transport Related Expenditure ,Contract Hire and Op Leasing  ,CC64,HIRING TRANSPORT SEN CABS               ,675,01/07/2013,R,AERIAL CAR SERVICES LTD       
646,CS -Oth Operating Inc & Expend,T/A Vehicle Maintenance etc,Transport-Contract Hire                 ,J01374,Transport Related Expenditure ,Contract Hire and Op Leasing  ,CC64,HIRING TRANSPORT SEN CABS               ,800,30/06/2013,R,KINGSTON ACCESSIBILITY TRAN LT
647,CS -Oth Operating Inc & Expend,T/A Vehicle Maintenance etc,Transport-Contract Hire                 ,J01374,Transport Related Expenditure ,Contract Hire and Op Leasing  ,CC64,HIRING TRANSPORT SEN CABS               ,940.5,30/06/2013,R,SHERWOOD TRANSPORT GROUP      
648,CS -Oth Operating Inc & Expend,T/A Vehicle Maintenance etc,Transport-Contract Hire                 ,J01374,Transport Related Expenditure ,Contract Hire and Op Leasing  ,CC64,HIRING TRANSPORT SEN CABS               ,"1,034.00",30/06/2013,R,CAPITAL CARS                  
649,CS -Oth Operating Inc & Expend,T/A Vehicle Maintenance etc,Transport-Contract Hire                 ,J01374,Transport Related Expenditure ,Contract Hire and Op Leasing  ,CC64,HIRING TRANSPORT SEN CABS               ,810,30/06/2013,R,GALPINS SERVICE               
650,CS -Oth Operating Inc & Expend,T/A Vehicle Maintenance etc,Transport-Contract Hire                 ,J01374,Transport Related Expenditure ,Contract Hire and Op Leasing  ,CC64,HIRING TRANSPORT SEN CABS               ,880,30/06/2013,R,CAPITAL CARS                  
651,CS -Oth Operating Inc & Expend,T/A Vehicle Maintenance etc,Transport-Contract Hire                 ,J01374,Transport Related Expenditure ,Contract Hire and Op Leasing  ,CC64,HIRING TRANSPORT SEN CABS               ,"2,658.00",30/06/2013,R,KINGSTON ACCESSIBILITY TRAN LT
652,CS -Oth Operating Inc & Expend,T/A Vehicle Maintenance etc,Transport-Contract Hire                 ,J01374,Transport Related Expenditure ,Contract Hire and Op Leasing  ,CC64,HIRING TRANSPORT SEN CABS               ,"1,824.00",30/06/2013,R,BARCLAYS ASSET & SALES FINANCE
653,CS -Oth Operating Inc & Expend,T/A Vehicle Maintenance etc,Transport-Contract Hire                 ,J01374,Transport Related Expenditure ,Contract Hire and Op Leasing  ,CC64,HIRING TRANSPORT SEN CABS               ,"1,920.00",28/06/2013,R,SILVERBURN FINANCE (UK) LTD   
654,CS -Oth Operating Inc & Expend,T/A Vehicle Maintenance etc,Transport-Contract Hire                 ,J01374,Transport Related Expenditure ,Contract Hire and Op Leasing  ,CC64,HIRING TRANSPORT SEN CABS               ,"1,680.00",30/06/2013,R,CAPITAL CARS                  
655,CS -Oth Operating Inc & Expend,T/A Vehicle Maintenance etc,Transport-Contract Hire                 ,J01374,Transport Related Expenditure ,Contract Hire and Op Leasing  ,CC64,HIRING TRANSPORT SEN CABS               ,"1,720.00",30/06/2013,R,BARCLAYS ASSET & SALES FINANCE
656,CS -Oth Operating Inc & Expend,T/A Vehicle Maintenance etc,Transport-Contract Hire                 ,J01374,Transport Related Expenditure ,Contract Hire and Op Leasing  ,CC64,HIRING TRANSPORT SEN CABS               ,"1,298.00",30/06/2013,R,SHERWOOD TRANSPORT GROUP      
657,CS -Oth Operating Inc & Expend,T/A Vehicle Maintenance etc,Transport-Contract Hire                 ,J01374,Transport Related Expenditure ,Contract Hire and Op Leasing  ,CC64,HIRING TRANSPORT SEN CABS               ,"2,126.40",31/07/2013,R,KINGSTON ACCESSIBILITY TRAN LT
658,CS -Oth Operating Inc & Expend,T/A Vehicle Maintenance etc,Transport-Contract Hire                 ,J01374,Transport Related Expenditure ,Contract Hire and Op Leasing  ,CC64,HIRING TRANSPORT SEN CABS               ,"2,900.00",30/06/2013,R,SHERWOOD TRANSPORT GROUP      
659,CS -Oth Operating Inc & Expend,T/A Vehicle Maintenance etc,Transport-Contract Hire                 ,J01374,Transport Related Expenditure ,Contract Hire and Op Leasing  ,CC64,HIRING TRANSPORT SEN CABS               ,"1,000.00",30/06/2013,R,KINGSTON ACCESSIBILITY TRAN LT
660,CS -Oth Operating Inc & Expend,T/A Vehicle Maintenance etc,Transport-Contract Hire                 ,J01374,Transport Related Expenditure ,Contract Hire and Op Leasing  ,CC64,HIRING TRANSPORT SEN CABS               ,"2,380.00",30/06/2013,R,SHERWOOD TRANSPORT GROUP      
661,CS -Oth Operating Inc & Expend,T/A Vehicle Maintenance etc,Transport-Contract Hire                 ,J01374,Transport Related Expenditure ,Contract Hire and Op Leasing  ,CC64,HIRING TRANSPORT SEN CABS               ,"1,680.00",28/06/2013,R,SILVERBURN FINANCE (UK) LTD   
662,CS -Oth Operating Inc & Expend,T/A Vehicle Maintenance etc,Transport-Contract Hire                 ,J01374,Transport Related Expenditure ,Contract Hire and Op Leasing  ,CC64,HIRING TRANSPORT SEN CABS               ,"1,344.00",30/06/2013,R,BARCLAYS ASSET & SALES FINANCE
663,CS -Oth Operating Inc & Expend,T/A Vehicle Maintenance etc,Transport-Contract Hire                 ,J01374,Transport Related Expenditure ,Contract Hire and Op Leasing  ,CC64,HIRING TRANSPORT SEN CABS               ,"1,705.86",30/06/2013,R,KINGSTON ACCESSIBILITY TRAN LT
664,CS -Oth Operating Inc & Expend,T/A Vehicle Maintenance etc,Transport-Contract Hire                 ,J01374,Transport Related Expenditure ,Contract Hire and Op Leasing  ,CC64,HIRING TRANSPORT SEN CABS               ,"2,800.00",30/06/2013,R,BARCLAYS ASSET & SALES FINANCE
665,CS -Oth Operating Inc & Expend,T/A Vehicle Maintenance etc,Transport-Contract Hire                 ,J01374,Transport Related Expenditure ,Contract Hire and Op Leasing  ,CC64,HIRING TRANSPORT SEN CABS               ,"1,260.00",30/06/2013,R,NVCAR HIRE LTD                
666,CS -Oth Operating Inc & Expend,T/A Vehicle Maintenance etc,Transport-Contract Hire                 ,J01374,Transport Related Expenditure ,Contract Hire and Op Leasing  ,CC64,HIRING TRANSPORT SEN CABS               ,"1,680.00",30/06/2013,R,NVCAR HIRE LTD                
667,CS -Oth Operating Inc & Expend,T/A Vehicle Maintenance etc,Transport-Contract Hire                 ,J01374,Transport Related Expenditure ,Contract Hire and Op Leasing  ,CC64,HIRING TRANSPORT SEN CABS               ,"1,071.00",31/05/2013,R,SHERWOOD TRANSPORT GROUP      
668,CS -Oth Operating Inc & Expend,T/A Vehicle Maintenance etc,Transport-Contract Hire                 ,J01374,Transport Related Expenditure ,Contract Hire and Op Leasing  ,CC64,HIRING TRANSPORT SEN CABS               ,"3,180.00",28/06/2013,R,BRUNSWICK CARS LTD            
669,CS -Oth Operating Inc & Expend,T/A Vehicle Maintenance etc,Transport-Contract Hire                 ,J01374,Transport Related Expenditure ,Contract Hire and Op Leasing  ,CC64,HIRING TRANSPORT SEN CABS               ,"3,400.00",30/06/2013,R,BARCLAYS ASSET & SALES FINANCE
670,CS -Oth Operating Inc & Expend,T/A Vehicle Maintenance etc,Transport-Contract Hire                 ,J01374,Transport Related Expenditure ,Contract Hire and Op Leasing  ,CC64,HIRING TRANSPORT SEN CABS               ,680,28/06/2013,R,SILVERBURN FINANCE (UK) LTD   
671,CS -Oth Operating Inc & Expend,T/A Vehicle Maintenance etc,Transport-Contract Hire                 ,J01374,Transport Related Expenditure ,Contract Hire and Op Leasing  ,CC64,HIRING TRANSPORT SEN CABS               ,"2,664.00",30/06/2013,R,CAPITAL CARS                  
672,CS -Oth Operating Inc & Expend,T/A Vehicle Maintenance etc,Transport-Contract Hire                 ,J01374,Transport Related Expenditure ,Contract Hire and Op Leasing  ,CC64,HIRING TRANSPORT SEN CABS               ,"1,116.00",31/07/2013,R,A STAR TRANSPORT LIMITED      
673,CS -Oth Operating Inc & Expend,T/A Vehicle Maintenance etc,Transport-Contract Hire                 ,J01374,Transport Related Expenditure ,Contract Hire and Op Leasing  ,CC64,HIRING TRANSPORT SEN CABS               ,"1,995.00",30/06/2013,R,SHERWOOD TRANSPORT GROUP      
674,CS -Oth Operating Inc & Expend,T/A Vehicle Maintenance etc,Transport-Contract Hire                 ,J01374,Transport Related Expenditure ,Contract Hire and Op Leasing  ,CC64,HIRING TRANSPORT SEN CABS               ,"1,400.00",30/06/2013,R,CAPITAL CARS                  
675,CS -Oth Operating Inc & Expend,T/A Vehicle Maintenance etc,Transport-Contract Hire                 ,J01374,Transport Related Expenditure ,Contract Hire and Op Leasing  ,CC64,HIRING TRANSPORT SEN CABS               ,558.67,30/06/2013,R,GALPINS SERVICE               
676,CS -Oth Operating Inc & Expend,T/A Vehicle Maintenance etc,Transport-Contract Hire                 ,J01374,Transport Related Expenditure ,Contract Hire and Op Leasing  ,CC64,HIRING TRANSPORT SEN CABS               ,"1,300.00",30/06/2013,R,KINGSTON ACCESSIBILITY TRAN LT
677,CS -Oth Operating Inc & Expend,T/A Vehicle Maintenance etc,Transport-Contract Hire                 ,J01374,Transport Related Expenditure ,Contract Hire and Op Leasing  ,CC64,HIRING TRANSPORT SEN CABS               ,"2,800.00",30/06/2013,R,KINGSTON ACCESSIBILITY TRAN LT
678,CS -Oth Operating Inc & Expend,T/A Vehicle Maintenance etc,Transport-Contract Hire                 ,J01374,Transport Related Expenditure ,Contract Hire and Op Leasing  ,CC64,HIRING TRANSPORT SEN CABS               ,784,30/06/2013,R,NVCAR HIRE LTD                
679,CS -Oth Operating Inc & Expend,T/A Vehicle Maintenance etc,Transport-Contract Hire                 ,J01374,Transport Related Expenditure ,Contract Hire and Op Leasing  ,CC64,HIRING TRANSPORT SEN CABS               ,"1,152.00",31/07/2013,R,KINGSTON ACCESSIBILITY TRAN LT
680,CS -Oth Operating Inc & Expend,T/A Vehicle Maintenance etc,Transport-Contract Hire                 ,J01374,Transport Related Expenditure ,Contract Hire and Op Leasing  ,CC64,HIRING TRANSPORT SEN CABS               ,"1,200.00",28/06/2013,R,SILVERBURN FINANCE (UK) LTD   
681,CS -Oth Operating Inc & Expend,T/A Vehicle Maintenance etc,Transport-Contract Hire                 ,J01374,Transport Related Expenditure ,Contract Hire and Op Leasing  ,CC64,HIRING TRANSPORT SEN CABS               ,"1,404.00",30/06/2013,R,NVCAR HIRE LTD                
682,CS -Oth Operating Inc & Expend,T/A Vehicle Maintenance etc,Transport-Contract Hire                 ,J01374,Transport Related Expenditure ,Contract Hire and Op Leasing  ,CC64,HIRING TRANSPORT SEN CABS               ,"1,214.70",31/07/2013,R,KINGSTON ACCESSIBILITY TRAN LT
683,CS -Oth Operating Inc & Expend,T/A Vehicle Maintenance etc,Transport-Contract Hire                 ,J01374,Transport Related Expenditure ,Contract Hire and Op Leasing  ,CC64,HIRING TRANSPORT SEN CABS               ,960,28/06/2013,R,SILVERBURN FINANCE (UK) LTD   
684,CS -Oth Operating Inc & Expend,T/A Vehicle Maintenance etc,Transport-Contract Hire                 ,J01374,Transport Related Expenditure ,Contract Hire and Op Leasing  ,CC64,HIRING TRANSPORT SEN CABS               ,"1,190.00",30/06/2013,R,CAPITAL CARS                  
685,CS -Oth Operating Inc & Expend,T/A Vehicle Maintenance etc,Transport-Contract Hire                 ,J01374,Transport Related Expenditure ,Contract Hire and Op Leasing  ,CC64,HIRING TRANSPORT SEN CABS               ,"1,440.00",28/06/2013,R,SILVERBURN FINANCE (UK) LTD   
686,CS -Oth Operating Inc & Expend,T/A Vehicle Maintenance etc,Transport-Contract Hire                 ,J01374,Transport Related Expenditure ,Contract Hire and Op Leasing  ,CC64,HIRING TRANSPORT SEN CABS               ,"2,402.64",31/07/2013,R,KINGSTON ACCESSIBILITY TRAN LT
687,CS -Oth Operating Inc & Expend,T/A Vehicle Maintenance etc,Transport-Contract Hire                 ,J01374,Transport Related Expenditure ,Contract Hire and Op Leasing  ,CC64,HIRING TRANSPORT SEN CABS               ,"1,436.04",31/07/2013,R,KINGSTON ACCESSIBILITY TRAN LT
688,CS -Oth Operating Inc & Expend,T/A Vehicle Maintenance etc,Transport-Contract Hire                 ,J01374,Transport Related Expenditure ,Contract Hire and Op Leasing  ,CC64,HIRING TRANSPORT SEN CABS               ,"1,686.00",30/06/2013,R,KENDALL CARS                  
689,CS -Oth Operating Inc & Expend,T/A Vehicle Maintenance etc,Transport-Contract Hire                 ,J01374,Transport Related Expenditure ,Contract Hire and Op Leasing  ,CC64,HIRING TRANSPORT SEN CABS               ,"1,666.00",31/07/2013,R,KINGSTON ACCESSIBILITY TRAN LT
690,CS -Oth Operating Inc & Expend,T/A Vehicle Maintenance etc,Transport-Contract Hire                 ,J01374,Transport Related Expenditure ,Contract Hire and Op Leasing  ,CC64,HIRING TRANSPORT SEN CABS               ,"2,064.15",31/07/2013,R,KINGSTON ACCESSIBILITY TRAN LT
691,CS -Oth Operating Inc & Expend,T/A Vehicle Maintenance etc,Transport-Contract Hire                 ,J01374,Transport Related Expenditure ,Contract Hire and Op Leasing  ,CC64,HIRING TRANSPORT SEN CABS               ,"1,439.28",31/07/2013,R,KINGSTON ACCESSIBILITY TRAN LT
692,CS -Oth Operating Inc & Expend,T/A Vehicle Maintenance etc,Transport-Contract Hire                 ,J01374,Transport Related Expenditure ,Contract Hire and Op Leasing  ,CC64,HIRING TRANSPORT SEN CABS               ,800,01/07/2013,R,AERIAL CAR SERVICES LTD       
693,CS -Oth Operating Inc & Expend,T/A Vehicle Maintenance etc,Transport-Contract Hire                 ,J01374,Transport Related Expenditure ,Contract Hire and Op Leasing  ,CC64,HIRING TRANSPORT SEN CABS               ,"2,520.00",31/07/2013,R,KINGSTON ACCESSIBILITY TRAN LT
694,CS -Oth Operating Inc & Expend,T/A Vehicle Maintenance etc,Transport-Contract Hire                 ,J01374,Transport Related Expenditure ,Contract Hire and Op Leasing  ,CC64,HIRING TRANSPORT SEN CABS               ,"1,403.64",31/07/2013,R,KINGSTON ACCESSIBILITY TRAN LT
695,CS -Oth Operating Inc & Expend,T/A Vehicle Maintenance etc,Transport-Contract Hire                 ,J01374,Transport Related Expenditure ,Contract Hire and Op Leasing  ,CC64,HIRING TRANSPORT SEN CABS               ,567,30/06/2013,R,BARCLAYS ASSET & SALES FINANCE
696,CS -Oth Operating Inc & Expend,T/A Vehicle Maintenance etc,Transport-Contract Hire                 ,J01374,Transport Related Expenditure ,Contract Hire and Op Leasing  ,CC64,HIRING TRANSPORT SEN CABS               ,"1,480.00",30/06/2013,R,CAPITAL CARS                  
697,CS -Oth Operating Inc & Expend,T/A Vehicle Maintenance etc,Transport-Contract Hire                 ,J01374,Transport Related Expenditure ,Contract Hire and Op Leasing  ,CC64,HIRING TRANSPORT SEN CABS               ,"1,320.00",28/06/2013,R,SILVERBURN FINANCE (UK) LTD   
698,CS -Oth Operating Inc & Expend,T/A Vehicle Maintenance etc,Transport-Contract Hire                 ,J01374,Transport Related Expenditure ,Contract Hire and Op Leasing  ,CC64,HIRING TRANSPORT SEN CABS               ,"2,800.00",29/06/2013,R,WALLINGTON CARS & COURIERS LTD
699,CS -Oth Operating Inc & Expend,T/A Vehicle Maintenance etc,Transport-Contract Hire                 ,J01374,Transport Related Expenditure ,Contract Hire and Op Leasing  ,CC64,HIRING TRANSPORT SEN CABS               ,"1,280.00",30/06/2013,R,KINGSTON ACCESSIBILITY TRAN LT
700,CS -Oth Operating Inc & Expend,T/A Vehicle Maintenance etc,Transport-Contract Hire                 ,J01374,Transport Related Expenditure ,Contract Hire and Op Leasing  ,CC64,HIRING TRANSPORT SEN CABS               ,630,30/06/2013,R,CAPITAL CARS                  
701,CS -Oth Operating Inc & Expend,T/A Vehicle Maintenance etc,Transport-Contract Hire                 ,J01374,Transport Related Expenditure ,Contract Hire and Op Leasing  ,CC64,HIRING TRANSPORT SEN CABS               ,944,31/07/2013,R,KINGSTON ACCESSIBILITY TRAN LT
702,CS -Oth Operating Inc & Expend,T/A Vehicle Maintenance etc,Transport-Contract Hire                 ,J01374,Transport Related Expenditure ,Contract Hire and Op Leasing  ,CC64,HIRING TRANSPORT SEN CABS               ,700,01/07/2013,R,AERIAL CAR SERVICES LTD       
703,CS -Oth Operating Inc & Expend,T/A Vehicle Maintenance etc,Transport-Contract Hire                 ,J01374,Transport Related Expenditure ,Contract Hire and Op Leasing  ,CC64,HIRING TRANSPORT SEN CABS               ,"1,199.68",30/06/2013,R,KINGSTON ACCESSIBILITY TRAN LT
704,CS -Oth Operating Inc & Expend,T/A Vehicle Maintenance etc,Transport-Contract Hire                 ,J01374,Transport Related Expenditure ,Contract Hire and Op Leasing  ,CC64,HIRING TRANSPORT SEN CABS               ,"2,760.00",30/06/2013,R,NVCAR HIRE LTD                
705,CS -Oth Operating Inc & Expend,T/A Vehicle Maintenance etc,Transport-Contract Hire                 ,J01374,Transport Related Expenditure ,Contract Hire and Op Leasing  ,CC64,HIRING TRANSPORT SEN CABS               ,818,28/06/2013,R,SILVERBURN FINANCE (UK) LTD   
706,CS -Oth Operating Inc & Expend,T/A Vehicle Maintenance etc,Transport-Contract Hire                 ,J01374,Transport Related Expenditure ,Contract Hire and Op Leasing  ,CC64,HIRING TRANSPORT SEN CABS               ,"1,000.00",30/06/2013,R,SHERWOOD TRANSPORT GROUP      
707,CS -Oth Operating Inc & Expend,T/A Vehicle Maintenance etc,Transport-Contract Hire                 ,J01374,Transport Related Expenditure ,Contract Hire and Op Leasing  ,CC64,HIRING TRANSPORT SEN CABS               ,944,30/06/2013,R,KINGSTON ACCESSIBILITY TRAN LT
708,CS -Oth Operating Inc & Expend,T/A Vehicle Maintenance etc,Transport-Contract Hire                 ,J01374,Transport Related Expenditure ,Contract Hire and Op Leasing  ,CC66,HIRING TRANSPORT H&SS CAB CHILDREN      ,680,30/06/2013,R,BARCLAYS ASSET & SALES FINANCE
709,CS -Oth Operating Inc & Expend,T/A Vehicle Maintenance etc,Transport-Contract Hire                 ,J01374,Transport Related Expenditure ,Contract Hire and Op Leasing  ,CC66,HIRING TRANSPORT H&SS CAB CHILDREN      ,"2,091.00",30/06/2013,R,KINGSTON ACCESSIBILITY TRAN LT
710,CS -Oth Operating Inc & Expend,T/A Vehicle Maintenance etc,Transport-Contract Hire                 ,J01374,Transport Related Expenditure ,Contract Hire and Op Leasing  ,CC66,HIRING TRANSPORT H&SS CAB CHILDREN      ,"1,140.00",30/06/2013,R,CAPITAL CARS                  
711,CS -Oth Operating Inc & Expend,T/A Vehicle Maintenance etc,Transport-Contract Hire                 ,J01374,Transport Related Expenditure ,Contract Hire and Op Leasing  ,CC66,HIRING TRANSPORT H&SS CAB CHILDREN      ,"2,639.56",31/07/2013,R,KINGSTON ACCESSIBILITY TRAN LT
712,CS -Oth Operating Inc & Expend,T/A Vehicle Maintenance etc,Transport-Contract Hire                 ,J01374,Transport Related Expenditure ,Contract Hire and Op Leasing  ,CC66,HIRING TRANSPORT H&SS CAB CHILDREN      ,"2,472.00",30/06/2013,R,KINGSTON ACCESSIBILITY TRAN LT
713,CS -Oth Operating Inc & Expend,T/A Vehicle Maintenance etc,Transport-Contract Hire                 ,J01374,Transport Related Expenditure ,Contract Hire and Op Leasing  ,CC66,HIRING TRANSPORT H&SS CAB CHILDREN      ,"2,224.80",31/07/2013,R,KINGSTON ACCESSIBILITY TRAN LT
714,CS -Oth Operating Inc & Expend,T/A Vehicle Maintenance etc,Transport-Contract Hire                 ,J01374,Transport Related Expenditure ,Contract Hire and Op Leasing  ,CC66,HIRING TRANSPORT H&SS CAB CHILDREN      ,"1,734.00",31/07/2013,R,KINGSTON ACCESSIBILITY TRAN LT
715,CS -Oth Operating Inc & Expend,T/A Vehicle Maintenance etc,Transport-Contract Hire                 ,J01374,Transport Related Expenditure ,Contract Hire and Op Leasing  ,CC66,HIRING TRANSPORT H&SS CAB CHILDREN      ,680,30/06/2013,R,GALPINS SERVICE               
716,CS -Oth Operating Inc & Expend,T/A Vehicle Maintenance etc,Transport-Contract Hire                 ,J01374,Transport Related Expenditure ,Contract Hire and Op Leasing  ,CC66,HIRING TRANSPORT H&SS CAB CHILDREN      ,"2,399.60",30/06/2013,R,KINGSTON ACCESSIBILITY TRAN LT
717,CS -Oth Operating Inc & Expend,T/A Vehicle Maintenance etc,Transport-Contract Hire                 ,J01374,Transport Related Expenditure ,Contract Hire and Op Leasing  ,CC66,HIRING TRANSPORT H&SS CAB CHILDREN      ,720,30/06/2013,R,BARCLAYS ASSET & SALES FINANCE
718,CS -Oth Operating Inc & Expend,T/A Vehicle Maintenance etc,Transport-Contract Hire                 ,J01374,Transport Related Expenditure ,Contract Hire and Op Leasing  ,CC66,HIRING TRANSPORT H&SS CAB CHILDREN      ,506,30/06/2013,R,NVCAR HIRE LTD                
719,CS -Oth Operating Inc & Expend,T/A Vehicle Maintenance etc,Transport-Contract Hire                 ,J01374,Transport Related Expenditure ,Contract Hire and Op Leasing  ,CC66,HIRING TRANSPORT H&SS CAB CHILDREN      ,580,30/06/2013,R,SHERWOOD TRANSPORT GROUP      
720,CS -Oth Operating Inc & Expend,T/A Vehicle Maintenance etc,Transport-Contract Hire                 ,J01374,Transport Related Expenditure ,Contract Hire and Op Leasing  ,CC66,HIRING TRANSPORT H&SS CAB CHILDREN      ,"1,264.00",30/06/2013,R,NVCAR HIRE LTD                
721,CS -Oth Operating Inc & Expend,T/A Vehicle Maintenance etc,Transport-Contract Hire                 ,J01374,Transport Related Expenditure ,Contract Hire and Op Leasing  ,CC67,HIRING TRANSPORT H&SS CAB ADULTS        ,"1,178.00",25/05/2013,R,WALLINGTON CARS & COURIERS LTD
722,CS -Oth Operating Inc & Expend,T/A Vehicle Maintenance etc,Transport-Contract Hire                 ,J01374,Transport Related Expenditure ,Contract Hire and Op Leasing  ,CC67,HIRING TRANSPORT H&SS CAB ADULTS        ,"1,216.00",30/06/2013,R,BARCLAYS ASSET & SALES FINANCE
723,CS -Oth Operating Inc & Expend,T/A Vehicle Maintenance etc,Transport-Contract Hire                 ,J01374,Transport Related Expenditure ,Contract Hire and Op Leasing  ,CC67,HIRING TRANSPORT H&SS CAB ADULTS        ,"1,598.48",30/06/2013,R,KINGSTON ACCESSIBILITY TRAN LT
724,CS -Oth Operating Inc & Expend,T/A Vehicle Maintenance etc,Transport-Contract Hire                 ,J01374,Transport Related Expenditure ,Contract Hire and Op Leasing  ,CC67,HIRING TRANSPORT H&SS CAB ADULTS        ,576,30/06/2013,R,BARCLAYS ASSET & SALES FINANCE
725,CS -Oth Operating Inc & Expend,T/A Vehicle Maintenance etc,Transport-Contract Hire                 ,J01374,Transport Related Expenditure ,Contract Hire and Op Leasing  ,CC67,HIRING TRANSPORT H&SS CAB ADULTS        ,512,30/06/2013,R,BARCLAYS ASSET & SALES FINANCE
726,CS -Oth Operating Inc & Expend,T/A Vehicle Maintenance etc,Transport-Contract Hire                 ,J01374,Transport Related Expenditure ,Contract Hire and Op Leasing  ,CC67,HIRING TRANSPORT H&SS CAB ADULTS        ,"1,544.00",30/06/2013,R,CAPITAL CARS                  
727,CS -Oth Operating Inc & Expend,T/A Vehicle Maintenance etc,Transport-Contract Hire                 ,J01374,Transport Related Expenditure ,Contract Hire and Op Leasing  ,CC67,HIRING TRANSPORT H&SS CAB ADULTS        ,518,01/07/2013,R,AERIAL CAR SERVICES LTD       
728,CS -Oth Operating Inc & Expend,T/A Vehicle Maintenance etc,Transport-Contract Hire                 ,J01374,Transport Related Expenditure ,Contract Hire and Op Leasing  ,CC67,HIRING TRANSPORT H&SS CAB ADULTS        ,646,30/06/2013,R,NVCAR HIRE LTD                
729,CS -Oth Operating Inc & Expend,T/A Vehicle Maintenance etc,Transport-Contract Hire                 ,J01374,Transport Related Expenditure ,Contract Hire and Op Leasing  ,CC67,HIRING TRANSPORT H&SS CAB ADULTS        ,990,30/06/2013,R,KINGSTON ACCESSIBILITY TRAN LT
730,CS -Oth Operating Inc & Expend,T/A Vehicle Maintenance etc,Transport-Contract Hire                 ,J01374,Transport Related Expenditure ,Contract Hire and Op Leasing  ,CC67,HIRING TRANSPORT H&SS CAB ADULTS        ,"1,792.00",30/06/2013,R,NVCAR HIRE LTD                
731,CS -Oth Operating Inc & Expend,T/A Vehicle Maintenance etc,Transport-Contract Hire                 ,J01374,Transport Related Expenditure ,Contract Hire and Op Leasing  ,CC67,HIRING TRANSPORT H&SS CAB ADULTS        ,836,29/06/2013,R,WALLINGTON CARS & COURIERS LTD
732,CS -Oth Operating Inc & Expend,T/A Vehicle Maintenance etc,Transport-Contract Hire                 ,J01374,Transport Related Expenditure ,Contract Hire and Op Leasing  ,CC67,HIRING TRANSPORT H&SS CAB ADULTS        ,919.04,31/07/2013,R,KINGSTON ACCESSIBILITY TRAN LT
733,CS -Oth Operating Inc & Expend,T/A Vehicle Maintenance etc,Transport-Contract Hire                 ,J01374,Transport Related Expenditure ,Contract Hire and Op Leasing  ,CC67,HIRING TRANSPORT H&SS CAB ADULTS        ,608,30/06/2013,R,NVCAR HIRE LTD                
734,CS -Oth Operating Inc & Expend,T/A Vehicle Maintenance etc,Transport-Contract Hire                 ,J01374,Transport Related Expenditure ,Contract Hire and Op Leasing  ,CC67,HIRING TRANSPORT H&SS CAB ADULTS        ,"1,050.00",31/07/2013,R,KINGSTON ACCESSIBILITY TRAN LT
735,CS -Oth Operating Inc & Expend,T/A Vehicle Maintenance etc,Transport-Contract Hire                 ,J01374,Transport Related Expenditure ,Contract Hire and Op Leasing  ,CC67,HIRING TRANSPORT H&SS CAB ADULTS        ,944,30/06/2013,R,CAPITAL CARS                  
736,CS -Oth Operating Inc & Expend,T/A Vehicle Maintenance etc,Transport-Contract Hire                 ,J01374,Transport Related Expenditure ,Contract Hire and Op Leasing  ,CC67,HIRING TRANSPORT H&SS CAB ADULTS        ,840,30/06/2013,R,BARCLAYS ASSET & SALES FINANCE
737,CS -Oth Operating Inc & Expend,T/A Vehicle Maintenance etc,Transport-Contract Hire                 ,J01374,Transport Related Expenditure ,Contract Hire and Op Leasing  ,CC67,HIRING TRANSPORT H&SS CAB ADULTS        ,"1,056.00",30/06/2013,R,KINGSTON ACCESSIBILITY TRAN LT
738,CS -Oth Operating Inc & Expend,T/A Vehicle Maintenance etc,Transport-Contract Hire                 ,J01374,Transport Related Expenditure ,Contract Hire and Op Leasing  ,CC67,HIRING TRANSPORT H&SS CAB ADULTS        ,840,30/06/2013,R,KINGSTON ACCESSIBILITY TRAN LT
739,CS -Oth Operating Inc & Expend,T/A Vehicle Maintenance etc,Transport-Contract Hire                 ,J01374,Transport Related Expenditure ,Contract Hire and Op Leasing  ,CC67,HIRING TRANSPORT H&SS CAB ADULTS        ,"1,152.00",31/07/2013,R,A STAR TRANSPORT LIMITED      
740,CS -Oth Operating Inc & Expend,T/A Vehicle Maintenance etc,Transport-Contract Hire                 ,J01374,Transport Related Expenditure ,Contract Hire and Op Leasing  ,CC67,HIRING TRANSPORT H&SS CAB ADULTS        ,864,28/06/2013,R,SILVERBURN FINANCE (UK) LTD   
741,CS -Oth Operating Inc & Expend,T/A Vehicle Maintenance etc,Transport-Contract Hire                 ,J01374,Transport Related Expenditure ,Contract Hire and Op Leasing  ,CC67,HIRING TRANSPORT H&SS CAB ADULTS        ,"1,705.82",30/06/2013,R,KINGSTON ACCESSIBILITY TRAN LT
742,CS -Oth Operating Inc & Expend,T/A Vehicle Maintenance etc,Transport-Contract Hire                 ,J01374,Transport Related Expenditure ,Contract Hire and Op Leasing  ,CC67,HIRING TRANSPORT H&SS CAB ADULTS        ,659.4,31/07/2013,R,KINGSTON ACCESSIBILITY TRAN LT
743,CS -Oth Operating Inc & Expend,T/A Vehicle Maintenance etc,Transport-Contract Hire                 ,J01374,Transport Related Expenditure ,Contract Hire and Op Leasing  ,CC67,HIRING TRANSPORT H&SS CAB ADULTS        ,"2,064.94",31/07/2013,R,KINGSTON ACCESSIBILITY TRAN LT
744,CS -Oth Operating Inc & Expend,T/A Vehicle Maintenance etc,Transport-Contract Hire                 ,J01374,Transport Related Expenditure ,Contract Hire and Op Leasing  ,CC67,HIRING TRANSPORT H&SS CAB ADULTS        ,960,30/06/2013,R,A STAR TRANSPORT LIMITED      
745,CS -Oth Operating Inc & Expend,T/A Vehicle Maintenance etc,Transport-Contract Hire                 ,J01374,Transport Related Expenditure ,Contract Hire and Op Leasing  ,CC67,HIRING TRANSPORT H&SS CAB ADULTS        ,"1,710.00",31/07/2013,R,KINGSTON ACCESSIBILITY TRAN LT
746,CS -Oth Operating Inc & Expend,T/A Vehicle Maintenance etc,Transport-Contract Hire                 ,J01374,Transport Related Expenditure ,Contract Hire and Op Leasing  ,CC68,HIRING TRANSPORT SEN COLLEGES CABS      ,880,30/06/2013,R,KENDALL CARS                  
747,CS -Oth Operating Inc & Expend,T/A Vehicle Maintenance etc,Transport-Contract Hire                 ,J01374,Transport Related Expenditure ,Contract Hire and Op Leasing  ,CC68,HIRING TRANSPORT SEN COLLEGES CABS      ,650,30/06/2013,R,CAPITAL CARS                  
748,CS -Oth Operating Inc & Expend,T/A Vehicle Maintenance etc,Transport-Contract Hire                 ,J01374,Transport Related Expenditure ,Contract Hire and Op Leasing  ,CC68,HIRING TRANSPORT SEN COLLEGES CABS      ,569.4,31/07/2013,R,KINGSTON ACCESSIBILITY TRAN LT
749,CS -Oth Operating Inc & Expend,T/A Vehicle Maintenance etc,Transport-Contract Hire                 ,J01374,Transport Related Expenditure ,Contract Hire and Op Leasing  ,CC68,HIRING TRANSPORT SEN COLLEGES CABS      ,"2,280.00",30/06/2013,R,SHERWOOD TRANSPORT GROUP      
750,CS -Oth Operating Inc & Expend,T/A Vehicle Maintenance etc,Transport-Contract Hire                 ,J01374,Transport Related Expenditure ,Contract Hire and Op Leasing  ,CC68,HIRING TRANSPORT SEN COLLEGES CABS      ,630,30/06/2013,R,BARCLAYS ASSET & SALES FINANCE
751,CS -Oth Operating Inc & Expend,T/A Vehicle Maintenance etc,Transport-Contract Hire                 ,J01374,Transport Related Expenditure ,Contract Hire and Op Leasing  ,CC68,HIRING TRANSPORT SEN COLLEGES CABS      ,"1,360.00",28/06/2013,R,SILVERBURN FINANCE (UK) LTD   
752,CS -Oth Operating Inc & Expend,T/A Vehicle Maintenance etc,Transport-Contract Hire                 ,J01374,Transport Related Expenditure ,Contract Hire and Op Leasing  ,CC68,HIRING TRANSPORT SEN COLLEGES CABS      ,"1,795.60",30/06/2013,R,KINGSTON ACCESSIBILITY TRAN LT
753,CS -Oth Operating Inc & Expend,T/A Vehicle Maintenance etc,Transport-Contract Hire                 ,J01374,Transport Related Expenditure ,Contract Hire and Op Leasing  ,CC68,HIRING TRANSPORT SEN COLLEGES CABS      ,696,31/07/2013,R,KINGSTON ACCESSIBILITY TRAN LT
754,CS -Oth Operating Inc & Expend,T/A Vehicle Maintenance etc,Transport-Contract Hire                 ,J01374,Transport Related Expenditure ,Contract Hire and Op Leasing  ,CC68,HIRING TRANSPORT SEN COLLEGES CABS      ,608,30/06/2013,R,GALPINS SERVICE               
755,CS -Oth Operating Inc & Expend,T/A Vehicle Maintenance etc,Transport-Contract Hire                 ,J01374,Transport Related Expenditure ,Contract Hire and Op Leasing  ,CC68,HIRING TRANSPORT SEN COLLEGES CABS      ,"1,587.48",31/07/2013,R,KINGSTON ACCESSIBILITY TRAN LT
756,CS -Oth Operating Inc & Expend,T/A Vehicle Maintenance etc,Transport-Contract Hire                 ,J01374,Transport Related Expenditure ,Contract Hire and Op Leasing  ,CC68,HIRING TRANSPORT SEN COLLEGES CABS      ,"2,760.00",30/06/2013,R,KINGSTON ACCESSIBILITY TRAN LT
757,CS -Oth Operating Inc & Expend,T/A Vehicle Maintenance etc,Transport-Contract Hire                 ,J01374,Transport Related Expenditure ,Contract Hire and Op Leasing  ,CC68,HIRING TRANSPORT SEN COLLEGES CABS      ,876,30/06/2013,R,KINGSTON ACCESSIBILITY TRAN LT
758,CS -Oth Operating Inc & Expend,T/A Vehicle Maintenance etc,Transport-Contract Hire                 ,J01374,Transport Related Expenditure ,Contract Hire and Op Leasing  ,CC68,HIRING TRANSPORT SEN COLLEGES CABS      ,660,30/06/2013,R,GALPINS SERVICE               
759,CS -Oth Operating Inc & Expend,T/A Vehicle Maintenance etc,Transport-Contract Hire                 ,J01374,Transport Related Expenditure ,Contract Hire and Op Leasing  ,CC68,HIRING TRANSPORT SEN COLLEGES CABS      ,"2,667.48",30/06/2013,R,BARCLAYS ASSET & SALES FINANCE
760,CS -Oth Operating Inc & Expend,T/A Vehicle Maintenance etc,Transport-Contract Hire                 ,J01374,Transport Related Expenditure ,Contract Hire and Op Leasing  ,CC68,HIRING TRANSPORT SEN COLLEGES CABS      ,"1,192.00",28/06/2013,R,SILVERBURN FINANCE (UK) LTD   
761,CS -Oth Operating Inc & Expend,T/A Vehicle Maintenance etc,Transport-Contract Hire                 ,J01374,Transport Related Expenditure ,Contract Hire and Op Leasing  ,CC68,HIRING TRANSPORT SEN COLLEGES CABS      ,"1,656.00",31/07/2013,R,KINGSTON ACCESSIBILITY TRAN LT
762,CS -Oth Operating Inc & Expend,T/A Vehicle Maintenance etc,Transport-Contract Hire                 ,J01374,Transport Related Expenditure ,Contract Hire and Op Leasing  ,CC68,HIRING TRANSPORT SEN COLLEGES CABS      ,"2,319.20",30/06/2013,R,KINGSTON ACCESSIBILITY TRAN LT
763,CS -Oth Operating Inc & Expend,T/A Vehicle Maintenance etc,Transport-Contract Hire                 ,J01374,Transport Related Expenditure ,Contract Hire and Op Leasing  ,CC68,HIRING TRANSPORT SEN COLLEGES CABS      ,"1,417.00",30/06/2013,R,BARCLAYS ASSET & SALES FINANCE
764,CS -Oth Operating Inc & Expend,T/A Vehicle Maintenance etc,Transport-Contract Hire                 ,J01374,Supplies & Services           ,Comms and Computing           ,DG09,Computer Purchases - Misc               ,"5,288.22",01/02/2013,R,NORTHGATE ARINSO              
765,CS -Oth Operating Inc & Expend,T/A Vehicle Maintenance etc,Transport-Contract Hire                 ,J01374,Supplies & Services           ,Grants and Subscriptions      ,DJ54,Contributions                           ,"7,450.54",26/07/2013,R,TRACE SYSTEMS (EUROPE)LTD     
766,CS -Oth Operating Inc & Expend,T/A Vehicle Maintenance etc,Transport-Workshop                      ,J01376,Transport Related Expenditure ,Contract Hire and Op Leasing  ,CC60,Vehicle Hire for LB Sutton              ,688.05,31/07/2013,R,KINGSTON ACCESSIBILITY TRAN LT
767,CS -Oth Operating Inc & Expend,T/A Vehicle Maintenance etc,Transport-Workshop                      ,J01376,Transport Related Expenditure ,Contract Hire and Op Leasing  ,CC60,Vehicle Hire for LB Sutton              ,"4,960.00",30/06/2013,R,BARCLAYS ASSET & SALES FINANCE
768,CS -Oth Operating Inc & Expend,T/A Vehicle Maintenance etc,Transport-Workshop                      ,J01376,Transport Related Expenditure ,Contract Hire and Op Leasing  ,CC60,Vehicle Hire for LB Sutton              ,"1,957.00",28/06/2013,R,BRUNSWICK CARS LTD            
769,CS -Oth Operating Inc & Expend,T/A Vehicle Maintenance etc,Transport-Workshop                      ,J01376,Transport Related Expenditure ,Contract Hire and Op Leasing  ,CC60,Vehicle Hire for LB Sutton              ,960,29/06/2013,R,CALVERTON FACTORS LTD         
770,CS -Oth Operating Inc & Expend,T/A Vehicle Maintenance etc,Transport-Workshop                      ,J01376,Transport Related Expenditure ,Contract Hire and Op Leasing  ,CC60,Vehicle Hire for LB Sutton              ,"1,300.00",30/06/2013,R,KINGSTON ACCESSIBILITY TRAN LT
771,CS -Oth Operating Inc & Expend,T/A Vehicle Maintenance etc,Transport-Workshop                      ,J01376,Transport Related Expenditure ,Contract Hire and Op Leasing  ,CC60,Vehicle Hire for LB Sutton              ,"1,800.00",29/06/2013,R,CALVERTON FACTORS LTD         
772,CS -Oth Operating Inc & Expend,T/A Vehicle Maintenance etc,Transport-Workshop                      ,J01376,Transport Related Expenditure ,Contract Hire and Op Leasing  ,CC60,Vehicle Hire for LB Sutton              ,"1,960.00",30/06/2013,R,BARCLAYS ASSET & SALES FINANCE
773,CS -Oth Operating Inc & Expend,T/A Vehicle Maintenance etc,Transport-Workshop                      ,J01376,Transport Related Expenditure ,Contract Hire and Op Leasing  ,CC60,Vehicle Hire for LB Sutton              ,"1,800.00",29/06/2013,R,CALVERTON FACTORS LTD         
774,CS -Oth Operating Inc & Expend,T/A Vehicle Maintenance etc,Transport-Workshop                      ,J01376,Transport Related Expenditure ,Contract Hire and Op Leasing  ,CC60,Vehicle Hire for LB Sutton              ,"1,200.00",30/06/2013,R,BARCLAYS ASSET & SALES FINANCE
775,CS -Oth Operating Inc & Expend,T/A Vehicle Maintenance etc,Transport-Workshop                      ,J01376,Transport Related Expenditure ,Contract Hire and Op Leasing  ,CC60,Vehicle Hire for LB Sutton              ,"2,380.00",28/06/2013,R,BRUNSWICK CARS LTD            
776,CS -Oth Operating Inc & Expend,T/A Vehicle Maintenance etc,Transport-Workshop                      ,J01376,Transport Related Expenditure ,Contract Hire and Op Leasing  ,CC60,Vehicle Hire for LB Sutton              ,740,30/06/2013,R,CAPITAL CARS                  
777,CS -Oth Operating Inc & Expend,T/A Vehicle Maintenance etc,Transport-Workshop                      ,J01376,Transport Related Expenditure ,Contract Hire and Op Leasing  ,CC60,Vehicle Hire for LB Sutton              ,585,31/07/2013,R,KINGSTON ACCESSIBILITY TRAN LT
778,CS -Oth Operating Inc & Expend,T/A Vehicle Maintenance etc,Transport-Workshop                      ,J01376,Transport Related Expenditure ,Contract Hire and Op Leasing  ,CC60,Vehicle Hire for LB Sutton              ,"2,100.00",28/06/2013,R,BRUNSWICK CARS LTD            
779,CS -Oth Operating Inc & Expend,T/A Vehicle Maintenance etc,Transport-Workshop                      ,J01376,Transport Related Expenditure ,Contract Hire and Op Leasing  ,CC60,Vehicle Hire for LB Sutton              ,764.5,30/06/2013,R,KINGSTON ACCESSIBILITY TRAN LT
780,CS -Oth Operating Inc & Expend,T/A Vehicle Maintenance etc,Transport-Workshop                      ,J01376,Transport Related Expenditure ,Contract Hire and Op Leasing  ,CC60,Vehicle Hire for LB Sutton              ,"1,290.00",30/06/2013,R,BARCLAYS ASSET & SALES FINANCE
781,CS -Oth Operating Inc & Expend,T/A Vehicle Maintenance etc,Transport-Workshop                      ,J01376,Transport Related Expenditure ,Contract Hire and Op Leasing  ,CC65,Vehicle Hire for Education              ,600,04/07/2013,R,GOLDEN SOVEREIGN COACHES      
782,CS -Oth Operating Inc & Expend,T/A Vehicle Maintenance etc,Transport-Workshop                      ,J01376,Transport Related Expenditure ,Contract Hire and Op Leasing  ,CC65,Vehicle Hire for Education              ,"1,100.00",22/07/2013,R,FREEWAY COACH SERVICES        
783,Cultural Env Reg&Plan Services,Mgt & Support (Env),Estates Mgt                             ,J01420,Supplies & Services           ,Services                      ,DF03,CONSULTANTS                             ,"2,589.00",05/06/2013,R,QUINTON SCOTT                 
784,Cultural Env Reg&Plan Services,Mgt & Support (Env),Estates Mgt                             ,J01420,Supplies & Services           ,Comms and Computing           ,DG07,Computer Software                       ,962.5,02/07/2013,R,KEL COMPUTING LTD             
785,Cultural Env Reg&Plan Services,Mgt & Support (Env),Estates Mgt                             ,J01420,Supplies & Services           ,Comms and Computing           ,DG07,Computer Software                       ,750,04/06/2013,R,KEL COMPUTING LTD             
786,Cultural Env Reg&Plan Services,Mgt & Support (Env),Estates Mgt                             ,J01420,Supplies & Services           ,Grants and Subscriptions      ,DJ04,SUBSCRIPTION                            ,"2,880.00",06/06/2013,R,COSTAR UK LTD                 
787,CS -Oth Operating Inc & Expend,Extraordinary Items & PY Adj.,Housing Shops                           ,J01533,Premises Related Expenditure  ,RepairsAlterations&MtceOfBldgs,BA01,Housing Shops                 -DDM - Gen,"12,590.00",16/06/2013,R,REDACTED
788,CS -Oth Operating Inc & Expend,Extraordinary Items & PY Adj.,Housing Shops                           ,J01533,Premises Related Expenditure  ,RepairsAlterations&MtceOfBldgs,BA05,Housing Shops                 -DDM - Ele,620,11/06/2013,R,MORTON FAIRVIEW ELEC SERVICES 
789,CS -Oth Operating Inc & Expend,Extraordinary Items & PY Adj.,Durnsford Rd Budget                     ,J01580,Premises Related Expenditure  ,RepairsAlterations&MtceOfBldgs,BA79,                               SECURITY ,"1,001.00",30/04/2013,R,OM METROPOLITAN TOTAL SEC.LTD 
790,CS -Oth Operating Inc & Expend,Extraordinary Items & PY Adj.,Durnsford Rd Budget                     ,J01580,Premises Related Expenditure  ,RepairsAlterations&MtceOfBldgs,BA79,                               SECURITY ,"1,079.00",31/05/2013,R,OM METROPOLITAN TOTAL SEC.LTD 
791,CS -Oth Operating Inc & Expend,Extraordinary Items & PY Adj.,Durnsford Rd Budget                     ,J01580,Premises Related Expenditure  ,Energy Costs                  ,BB02,Durnsford Rd Budget                     ,"1,010.28",10/06/2013,R,EDF ENERGY                    
792,CS -Oth Operating Inc & Expend,Extraordinary Items & PY Adj.,Batsworth Rd Budget                     ,J01689,Premises Related Expenditure  ,Energy Costs                  ,BB02,                               Electrici,612.25,04/07/2013,R,EDF                           
793,CS -Oth Operating Inc & Expend,Extraordinary Items & PY Adj.,South Wimbledon Comm Centre             ,J08073,Premises Related Expenditure  ,RepairsAlterations&MtceOfBldgs,BA03,DDM - Mechanical                        ,924,25/07/2013,R,COFELY LIMITED                
794,CS -Oth Operating Inc & Expend,Extraordinary Items & PY Adj.,Pollards Hill Comm Cntre                ,J08074,Premises Related Expenditure  ,RepairsAlterations&MtceOfBldgs,BA03,DDM - Mechanical                        ,773.14,16/07/2013,R,COFELY LIMITED                
795,Childrens & Education Services,Statutory & Regulatory Duties,Senior Mngt & Support Services          ,K01005,Supplies & Services           ,Services                      ,DF03,CONSULTANTS                             ,"1,350.00",05/07/2013,R,MILTONCOX LIMITED             
796,Childrens & Education Services,Statutory & Regulatory Duties,Senior Mngt & Support Services          ,K01005,Supplies & Services           ,Services                      ,DF03,CONSULTANTS                             ,"3,825.00",05/07/2013,R,MILTONCOX LIMITED             
797,Childrens & Education Services,Statutory & Regulatory Duties,Senior Mngt & Support Services          ,K01005,Supplies & Services           ,Services                      ,DF11,Counsel's Fees                          ,925,27/06/2013,R,REDACTED
798,Childrens & Education Services,Statutory & Regulatory Duties,Senior Mngt & Support Services          ,K01005,Supplies & Services           ,Services                      ,DF11,Counsel's Fees                          ,"1,500.00",23/05/2013,R,REDACTED
799,Childrens & Education Services,Statutory & Regulatory Duties,Senior Mngt & Support Services          ,K01005,Supplies & Services           ,Services                      ,DF11,Counsel's Fees                          ,500,21/05/2013,R,REDACTED
800,Childrens & Education Services,Statutory & Regulatory Duties,Senior Mngt & Support Services          ,K01005,Supplies & Services           ,Services                      ,DF11,Counsel's Fees                          ,570,21/05/2013,R,REDACTED
801,Childrens & Education Services,Statutory & Regulatory Duties,Schools IT Support                      ,K02008,Supplies & Services           ,Comms and Computing           ,DG50,Other IT Expenditure                    ,"2,375.00",19/06/2013,R,LONDON GRID FOR LEARNING TRUST
802,Childrens & Education Services,Statutory & Regulatory Duties,Schools IT Support                      ,K02008,Supplies & Services           ,Comms and Computing           ,DG50,Other IT Expenditure                    ,"1,662.50",19/06/2013,R,LONDON GRID FOR LEARNING TRUST
803,Childrens & Education Services,Statutory & Regulatory Duties,Schools IT Support                      ,K02008,Supplies & Services           ,Comms and Computing           ,DG50,Other IT Expenditure                    ,675,10/07/2013,R,ATOMWIDE LTD                  
804,Childrens & Education Services,Statutory & Regulatory Duties,Schools IT Support                      ,K02008,Supplies & Services           ,Comms and Computing           ,DG50,Other IT Expenditure                    ,875,03/07/2013,R,ATOMWIDE LTD                  
805,Childrens & Education Services,Statutory & Regulatory Duties,Schools IT Support                      ,K02008,Supplies & Services           ,Comms and Computing           ,DG50,Other IT Expenditure                    ,"5,700.00",05/07/2013,R,LONDON GRID FOR LEARNING TRUST
806,Childrens & Education Services,Statutory & Regulatory Duties,Schools IT Support                      ,K02008,Supplies & Services           ,Comms and Computing           ,DG50,Other IT Expenditure                    ,"2,137.50",19/06/2013,R,LONDON GRID FOR LEARNING TRUST
807,Childrens & Education Services,Statutory & Regulatory Duties,Schools IT Support                      ,K02008,Supplies & Services           ,Comms and Computing           ,DG50,Other IT Expenditure                    ,"1,662.50",05/07/2013,R,LONDON GRID FOR LEARNING TRUST
808,Childrens & Education Services,Statutory & Regulatory Duties,Schools IT Support                      ,K02008,Supplies & Services           ,Comms and Computing           ,DG50,Other IT Expenditure                    ,"403,779.57",04/06/2013,R,LONDON GRID FOR LEARNING TRUST
809,Childrens & Education Services,Statutory & Regulatory Duties,Schools IT Support                      ,K02008,Supplies & Services           ,Comms and Computing           ,DG50,Other IT Expenditure                    ,"2,137.50",05/07/2013,R,LONDON GRID FOR LEARNING TRUST
810,Childrens & Education Services,Statutory & Regulatory Duties,Schools IT Support                      ,K02008,Supplies & Services           ,Comms and Computing           ,DG50,Other IT Expenditure                    ,"1,662.50",05/07/2013,R,LONDON GRID FOR LEARNING TRUST
811,Childrens & Education Services,Statutory & Regulatory Duties,Schools IT Support                      ,K02008,Supplies & Services           ,Comms and Computing           ,DG50,Other IT Expenditure                    ,"2,137.50",19/06/2013,R,LONDON GRID FOR LEARNING TRUST
812,Childrens & Education Services,Statutory & Regulatory Duties,Schools IT Support                      ,K02008,Supplies & Services           ,Comms and Computing           ,DG50,Other IT Expenditure                    ,"2,375.00",05/07/2013,R,LONDON GRID FOR LEARNING TRUST
813,Childrens & Education Services,Statutory & Regulatory Duties,Schools IT Support                      ,K02008,Supplies & Services           ,Comms and Computing           ,DG50,Other IT Expenditure                    ,"2,137.50",05/07/2013,R,LONDON GRID FOR LEARNING TRUST
814,Childrens & Education Services,Statutory & Regulatory Duties,Schools IT Support                      ,K02008,Supplies & Services           ,Comms and Computing           ,DG50,Other IT Expenditure                    ,"2,137.50",19/06/2013,R,LONDON GRID FOR LEARNING TRUST
815,Childrens & Education Services,Statutory & Regulatory Duties,Schools IT Support                      ,K02008,Supplies & Services           ,Comms and Computing           ,DG50,Other IT Expenditure                    ,"2,375.00",05/07/2013,R,LONDON GRID FOR LEARNING TRUST
816,Childrens & Education Services,Statutory & Regulatory Duties,Schools IT Support                      ,K02008,Supplies & Services           ,Comms and Computing           ,DG50,Other IT Expenditure                    ,"2,137.50",05/07/2013,R,LONDON GRID FOR LEARNING TRUST
817,Childrens & Education Services,Statutory & Regulatory Duties,Schools IT Support                      ,K02008,Supplies & Services           ,Comms and Computing           ,DG50,Other IT Expenditure                    ,"2,375.00",05/07/2013,R,LONDON GRID FOR LEARNING TRUST
818,Childrens & Education Services,Statutory & Regulatory Duties,Schools IT Support                      ,K02008,Supplies & Services           ,Comms and Computing           ,DG50,Other IT Expenditure                    ,"2,375.00",05/07/2013,R,LONDON GRID FOR LEARNING TRUST
819,Childrens & Education Services,Statutory & Regulatory Duties,Schools IT Support                      ,K02008,Supplies & Services           ,Comms and Computing           ,DG50,Other IT Expenditure                    ,"2,137.50",19/06/2013,R,LONDON GRID FOR LEARNING TRUST
820,Childrens & Education Services,Statutory & Regulatory Duties,Schools IT Support                      ,K02008,Supplies & Services           ,Comms and Computing           ,DG50,Other IT Expenditure                    ,"1,662.50",05/07/2013,R,LONDON GRID FOR LEARNING TRUST
821,Childrens & Education Services,Statutory & Regulatory Duties,Schools IT Support                      ,K02008,Supplies & Services           ,Comms and Computing           ,DG50,Other IT Expenditure                    ,950,05/07/2013,R,LONDON GRID FOR LEARNING TRUST
822,Childrens & Education Services,Statutory & Regulatory Duties,Schools IT Support                      ,K02008,Supplies & Services           ,Comms and Computing           ,DG50,Other IT Expenditure                    ,"2,375.00",19/06/2013,R,LONDON GRID FOR LEARNING TRUST
823,Childrens & Education Services,Statutory & Regulatory Duties,Schools IT Support                      ,K02008,Supplies & Services           ,Comms and Computing           ,DG50,Other IT Expenditure                    ,"2,375.00",19/06/2013,R,LONDON GRID FOR LEARNING TRUST
824,Childrens & Education Services,Statutory & Regulatory Duties,Schools IT Support                      ,K02008,Supplies & Services           ,Comms and Computing           ,DG50,Other IT Expenditure                    ,"1,662.50",19/06/2013,R,LONDON GRID FOR LEARNING TRUST
825,Childrens & Education Services,Asset Management,PFI Unitary Charges                     ,K03023,Third Party Payments          ,Private Contractors           ,EH02,Miscellaneous Hired Services            ,"66,255.91",31/05/2013,R,NEWSCHOOLS (MERTON) LIMITED   
826,Childrens & Education Services,Asset Management,PFI Unitary Charges                     ,K03023,Third Party Payments          ,Private Contractors           ,EH02,Miscellaneous Hired Services            ,"11,293.84",31/05/2013,R,NEWSCHOOLS (MERTON) LIMITED   
827,Childrens & Education Services,Asset Management,PFI Unitary Charges                     ,K03023,Third Party Payments          ,Private Contractors           ,EH02,Miscellaneous Hired Services            ,"1,941.69",28/06/2013,R,NEWSCHOOLS (MERTON) LIMITED   
828,Childrens & Education Services,Asset Management,PFI Unitary Charges                     ,K03023,Third Party Payments          ,Private Contractors           ,EH02,Miscellaneous Hired Services            ,"1,233.53",28/06/2013,R,NEWSCHOOLS (MERTON) LIMITED   
829,Childrens & Education Services,Asset Management,PFI Unitary Charges                     ,K03023,Third Party Payments          ,Private Contractors           ,EH10,Contract Payments                       ,"365,986.91",31/05/2013,R,NEWSCHOOLS (MERTON) LIMITED   
830,Childrens & Education Services,Statutory & Regulatory Duties,Head of Special Educatn Needs           ,K04017,Supplies & Services           ,Services                      ,DF03,Consultants                             ,"1,500.00",01/06/2013,R,REDACTED
831,Childrens & Education Services,Statutory & Regulatory Duties,Head of Special Educatn Needs           ,K04017,Supplies & Services           ,Services                      ,DF03,Consultants                             ,"1,700.00",31/07/2013,R,ANAIRO SOLUTIONS LIMITED      
832,Childrens & Education Services,Education Psychology Service,Education Psychology.                   ,K04018,Employees                     ,Direct Employee Expenses      ,AA17,Agency Staff & Casual Paymts            ,"1,500.00",17/06/2013,R,REDACTED
833,Childrens & Education Services,Support for SEN Pupils,Statementing-Transport                  ,K04023,Transport Related Expenditure ,Public Transport              ,CD50,Home Sch/Coll Trans(Trav Exps)          ,"1,200.00",03/07/2013,R,REDACTED
834,Childrens & Education Services,Support for SEN Pupils,Statementing-Transport                  ,K04023,Transport Related Expenditure ,Public Transport              ,CD50,Home Sch/Coll Trans(Trav Exps)          ,"1,478.40",17/06/2013,R,BEXLEY COUNCIL                
835,Childrens & Education Services,Support for SEN Pupils,Statementing-Transport                  ,K04023,Transport Related Expenditure ,Public Transport              ,CD50,Home Sch/Coll Trans(Trav Exps)          ,"1,600.00",12/06/2013,R,REDACTED
836,Childrens & Education Services,Oth U5s Provn Not Prim or Spec,Provider Support                        ,K05078,Supplies & Services           ,Comms and Computing           ,DG02,Software Licences                       ,"1,065.54",21/06/2013,R,CACI LIMITED                  
837,Childrens & Education Services,Oth U5s Provn Not Prim or Spec,GSSG Workforce Development              ,K05111,Employees                     ,Indirect Employee Expenses    ,AB56,Internal Training Costs                 ,700,19/07/2013,R,PERSEID SCHOOL                
838,Childrens & Education Services,Oth U5s Provn Not Prim or Spec,GSSG Workforce Development              ,K05111,Employees                     ,Indirect Employee Expenses    ,AB56,Internal Training Costs                 ,"1,400.00",19/07/2013,R,PERSEID SCHOOL                
839,Childrens & Education Services,Oth U5s Provn Not Prim or Spec,GSSG Workforce Development              ,K05111,Employees                     ,Indirect Employee Expenses    ,AB57,External Training Costs                 ,"1,815.61",03/06/2013,R,KIN SUPPORT SERVICES          
840,Childrens & Education Services,GENERATED ACCOUNT,EY Family Support Team                  ,K05411,Supplies & Services           ,Equip Furniture/Materials     ,DA04,Materials                               ,"2,645.64",02/07/2013,R,INCREDIBLE YEARS              
841,Childrens & Education Services,GENERATED ACCOUNT,Mitcham MAT (Premises)                  ,K05412,Premises Related Expenditure  ,Energy Costs                  ,BB02,Electricity                             ,871.35,05/07/2013,R,SCOTTISHPOWER                 
842,Childrens & Education Services,GENERATED ACCOUNT,Mitcham MAT (Premises)                  ,K05412,Premises Related Expenditure  ,Cleaning and Domestic Supplies,BH03,Cleaning Services                       ,"1,186.24",01/07/2013,R,BIRKIN CLEANING SERVICES LTD  
843,Childrens & Education Services,Nursery schools,Lavender CC Non Childcare               ,K05415,Premises Related Expenditure  ,Cleaning and Domestic Supplies,BH03,Cleaning Services                       ,"1,189.54",01/07/2013,R,BIRKIN CLEANING SERVICES LTD  
844,Childrens & Education Services,Nursery schools,E.Years-Intergenerational Cntr          ,K05416,Employees                     ,Indirect Employee Expenses    ,AB57,External Training Costs                 ,780,16/07/2013,R,LODDON TRAINING AND CONSULT.  
845,Childrens & Education Services,Nursery schools,E.Years-Intergenerational Cntr          ,K05416,Premises Related Expenditure  ,RepairsAlterations&MtceOfBldgs,BA03,DDM - Mechanical                        ,561.81,16/07/2013,R,STORMSAVER LTD                
846,Childrens & Education Services,Nursery schools,E.Years-Intergenerational Cntr          ,K05416,Premises Related Expenditure  ,RepairsAlterations&MtceOfBldgs,BA06,Repairs & Maintenance General           ,804.5,08/07/2013,R,REDACTED
847,Childrens & Education Services,Nursery schools,E.Years-Intergenerational Cntr          ,K05416,Premises Related Expenditure  ,Cleaning and Domestic Supplies,BH03,Cleaning Services                       ,796.82,01/07/2013,R,BIRKIN CLEANING SERVICES LTD  
848,Childrens & Education Services,Nursery schools,E.Years-Intergenerational Cntr          ,K05416,Supplies & Services           ,Services                      ,DF03,Consultants                             ,"2,511.04",01/07/2013,R,REDACTED
849,Childrens & Education Services,Nursery schools,E.Years-Intergenerational Cntr          ,K05416,Supplies & Services           ,Services                      ,DF30,Activities Programme                    ,525,04/07/2013,R,THE JAYNE STEWART SCH OF DANCE
850,Childrens & Education Services,Vocational - Adult Education,AE-Neighbourhood Learning               ,K06043,Supplies & Services           ,Services                      ,DF30,Activities Programme                    ,"9,629.00",16/07/2013,R,SOCIAL ENTERPRISE MERTON CIC  
851,Childrens & Education Services,Vocational - Adult Education,AE-Neighbourhood Learning               ,K06043,Supplies & Services           ,Comms and Computing           ,DG07,Computer Software                       ,"11,000.00",09/07/2013,R,PLUS BUSINESS SYSTEMS LIMITED 
852,Childrens & Education Services,Vocational - Adult Education,MAE-Bldgs Repairs & Maintenanc          ,K06048,Premises Related Expenditure  ,RepairsAlterations&MtceOfBldgs,BA01,DDM - General Building                  ,500,28/06/2013,R,SALTASH ENTERPRISES LTD       
853,Childrens & Education Services,Vocational - Adult Education,AE-Adult Education Main                 ,K06049,Premises Related Expenditure  ,Energy Costs                  ,BB03,Gas (incl. Butane)                      ,687.25,05/07/2013,R,GAZPROM MARKETING&TRADING LTD 
854,Childrens & Education Services,Vocational - Adult Education,AE-Adult Education Main                 ,K06049,Premises Related Expenditure  ,Cleaning and Domestic Supplies,BH03,Cleaning Services                       ,"2,773.59",25/06/2013,R,JULIUS RUTHERFOORD & CO LTD   
855,Childrens & Education Services,Vocational - Adult Education,AE-Adult Education Main                 ,K06049,Supplies & Services           ,Services                      ,DF02,Misc Advertising/Publicity              ,552,29/06/2013,R,NEWSQUEST (LONDON)LTD         
856,Childrens & Education Services,Vocational - Adult Education,AE-Adult Education Main                 ,K06049,Supplies & Services           ,Services                      ,DF27,Examination Fees                        ,"1,270.00",10/07/2013,R,UCLES                         
857,Childrens & Education Services,Vocational - Adult Education,AE-Adult Education Main                 ,K06049,Supplies & Services           ,Services                      ,DF27,Examination Fees                        ,"3,011.75",20/06/2013,R,UCLES                         
858,Childrens & Education Services,Vocational - Adult Education,AE-Adult Education Main                 ,K06049,Supplies & Services           ,Services                      ,DF27,Examination Fees                        ,971.5,04/07/2013,R,UCLES                         
859,Childrens & Education Services,Vocational - Adult Education,AE-Adult Education Main                 ,K06049,Supplies & Services           ,Services                      ,DF27,Examination Fees                        ,571.25,20/06/2013,R,UCLES                         
860,Childrens & Education Services,Vocational - Adult Education,AE-Adult Education Main                 ,K06049,Supplies & Services           ,Comms and Computing           ,DG02,Software Licences                       ,"3,995.00",09/07/2013,R,PLUS BUSINESS SYSTEMS LIMITED 
861,Childrens & Education Services,Vocational - Adult Education,AE-Adult Education Main                 ,K06049,Supplies & Services           ,Comms and Computing           ,DG02,Software Licences                       ,"1,045.00",09/07/2013,R,PLUS BUSINESS SYSTEMS LIMITED 
862,Childrens & Education Services,Vocational - Adult Education,AE-Adult Education Main                 ,K06049,Supplies & Services           ,Comms and Computing           ,DG02,Software Licences                       ,"7,035.00",08/07/2013,R,PLUS BUSINESS SYSTEMS LIMITED 
863,Childrens & Education Services,Vocational - Adult Education,AE-Adult Education Main                 ,K06049,Supplies & Services           ,Comms and Computing           ,DG02,Software Licences                       ,"1,118.75",09/07/2013,R,PLUS BUSINESS SYSTEMS LIMITED 
864,Childrens & Education Services,Vocational - Adult Education,AE-Adult Education Main                 ,K06049,Supplies & Services           ,Comms and Computing           ,DG02,Software Licences                       ,"1,085.00",08/07/2013,R,PLUS BUSINESS SYSTEMS LIMITED 
865,Childrens & Education Services,Vocational - Adult Education,AE-Adult Education Main                 ,K06049,Supplies & Services           ,Comms and Computing           ,DG02,Software Licences                       ,"4,475.00",09/07/2013,R,PLUS BUSINESS SYSTEMS LIMITED 
866,Childrens & Education Services,Youth Centres (Residential),Youth Service                           ,K06053,Premises Related Expenditure  ,Cleaning and Domestic Supplies,BH03,Cleaning Services                       ,553.14,25/03/2013,R,JULIUS RUTHERFOORD & CO LTD   
867,Childrens & Education Services,Youth Centres (Residential),Detached Projects                       ,K06066,Supplies & Services           ,Expenses                      ,DH12,Young Peoples Expenses                  ,"1,575.00",03/07/2013,R,REDACTED
868,Childrens & Education Services,Youth Centres (Residential),Youth Office Premises Cost              ,K06073,Premises Related Expenditure  ,RepairsAlterations&MtceOfBldgs,BA06,Repairs & Maintenance General           ,"1,408.32",25/07/2013,R,NEWPOINT GROUP LIMITED        
869,Childrens & Education Services,Youth Centres (Residential),ETE Team                                ,K06092,Premises Related Expenditure  ,Rents                         ,BC01,Miscellaneous Rent                      ,566.92,27/06/2013,R,GOLDPLAZA (MITCHAM) LIMITED   
870,Childrens & Education Services,Youth Centres (Residential),ETE Team                                ,K06092,Premises Related Expenditure  ,Rents                         ,BC01,Miscellaneous Rent                      ,"6,750.00",13/06/2013,R,GOLDPLAZA (MITCHAM) LIMITED   
871,Childrens & Education Services,Vocational - Adult Education,AE-ESOL                                 ,K06110,Employees                     ,Indirect Employee Expenses    ,AB57,External Training Costs                 ,"5,125.00",25/06/2013,R,BLACKBOARD COLLABORATE UK LTD 
872,Childrens & Education Services,Asset Management,Revenuisation & S106 Proj               ,K08077,Premises Related Expenditure  ,RepairsAlterations&MtceOfBldgs,BA79,Security of Premises                    ,"6,645.60",01/07/2013,R,SIGHT & SOUND                 
873,Childrens & Education Services,Asset Management,Revenuisation & S106 Proj               ,K08077,Premises Related Expenditure  ,Energy Costs                  ,BB02,Electricity                             ,"3,476.67",04/07/2013,R,SOUTHERN ELECTRIC             
874,Childrens & Education Services,Asset Management,Revenuisation & S106 Proj               ,K08077,Premises Related Expenditure  ,Rents                         ,BC03,Room/venue rental hire                  ,680.34,01/07/2013,R,PORTAKABIN LIMITED            
875,Childrens & Education Services,Asset Management,Centre Commissioned Servs               ,K08078,Supplies & Services           ,Grants and Subscriptions      ,DJ01,Grants                                  ,"2,687.50",26/06/2013,R,CARERS SUPPORT MERTON         
876,Childrens & Education Services,Asset Management,Centre Commissioned Servs               ,K08078,Supplies & Services           ,Grants and Subscriptions      ,DJ01,Grants                                  ,"2,750.00",24/06/2013,R,SOUTH THAMES CROSSROADS       
877,Childrens & Education Services,Asset Management,Centre Commissioned Servs               ,K08078,Supplies & Services           ,Grants and Subscriptions      ,DJ01,Grants                                  ,"10,000.00",04/06/2013,R,MERTON MENCAP                 
878,Childrens & Education Services,Asset Management,Centre Commissioned Servs               ,K08078,Supplies & Services           ,Grants and Subscriptions      ,DJ01,Grants                                  ,"15,000.00",04/06/2013,R,MERTON MENCAP                 
879,Childrens & Education Services,Asset Management,Centre Commissioned Servs               ,K08078,Supplies & Services           ,Grants and Subscriptions      ,DJ01,Grants                                  ,"2,500.00",26/06/2013,R,CARERS SUPPORT MERTON         
880,Childrens & Education Services,Asset Management,Centre Commissioned Servs               ,K08078,Supplies & Services           ,Grants and Subscriptions      ,DJ01,Grants                                  ,"6,250.00",15/07/2013,R,PRE-SCHOOL LEARNING ALLIANCE  
